Organisation Code,Organisation Label,Effective Date,Organisational Unit,Service Division Label,Category Internal Name,Purpose,Detailed Expenditure Code,Payment Date,Transaction Number,Irrecoverable VAT Amount,Amount,Capital Or Revenue,Benificiary Name,Procurement Card
Http://opendatacommunities.org/id/metropolitan-district-council/leeds,Leeds City Council,31/12/2019,Resources And Housing,Strategic Housing Partnership & Support  ,Supplies and Services,Subsistence,256,04/11/2019,1912-00001,0.00,480.00,R,A & H Bags And Bedding,Yes
Http://opendatacommunities.org/id/metropolitan-district-council/leeds,Leeds City Council,31/12/2019,City Development,Libraries  Arts & Heritage,Supplies and Services,Advertising,211,11/12/2019,1912-00002,0.00,375.00,R,A & N Media Finance Services Ltd,No
Http://opendatacommunities.org/id/metropolitan-district-council/leeds,Leeds City Council,31/12/2019,City Development,Economic Development,Supplies and Services,Advertising,211,24/12/2019,1912-00003,0.00,300.00,R,A & N Media Finance Services Ltd,No
Http://opendatacommunities.org/id/metropolitan-district-council/leeds,Leeds City Council,31/12/2019,Adults and Health,Services For Older People Under 65 P/Dis,Third Party Payments,Sheltered Accommodation,569,11/12/2019,1912-00004,0.00,5400.00,R,A & V Transitional Homes,No
Http://opendatacommunities.org/id/metropolitan-district-council/leeds,Leeds City Council,31/12/2019,Resources and Housing,HRA Housing Leeds,Capital,Other Costs,7,16/12/2019,1912-00005,0.00,100.00,C,REDACTED PERSONAL DATA,No
Http://opendatacommunities.org/id/metropolitan-district-council/leeds,Leeds City Council,31/12/2019,Resources and Housing,Leeds Building Services,Supplies and Services,Operational Materials,205,04/12/2019,1912-00006,0.00,19.98,R,A Andrews & Sons (Marbles & Tiles),No
Http://opendatacommunities.org/id/metropolitan-district-council/leeds,Leeds City Council,31/12/2019,Resources and Housing,Leeds Building Services,Supplies and Services,Operational Materials,205,20/12/2019,1912-00007,0.00,54.38,R,A Andrews & Sons (Marbles & Tiles),No
Http://opendatacommunities.org/id/metropolitan-district-council/leeds,Leeds City Council,31/12/2019,Resources and Housing,Leeds Building Services,Supplies and Services,Operational Materials,205,20/12/2019,1912-00008,0.00,30.15,R,A Andrews & Sons (Marbles & Tiles),No
Http://opendatacommunities.org/id/metropolitan-district-council/leeds,Leeds City Council,31/12/2019,Resources and Housing,HRA Housing Leeds,Capital,Other Costs,7,16/12/2019,1912-00009,0.00,100.00,C,REDACTED PERSONAL DATA,No
Http://opendatacommunities.org/id/metropolitan-district-council/leeds,Leeds City Council,31/12/2019,Children and Families,Social Care,Third Party Payments,Services Rendered By Other Organisations,511,06/12/2019,1912-00010,0.00,225.75,R,REDACTED PERSONAL DATA,No
Http://opendatacommunities.org/id/metropolitan-district-council/leeds,Leeds City Council,31/12/2019,Resources and Housing,HRA Housing Leeds,Capital,Other Costs,7,12/12/2019,1912-00011,0.00,249.22,C,REDACTED PERSONAL DATA,No
Http://opendatacommunities.org/id/metropolitan-district-council/leeds,Leeds City Council,31/12/2019,Resources and Housing,HRA Housing Leeds,Capital,Other Costs,7,23/12/2019,1912-00012,0.00,60.00,C,REDACTED PERSONAL DATA,No
Http://opendatacommunities.org/id/metropolitan-district-council/leeds,Leeds City Council,31/12/2019,Resources and Housing,Leeds Building Services,Supplies and Services,Other Hired And Contracted Services,265,05/12/2019,1912-00013,0.00,61815.00,R,A Buckler (Haulage) Ltd,No
Http://opendatacommunities.org/id/metropolitan-district-council/leeds,Leeds City Council,31/12/2019,Children and Families,Social Care,Third Party Payments,Services Rendered By Other Organisations,511,06/12/2019,1912-00014,0.00,501.66,R,REDACTED PERSONAL DATA,No
Http://opendatacommunities.org/id/metropolitan-district-council/leeds,Leeds City Council,31/12/2019,Children and Families,Social Care,Third Party Payments,Services Rendered By Other Organisations,511,04/12/2019,1912-00015,0.00,273.00,R,REDACTED PERSONAL DATA,No
Http://opendatacommunities.org/id/metropolitan-district-council/leeds,Leeds City Council,31/12/2019,Children and Families,Social Care,Third Party Payments,Services Rendered By Other Organisations,511,06/12/2019,1912-00016,0.00,451.50,R,REDACTED PERSONAL DATA,No
Http://opendatacommunities.org/id/metropolitan-district-council/leeds,Leeds City Council,31/12/2019,Resources and Housing,HRA Housing Leeds,Capital,Construction,3,13/12/2019,1912-00017,0.00,228123.47,C,A Connolly Limited,No
Http://opendatacommunities.org/id/metropolitan-district-council/leeds,Leeds City Council,31/12/2019,Resources and Housing,Leeds Building Services,Supplies and Services,Other Hired And Contracted Services,265,04/12/2019,1912-00018,0.00,1482.00,R,A Coole Electrical Ltd,No
Http://opendatacommunities.org/id/metropolitan-district-council/leeds,Leeds City Council,31/12/2019,Resources and Housing,Leeds Building Services,Supplies and Services,Other Hired And Contracted Services,265,06/12/2019,1912-00019,0.00,85.00,R,A Coole Electrical Ltd,No
Http://opendatacommunities.org/id/metropolitan-district-council/leeds,Leeds City Council,31/12/2019,Resources and Housing,Leeds Building Services,Supplies and Services,Other Hired And Contracted Services,265,06/12/2019,1912-00020,0.00,3790.00,R,A Coole Electrical Ltd,No
Http://opendatacommunities.org/id/metropolitan-district-council/leeds,Leeds City Council,31/12/2019,Resources and Housing,Leeds Building Services,Supplies and Services,Other Hired And Contracted Services,265,06/12/2019,1912-00021,0.00,3130.00,R,A Coole Electrical Ltd,No
Http://opendatacommunities.org/id/metropolitan-district-council/leeds,Leeds City Council,31/12/2019,Resources and Housing,Leeds Building Services,Supplies and Services,Other Hired And Contracted Services,265,06/12/2019,1912-00022,0.00,3180.00,R,A Coole Electrical Ltd,No
Http://opendatacommunities.org/id/metropolitan-district-council/leeds,Leeds City Council,31/12/2019,Resources and Housing,Leeds Building Services,Supplies and Services,Other Hired And Contracted Services,265,06/12/2019,1912-00023,0.00,3310.20,R,A Coole Electrical Ltd,No
Http://opendatacommunities.org/id/metropolitan-district-council/leeds,Leeds City Council,31/12/2019,Resources and Housing,Leeds Building Services,Supplies and Services,Other Hired And Contracted Services,265,24/12/2019,1912-00024,0.00,85.00,R,A Coole Electrical Ltd,No
Http://opendatacommunities.org/id/metropolitan-district-council/leeds,Leeds City Council,31/12/2019,Resources and Housing,Leeds Building Services,Supplies and Services,Other Hired And Contracted Services,265,30/12/2019,1912-00025,0.00,50.00,R,A Coole Electrical Ltd,No
Http://opendatacommunities.org/id/metropolitan-district-council/leeds,Leeds City Council,31/12/2019,Resources and Housing,Leeds Building Services,Supplies and Services,Other Hired And Contracted Services,265,30/12/2019,1912-00026,0.00,85.00,R,A Coole Electrical Ltd,No
Http://opendatacommunities.org/id/metropolitan-district-council/leeds,Leeds City Council,31/12/2019,Resources and Housing,Leeds Building Services,Supplies and Services,Other Hired And Contracted Services,265,30/12/2019,1912-00027,0.00,85.00,R,A Coole Electrical Ltd,No
Http://opendatacommunities.org/id/metropolitan-district-council/leeds,Leeds City Council,31/12/2019,Resources and Housing,Leeds Building Services,Supplies and Services,Other Hired And Contracted Services,265,30/12/2019,1912-00028,0.00,85.00,R,A Coole Electrical Ltd,No
Http://opendatacommunities.org/id/metropolitan-district-council/leeds,Leeds City Council,31/12/2019,Resources and Housing,Leeds Building Services,Supplies and Services,Other Hired And Contracted Services,265,30/12/2019,1912-00029,0.00,85.00,R,A Coole Electrical Ltd,No
Http://opendatacommunities.org/id/metropolitan-district-council/leeds,Leeds City Council,31/12/2019,Communities and Environment,Customer Access,Supplies and Services,Bought In Professional Services,277,05/12/2019,1912-00030,0.00,18.00,R,A D Dumitru,No
Http://opendatacommunities.org/id/metropolitan-district-council/leeds,Leeds City Council,31/12/2019,Communities and Environment,Customer Access,Supplies and Services,Bought In Professional Services,277,18/12/2019,1912-00031,0.00,18.00,R,A D Dumitru,No
Http://opendatacommunities.org/id/metropolitan-district-council/leeds,Leeds City Council,31/12/2019,Communities and Environment,Customer Access,Supplies and Services,Bought In Professional Services,277,18/12/2019,1912-00032,0.00,31.50,R,A D Dumitru,No
Http://opendatacommunities.org/id/metropolitan-district-council/leeds,Leeds City Council,31/12/2019,Communities and Environment,Customer Access,Supplies and Services,Bought In Professional Services,277,18/12/2019,1912-00033,0.00,18.00,R,A D Dumitru,No
Http://opendatacommunities.org/id/metropolitan-district-council/leeds,Leeds City Council,31/12/2019,Communities and Environment,Customer Access,Supplies and Services,Bought In Professional Services,277,19/12/2019,1912-00034,0.00,18.00,R,A D Dumitru,No
Http://opendatacommunities.org/id/metropolitan-district-council/leeds,Leeds City Council,31/12/2019,Children and Families,Social Care,Third Party Payments,Services Rendered By Voluntary Sector,505,04/12/2019,1912-00035,0.00,3205.80,R,REDACTED PERSONAL DATA,No
Http://opendatacommunities.org/id/metropolitan-district-council/leeds,Leeds City Council,31/12/2019,Children and Families,Social Care,Third Party Payments,Services Rendered By Other Organisations,511,06/12/2019,1912-00036,0.00,1264.20,R,REDACTED PERSONAL DATA,No
Http://opendatacommunities.org/id/metropolitan-district-council/leeds,Leeds City Council,31/12/2019,Children and Families,Social Care,Third Party Payments,Services Rendered By Voluntary Sector,505,06/12/2019,1912-00037,0.00,333.90,R,REDACTED PERSONAL DATA,No
Http://opendatacommunities.org/id/metropolitan-district-council/leeds,Leeds City Council,31/12/2019,City Development,Highways,Supplies and Services,Other Hired And Contracted Services,265,18/12/2019,1912-00038,0.00,7697.41,R,A E Yates Ltd,No
Http://opendatacommunities.org/id/metropolitan-district-council/leeds,Leeds City Council,31/12/2019,Children and Families,Social Care,Third Party Payments,Services Rendered By Other Organisations,511,04/12/2019,1912-00039,0.00,273.00,R,REDACTED PERSONAL DATA,No
Http://opendatacommunities.org/id/metropolitan-district-council/leeds,Leeds City Council,31/12/2019,Children and Families,Social Care,Third Party Payments,Services Rendered By Other Organisations,511,06/12/2019,1912-00040,0.00,903.00,R,REDACTED PERSONAL DATA,No
Http://opendatacommunities.org/id/metropolitan-district-council/leeds,Leeds City Council,31/12/2019,Children and Families,Social Care,Third Party Payments,Services Rendered By Other Organisations,511,06/12/2019,1912-00041,0.00,180.60,R,REDACTED PERSONAL DATA,No
Http://opendatacommunities.org/id/metropolitan-district-council/leeds,Leeds City Council,31/12/2019,Resources and Housing,HRA Housing Leeds,Capital,Other Costs,7,05/12/2019,1912-00042,0.00,100.00,C,REDACTED PERSONAL DATA,No
Http://opendatacommunities.org/id/metropolitan-district-council/leeds,Leeds City Council,31/12/2019,Children and Families,Social Care,Third Party Payments,Services Rendered By Other Organisations,511,06/12/2019,1912-00043,0.00,283.26,R,REDACTED PERSONAL DATA,No
Http://opendatacommunities.org/id/metropolitan-district-council/leeds,Leeds City Council,31/12/2019,Resources and Housing,HRA Housing Leeds,Capital,Other Costs,7,12/12/2019,1912-00044,0.00,217.09,C,REDACTED PERSONAL DATA,No
Http://opendatacommunities.org/id/metropolitan-district-council/leeds,Leeds City Council,31/12/2019,Resources and Housing,Leeds Building Services,Supplies and Services,Operational Materials,205,13/12/2019,1912-00045,0.00,562.00,R,A J H  Pump Supply & Repair Ltd,No
Http://opendatacommunities.org/id/metropolitan-district-council/leeds,Leeds City Council,31/12/2019,Resources and Housing,Leeds Building Services,Supplies and Services,Other Hired And Contracted Services,265,18/12/2019,1912-00046,0.00,352.00,R,A J H  Pump Supply & Repair Ltd,No
Http://opendatacommunities.org/id/metropolitan-district-council/leeds,Leeds City Council,31/12/2019,Resources and Housing,Leeds Building Services,Supplies and Services,Operational Materials,205,20/12/2019,1912-00047,0.00,61.00,R,A J H  Pump Supply & Repair Ltd,No
Http://opendatacommunities.org/id/metropolitan-district-council/leeds,Leeds City Council,31/12/2019,Resources and Housing,Leeds Building Services,Supplies and Services,Operational Materials,205,20/12/2019,1912-00048,0.00,153.38,R,A J H  Pump Supply & Repair Ltd,No
Http://opendatacommunities.org/id/metropolitan-district-council/leeds,Leeds City Council,31/12/2019,Resources and Housing,Leeds Building Services,Supplies and Services,Operational Materials,205,20/12/2019,1912-00049,0.00,57.17,R,A J H  Pump Supply & Repair Ltd,No
Http://opendatacommunities.org/id/metropolitan-district-council/leeds,Leeds City Council,31/12/2019,Resources and Housing,Leeds Building Services,Supplies and Services,Operational Materials,205,20/12/2019,1912-00050,0.00,120.00,R,A J H  Pump Supply & Repair Ltd,No
Http://opendatacommunities.org/id/metropolitan-district-council/leeds,Leeds City Council,31/12/2019,Resources and Housing,Leeds Building Services,Supplies and Services,Operational Materials,205,20/12/2019,1912-00051,0.00,119.23,R,A J H  Pump Supply & Repair Ltd,No
Http://opendatacommunities.org/id/metropolitan-district-council/leeds,Leeds City Council,31/12/2019,Resources and Housing,Leeds Building Services,Supplies and Services,Operational Materials,205,20/12/2019,1912-00052,0.00,50.45,R,A J H  Pump Supply & Repair Ltd,No
Http://opendatacommunities.org/id/metropolitan-district-council/leeds,Leeds City Council,31/12/2019,Resources and Housing,Leeds Building Services,Supplies and Services,Operational Materials,205,20/12/2019,1912-00053,0.00,45.46,R,A J H  Pump Supply & Repair Ltd,No
Http://opendatacommunities.org/id/metropolitan-district-council/leeds,Leeds City Council,31/12/2019,Resources and Housing,Leeds Building Services,Supplies and Services,Operational Materials,205,20/12/2019,1912-00054,0.00,35.90,R,A J H  Pump Supply & Repair Ltd,No
Http://opendatacommunities.org/id/metropolitan-district-council/leeds,Leeds City Council,31/12/2019,Resources and Housing,Leeds Building Services,Supplies and Services,Operational Materials,205,20/12/2019,1912-00055,0.00,109.39,R,A J H  Pump Supply & Repair Ltd,No
Http://opendatacommunities.org/id/metropolitan-district-council/leeds,Leeds City Council,31/12/2019,Resources and Housing,Leeds Building Services,Supplies and Services,Operational Materials,205,20/12/2019,1912-00056,0.00,409.56,R,A J H  Pump Supply & Repair Ltd,No
Http://opendatacommunities.org/id/metropolitan-district-council/leeds,Leeds City Council,31/12/2019,Resources and Housing,Leeds Building Services,Supplies and Services,Operational Materials,205,20/12/2019,1912-00057,0.00,110.00,R,A J H  Pump Supply & Repair Ltd,No
Http://opendatacommunities.org/id/metropolitan-district-council/leeds,Leeds City Council,31/12/2019,Resources and Housing,Leeds Building Services,Supplies and Services,Operational Materials,205,20/12/2019,1912-00058,0.00,102.00,R,A J H  Pump Supply & Repair Ltd,No
Http://opendatacommunities.org/id/metropolitan-district-council/leeds,Leeds City Council,31/12/2019,Resources and Housing,Leeds Building Services,Supplies and Services,Operational Materials,205,20/12/2019,1912-00059,0.00,43.35,R,A J H  Pump Supply & Repair Ltd,No
Http://opendatacommunities.org/id/metropolitan-district-council/leeds,Leeds City Council,31/12/2019,Resources and Housing,Leeds Building Services,Supplies and Services,Operational Materials,205,20/12/2019,1912-00060,0.00,23.84,R,A J H  Pump Supply & Repair Ltd,No
Http://opendatacommunities.org/id/metropolitan-district-council/leeds,Leeds City Council,31/12/2019,Resources and Housing,Leeds Building Services,Supplies and Services,Operational Materials,205,20/12/2019,1912-00061,0.00,112.05,R,A J H  Pump Supply & Repair Ltd,No
Http://opendatacommunities.org/id/metropolitan-district-council/leeds,Leeds City Council,31/12/2019,Resources and Housing,Leeds Building Services,Supplies and Services,Operational Materials,205,20/12/2019,1912-00062,0.00,265.00,R,A J H  Pump Supply & Repair Ltd,No
Http://opendatacommunities.org/id/metropolitan-district-council/leeds,Leeds City Council,31/12/2019,Resources and Housing,Leeds Building Services,Supplies and Services,Operational Materials,205,20/12/2019,1912-00063,0.00,325.00,R,A J H  Pump Supply & Repair Ltd,No
Http://opendatacommunities.org/id/metropolitan-district-council/leeds,Leeds City Council,31/12/2019,Resources and Housing,Leeds Building Services,Supplies and Services,Operational Materials,205,20/12/2019,1912-00064,0.00,48.00,R,A J H  Pump Supply & Repair Ltd,No
Http://opendatacommunities.org/id/metropolitan-district-council/leeds,Leeds City Council,31/12/2019,Resources and Housing,Leeds Building Services,Supplies and Services,Operational Materials,205,20/12/2019,1912-00065,0.00,70.13,R,A J H  Pump Supply & Repair Ltd,No
Http://opendatacommunities.org/id/metropolitan-district-council/leeds,Leeds City Council,31/12/2019,Resources and Housing,Leeds Building Services,Supplies and Services,Operational Materials,205,20/12/2019,1912-00066,0.00,14.00,R,A J H  Pump Supply & Repair Ltd,No
Http://opendatacommunities.org/id/metropolitan-district-council/leeds,Leeds City Council,31/12/2019,Resources and Housing,Leeds Building Services,Supplies and Services,Operational Materials,205,20/12/2019,1912-00067,0.00,136.06,R,A J H  Pump Supply & Repair Ltd,No
Http://opendatacommunities.org/id/metropolitan-district-council/leeds,Leeds City Council,31/12/2019,Resources and Housing,Leeds Building Services,Supplies and Services,Operational Materials,205,20/12/2019,1912-00068,0.00,190.54,R,A J H  Pump Supply & Repair Ltd,No
Http://opendatacommunities.org/id/metropolitan-district-council/leeds,Leeds City Council,31/12/2019,Resources and Housing,Leeds Building Services,Supplies and Services,Operational Materials,205,20/12/2019,1912-00069,0.00,750.00,R,A J H  Pump Supply & Repair Ltd,No
Http://opendatacommunities.org/id/metropolitan-district-council/leeds,Leeds City Council,31/12/2019,Resources and Housing,Leeds Building Services,Supplies and Services,Operational Materials,205,20/12/2019,1912-00070,0.00,180.00,R,A J H  Pump Supply & Repair Ltd,No
Http://opendatacommunities.org/id/metropolitan-district-council/leeds,Leeds City Council,31/12/2019,Resources and Housing,Leeds Building Services,Supplies and Services,Operational Materials,205,20/12/2019,1912-00071,0.00,180.00,R,A J H  Pump Supply & Repair Ltd,No
Http://opendatacommunities.org/id/metropolitan-district-council/leeds,Leeds City Council,31/12/2019,Resources and Housing,Leeds Building Services,Supplies and Services,Operational Materials,205,27/12/2019,1912-00072,0.00,265.00,R,A J H  Pump Supply & Repair Ltd,No
Http://opendatacommunities.org/id/metropolitan-district-council/leeds,Leeds City Council,31/12/2019,Resources and Housing,Leeds Building Services,Supplies and Services,Operational Materials,205,27/12/2019,1912-00073,0.00,14.35,R,A J H  Pump Supply & Repair Ltd,No
Http://opendatacommunities.org/id/metropolitan-district-council/leeds,Leeds City Council,31/12/2019,Resources and Housing,Leeds Building Services,Supplies and Services,Operational Materials,205,27/12/2019,1912-00074,0.00,99.00,R,A J H  Pump Supply & Repair Ltd,No
Http://opendatacommunities.org/id/metropolitan-district-council/leeds,Leeds City Council,31/12/2019,Resources and Housing,Leeds Building Services,Supplies and Services,Operational Materials,205,27/12/2019,1912-00075,0.00,177.87,R,A J H  Pump Supply & Repair Ltd,No
Http://opendatacommunities.org/id/metropolitan-district-council/leeds,Leeds City Council,31/12/2019,Resources and Housing,Leeds Building Services,Supplies and Services,Operational Materials,205,27/12/2019,1912-00076,0.00,680.00,R,A J H  Pump Supply & Repair Ltd,No
Http://opendatacommunities.org/id/metropolitan-district-council/leeds,Leeds City Council,31/12/2019,Resources and Housing,Leeds Building Services,Supplies and Services,Operational Materials,205,27/12/2019,1912-00077,0.00,441.85,R,A J H  Pump Supply & Repair Ltd,No
Http://opendatacommunities.org/id/metropolitan-district-council/leeds,Leeds City Council,31/12/2019,Resources and Housing,Leeds Building Services,Supplies and Services,Operational Materials,205,27/12/2019,1912-00078,0.00,42.00,R,A J H  Pump Supply & Repair Ltd,No
Http://opendatacommunities.org/id/metropolitan-district-council/leeds,Leeds City Council,31/12/2019,Resources and Housing,Leeds Building Services,Supplies and Services,Operational Materials,205,27/12/2019,1912-00079,0.00,1135.90,R,A J H  Pump Supply & Repair Ltd,No
Http://opendatacommunities.org/id/metropolitan-district-council/leeds,Leeds City Council,31/12/2019,Resources and Housing,Leeds Building Services,Supplies and Services,Operational Materials,205,27/12/2019,1912-00080,0.00,574.40,R,A J H  Pump Supply & Repair Ltd,No
Http://opendatacommunities.org/id/metropolitan-district-council/leeds,Leeds City Council,31/12/2019,Resources and Housing,Leeds Building Services,Supplies and Services,Operational Materials,205,27/12/2019,1912-00081,0.00,19.90,R,A J H  Pump Supply & Repair Ltd,No
Http://opendatacommunities.org/id/metropolitan-district-council/leeds,Leeds City Council,31/12/2019,Resources and Housing,Leeds Building Services,Supplies and Services,Operational Materials,205,27/12/2019,1912-00082,0.00,355.00,R,A J H  Pump Supply & Repair Ltd,No
Http://opendatacommunities.org/id/metropolitan-district-council/leeds,Leeds City Council,31/12/2019,Resources and Housing,Leeds Building Services,Supplies and Services,Operational Materials,205,27/12/2019,1912-00083,0.00,116.00,R,A J H  Pump Supply & Repair Ltd,No
Http://opendatacommunities.org/id/metropolitan-district-council/leeds,Leeds City Council,31/12/2019,Resources and Housing,Leeds Building Services,Supplies and Services,Operational Materials,205,27/12/2019,1912-00084,0.00,567.65,R,A J H  Pump Supply & Repair Ltd,No
Http://opendatacommunities.org/id/metropolitan-district-council/leeds,Leeds City Council,31/12/2019,Resources and Housing,Leeds Building Services,Supplies and Services,Operational Materials,205,27/12/2019,1912-00085,0.00,153.00,R,A J H  Pump Supply & Repair Ltd,No
Http://opendatacommunities.org/id/metropolitan-district-council/leeds,Leeds City Council,31/12/2019,Resources and Housing,Leeds Building Services,Supplies and Services,Operational Materials,205,27/12/2019,1912-00086,0.00,31.90,R,A J H  Pump Supply & Repair Ltd,No
Http://opendatacommunities.org/id/metropolitan-district-council/leeds,Leeds City Council,31/12/2019,Resources and Housing,Leeds Building Services,Supplies and Services,Other Hired And Contracted Services,265,30/12/2019,1912-00087,0.00,150.00,R,A J H  Pump Supply & Repair Ltd,No
Http://opendatacommunities.org/id/metropolitan-district-council/leeds,Leeds City Council,31/12/2019,Resources and Housing,Leeds Building Services,Supplies and Services,Operational Materials,205,30/12/2019,1912-00088,0.00,2945.00,R,A J H  Pump Supply & Repair Ltd,No
Http://opendatacommunities.org/id/metropolitan-district-council/leeds,Leeds City Council,31/12/2019,Resources and Housing,Leeds Building Services,Supplies and Services,Operational Materials,205,30/12/2019,1912-00089,0.00,53.35,R,A J H  Pump Supply & Repair Ltd,No
Http://opendatacommunities.org/id/metropolitan-district-council/leeds,Leeds City Council,31/12/2019,Resources and Housing,Leeds Building Services,Supplies and Services,Operational Materials,205,30/12/2019,1912-00090,0.00,55.00,R,A J H  Pump Supply & Repair Ltd,No
Http://opendatacommunities.org/id/metropolitan-district-council/leeds,Leeds City Council,31/12/2019,Resources and Housing,Leeds Building Services,Supplies and Services,Operational Materials,205,30/12/2019,1912-00091,0.00,75.15,R,A J H  Pump Supply & Repair Ltd,No
Http://opendatacommunities.org/id/metropolitan-district-council/leeds,Leeds City Council,31/12/2019,Resources and Housing,Leeds Building Services,Supplies and Services,Operational Materials,205,30/12/2019,1912-00092,0.00,137.95,R,A J H  Pump Supply & Repair Ltd,No
Http://opendatacommunities.org/id/metropolitan-district-council/leeds,Leeds City Council,31/12/2019,Resources and Housing,Leeds Building Services,Supplies and Services,Operational Materials,205,30/12/2019,1912-00093,0.00,6.50,R,A J H  Pump Supply & Repair Ltd,No
Http://opendatacommunities.org/id/metropolitan-district-council/leeds,Leeds City Council,31/12/2019,Resources and Housing,Leeds Building Services,Supplies and Services,Operational Materials,205,30/12/2019,1912-00094,0.00,48.38,R,A J H  Pump Supply & Repair Ltd,No
Http://opendatacommunities.org/id/metropolitan-district-council/leeds,Leeds City Council,31/12/2019,City Development,Libraries  Arts & Heritage,Supplies and Service,Art Galleries Total Stores,3,11/12/2019,1912-00095,0.00,18.75,R,A J Promotions,No
Http://opendatacommunities.org/id/metropolitan-district-council/leeds,Leeds City Council,31/12/2019,City Development,Economic Development,Capital,Furniture And Equipment,5,05/12/2019,1912-00096,0.00,1801.00,C,A J Wells & Sons,No
Http://opendatacommunities.org/id/metropolitan-district-council/leeds,Leeds City Council,31/12/2019,Children and Families,Social Care,Third Party Payments,Services Rendered By Other Organisations,511,04/12/2019,1912-00097,0.00,546.00,R,REDACTED PERSONAL DATA,No
Http://opendatacommunities.org/id/metropolitan-district-council/leeds,Leeds City Council,31/12/2019,Children and Families,Social Care,Third Party Payments,Services Rendered By Other Organisations,511,06/12/2019,1912-00098,0.00,709.50,R,REDACTED PERSONAL DATA,No
Http://opendatacommunities.org/id/metropolitan-district-council/leeds,Leeds City Council,31/12/2019,Children and Families,Social Care,Third Party Payments,Services Rendered By Other Organisations,511,12/12/2019,1912-00099,0.00,558.00,R,A Little Something Extra Ltd,No
Http://opendatacommunities.org/id/metropolitan-district-council/leeds,Leeds City Council,31/12/2019,Children and Families,Social Care,Third Party Payments,Services Rendered By Other Organisations,511,23/12/2019,1912-00100,0.00,186.00,R,A Little Something Extra Ltd,No
Http://opendatacommunities.org/id/metropolitan-district-council/leeds,Leeds City Council,31/12/2019,Children and Families,Social Care,Third Party Payments,Services Rendered By Voluntary Sector,505,24/12/2019,1912-00101,0.00,568.75,R,A Little Something Extra Ltd,No
Http://opendatacommunities.org/id/metropolitan-district-council/leeds,Leeds City Council,31/12/2019,Resources and Housing,HRA Housing Leeds,Capital,Other Costs,7,02/12/2019,1912-00102,0.00,80.00,C,REDACTED PERSONAL DATA,No
Http://opendatacommunities.org/id/metropolitan-district-council/leeds,Leeds City Council,31/12/2019,Communities and Environment,Customer Access,Supplies and Services,Bought In Professional Services,277,05/12/2019,1912-00103,0.00,27.00,R,A Mohammed,No
Http://opendatacommunities.org/id/metropolitan-district-council/leeds,Leeds City Council,31/12/2019,Communities and Environment,Customer Access,Supplies and Services,Bought In Professional Services,277,05/12/2019,1912-00104,0.00,24.00,R,A Mohammed,No
Http://opendatacommunities.org/id/metropolitan-district-council/leeds,Leeds City Council,31/12/2019,Communities and Environment,Customer Access,Supplies and Services,Bought In Professional Services,277,05/12/2019,1912-00105,0.00,18.00,R,A Mohammed,No
Http://opendatacommunities.org/id/metropolitan-district-council/leeds,Leeds City Council,31/12/2019,Communities and Environment,Customer Access,Supplies and Services,Bought In Professional Services,277,18/12/2019,1912-00106,0.00,22.50,R,A Mohammed,No
Http://opendatacommunities.org/id/metropolitan-district-council/leeds,Leeds City Council,31/12/2019,Communities and Environment,Customer Access,Supplies and Services,Bought In Professional Services,277,18/12/2019,1912-00107,0.00,18.00,R,A Mohammed,No
Http://opendatacommunities.org/id/metropolitan-district-council/leeds,Leeds City Council,31/12/2019,Communities and Environment,Customer Access,Supplies and Services,Bought In Professional Services,277,18/12/2019,1912-00108,0.00,18.00,R,A Mohammed,No
Http://opendatacommunities.org/id/metropolitan-district-council/leeds,Leeds City Council,31/12/2019,Communities and Environment,Customer Access,Supplies and Services,Bought In Professional Services,277,18/12/2019,1912-00109,0.00,36.00,R,A Mohammed,No
Http://opendatacommunities.org/id/metropolitan-district-council/leeds,Leeds City Council,31/12/2019,Communities and Environment,Customer Access,Supplies and Services,Bought In Professional Services,277,18/12/2019,1912-00110,0.00,9.00,R,A Mohammed,No
Http://opendatacommunities.org/id/metropolitan-district-council/leeds,Leeds City Council,31/12/2019,Communities and Environment,Customer Access,Supplies and Services,Bought In Professional Services,277,18/12/2019,1912-00111,0.00,27.00,R,A Mohammed,No
Http://opendatacommunities.org/id/metropolitan-district-council/leeds,Leeds City Council,31/12/2019,Communities and Environment,Customer Access,Supplies and Services,Bought In Professional Services,277,18/12/2019,1912-00112,0.00,18.00,R,A Mohammed,No
Http://opendatacommunities.org/id/metropolitan-district-council/leeds,Leeds City Council,31/12/2019,Communities and Environment,Customer Access,Supplies and Services,Bought In Professional Services,277,18/12/2019,1912-00113,0.00,18.00,R,A Mohammed,No
Http://opendatacommunities.org/id/metropolitan-district-council/leeds,Leeds City Council,31/12/2019,Communities and Environment,Customer Access,Supplies and Services,Bought In Professional Services,277,19/12/2019,1912-00114,0.00,22.50,R,A Mohammed,No
Http://opendatacommunities.org/id/metropolitan-district-council/leeds,Leeds City Council,31/12/2019,Communities and Environment,Customer Access,Supplies and Services,Bought In Professional Services,277,19/12/2019,1912-00115,0.00,18.00,R,A Mohammed,No
Http://opendatacommunities.org/id/metropolitan-district-council/leeds,Leeds City Council,31/12/2019,Communities and Environment,Customer Access,Supplies and Services,Bought In Professional Services,277,19/12/2019,1912-00116,0.00,58.50,R,A Mohammed,No
Http://opendatacommunities.org/id/metropolitan-district-council/leeds,Leeds City Council,31/12/2019,Communities and Environment,Customer Access,Supplies and Services,Bought In Professional Services,277,19/12/2019,1912-00117,0.00,18.00,R,A Mohammed,No
Http://opendatacommunities.org/id/metropolitan-district-council/leeds,Leeds City Council,31/12/2019,Communities and Environment,Customer Access,Supplies and Services,Bought In Professional Services,277,19/12/2019,1912-00118,0.00,18.00,R,A Mohammed,No
Http://opendatacommunities.org/id/metropolitan-district-council/leeds,Leeds City Council,31/12/2019,Communities and Environment,Customer Access,Supplies and Services,Bought In Professional Services,277,19/12/2019,1912-00119,0.00,18.00,R,A Mohammed,No
Http://opendatacommunities.org/id/metropolitan-district-council/leeds,Leeds City Council,31/12/2019,Communities and Environment,Customer Access,Supplies and Services,Bought In Professional Services,277,19/12/2019,1912-00120,0.00,18.00,R,A Mohammed,No
Http://opendatacommunities.org/id/metropolitan-district-council/leeds,Leeds City Council,31/12/2019,Communities and Environment,Customer Access,Supplies and Services,Bought In Professional Services,277,19/12/2019,1912-00121,0.00,18.00,R,A Mohammed,No
Http://opendatacommunities.org/id/metropolitan-district-council/leeds,Leeds City Council,31/12/2019,Communities and Environment,Customer Access,Supplies and Services,Bought In Professional Services,277,19/12/2019,1912-00122,0.00,18.00,R,A Mohammed,No
Http://opendatacommunities.org/id/metropolitan-district-council/leeds,Leeds City Council,31/12/2019,Resources and Housing,HRA Housing Leeds,Capital,Other Costs,7,12/12/2019,1912-00123,0.00,100.00,C,REDACTED PERSONAL DATA,No
Http://opendatacommunities.org/id/metropolitan-district-council/leeds,Leeds City Council,31/12/2019,Communities and Environment,Customer Access,Supplies and Services,Bought In Professional Services,277,19/12/2019,1912-00124,0.00,22.50,R,A Musalam,No
Http://opendatacommunities.org/id/metropolitan-district-council/leeds,Leeds City Council,31/12/2019,Children and Families,Social Care,Third Party Payments,Services Rendered By Other Organisations,511,04/12/2019,1912-00125,0.00,1365.00,R,REDACTED PERSONAL DATA,No
Http://opendatacommunities.org/id/metropolitan-district-council/leeds,Leeds City Council,31/12/2019,Children and Families,Social Care,Third Party Payments,Services Rendered By Other Organisations,511,06/12/2019,1912-00126,0.00,2257.50,R,REDACTED PERSONAL DATA,No
Http://opendatacommunities.org/id/metropolitan-district-council/leeds,Leeds City Council,31/12/2019,Children and Families,Social Care,Third Party Payments,Services Rendered By Other Organisations,511,06/12/2019,1912-00127,0.00,222.60,R,REDACTED PERSONAL DATA,No
Http://opendatacommunities.org/id/metropolitan-district-council/leeds,Leeds City Council,31/12/2019,Communities and Environment,Customer Access,Supplies and Services,Bought In Professional Services,277,05/12/2019,1912-00128,0.00,18.00,R,A Namaki,No
Http://opendatacommunities.org/id/metropolitan-district-council/leeds,Leeds City Council,31/12/2019,Communities and Environment,Customer Access,Supplies and Services,Bought In Professional Services,277,05/12/2019,1912-00129,0.00,18.00,R,A Namaki,No
Http://opendatacommunities.org/id/metropolitan-district-council/leeds,Leeds City Council,31/12/2019,Communities and Environment,Customer Access,Supplies and Services,Bought In Professional Services,277,05/12/2019,1912-00130,0.00,27.00,R,A Namaki,No
Http://opendatacommunities.org/id/metropolitan-district-council/leeds,Leeds City Council,31/12/2019,Communities and Environment,Customer Access,Supplies and Services,Bought In Professional Services,277,05/12/2019,1912-00131,0.00,18.00,R,A Namaki,No
Http://opendatacommunities.org/id/metropolitan-district-council/leeds,Leeds City Council,31/12/2019,Communities and Environment,Customer Access,Supplies and Services,Bought In Professional Services,277,05/12/2019,1912-00132,0.00,18.00,R,A Namaki,No
Http://opendatacommunities.org/id/metropolitan-district-council/leeds,Leeds City Council,31/12/2019,Communities and Environment,Customer Access,Supplies and Services,Bought In Professional Services,277,05/12/2019,1912-00133,0.00,49.50,R,A Namaki,No
Http://opendatacommunities.org/id/metropolitan-district-council/leeds,Leeds City Council,31/12/2019,Communities and Environment,Customer Access,Supplies and Services,Bought In Professional Services,277,05/12/2019,1912-00134,0.00,18.00,R,A Namaki,No
Http://opendatacommunities.org/id/metropolitan-district-council/leeds,Leeds City Council,31/12/2019,Communities and Environment,Customer Access,Supplies and Services,Bought In Professional Services,277,05/12/2019,1912-00135,0.00,18.00,R,A Namaki,No
Http://opendatacommunities.org/id/metropolitan-district-council/leeds,Leeds City Council,31/12/2019,Communities and Environment,Customer Access,Supplies and Services,Bought In Professional Services,277,05/12/2019,1912-00136,0.00,18.00,R,A Namaki,No
Http://opendatacommunities.org/id/metropolitan-district-council/leeds,Leeds City Council,31/12/2019,Communities and Environment,Customer Access,Supplies and Services,Bought In Professional Services,277,05/12/2019,1912-00137,0.00,18.00,R,A Namaki,No
Http://opendatacommunities.org/id/metropolitan-district-council/leeds,Leeds City Council,31/12/2019,Communities and Environment,Customer Access,Supplies and Services,Bought In Professional Services,277,05/12/2019,1912-00138,0.00,18.00,R,A Namaki,No
Http://opendatacommunities.org/id/metropolitan-district-council/leeds,Leeds City Council,31/12/2019,Communities and Environment,Customer Access,Supplies and Services,Bought In Professional Services,277,05/12/2019,1912-00139,0.00,18.00,R,A Namaki,No
Http://opendatacommunities.org/id/metropolitan-district-council/leeds,Leeds City Council,31/12/2019,Children and Families,Social Care,Third Party Payments,Contact,548,06/12/2019,1912-00140,0.00,11.50,R,REDACTED PERSONAL DATA,No
Http://opendatacommunities.org/id/metropolitan-district-council/leeds,Leeds City Council,31/12/2019,Children and Families,Social Care,Third Party Payments,Contact,548,13/12/2019,1912-00141,0.00,11.50,R,REDACTED PERSONAL DATA,No
Http://opendatacommunities.org/id/metropolitan-district-council/leeds,Leeds City Council,31/12/2019,Children and Families,Social Care,Third Party Payments,Contact,548,20/12/2019,1912-00142,0.00,11.50,R,REDACTED PERSONAL DATA,No
Http://opendatacommunities.org/id/metropolitan-district-council/leeds,Leeds City Council,31/12/2019,Children and Families,Social Care,Third Party Payments,Contact,548,27/12/2019,1912-00143,0.00,11.50,R,REDACTED PERSONAL DATA,No
Http://opendatacommunities.org/id/metropolitan-district-council/leeds,Leeds City Council,31/12/2019,Children and Families,Social Care,Third Party Payments,Services Rendered By Other Organisations,511,06/12/2019,1912-00144,0.00,225.75,R,REDACTED PERSONAL DATA,No
Http://opendatacommunities.org/id/metropolitan-district-council/leeds,Leeds City Council,31/12/2019,Communities and Environment,Communities,Supplies and Services,Other Hired And Contracted Services,265,17/12/2019,1912-00145,0.00,75.00,R,REDACTED PERSONAL DATA,No
Http://opendatacommunities.org/id/metropolitan-district-council/leeds,Leeds City Council,31/12/2019,Communities and Environment,Waste Management,Employees,Training & Development,70,18/12/2019,1912-00146,0.00,108.00,R,A T Nerac Ltd,No
Http://opendatacommunities.org/id/metropolitan-district-council/leeds,Leeds City Council,31/12/2019,Children and Families,Social Care,Third Party Payments,Independent Fostering Agencies,509,05/12/2019,1912-00147,0.00,1406.00,R,A Taxis,No
Http://opendatacommunities.org/id/metropolitan-district-council/leeds,Leeds City Council,31/12/2019,Children and Families,Social Care,Third Party Payments,Services Rendered By Other Organisations,511,06/12/2019,1912-00148,0.00,451.50,R,REDACTED PERSONAL DATA,No
Http://opendatacommunities.org/id/metropolitan-district-council/leeds,Leeds City Council,31/12/2019,Children and Families,Social Care,Third Party Payments,Section 17,551,13/12/2019,1912-00149,0.00,790.25,R,REDACTED PERSONAL DATA,No
Http://opendatacommunities.org/id/metropolitan-district-council/leeds,Leeds City Council,31/12/2019,Resources and Housing,HRA Housing Leeds,Capital,Other Costs,7,12/12/2019,1912-00150,0.00,100.00,C,REDACTED PERSONAL DATA,No
Http://opendatacommunities.org/id/metropolitan-district-council/leeds,Leeds City Council,31/12/2019,Children and Families,Social Care,Third Party Payments,Services Rendered By Other Organisations,511,06/12/2019,1912-00151,0.00,677.25,R,REDACTED PERSONAL DATA,No
Http://opendatacommunities.org/id/metropolitan-district-council/leeds,Leeds City Council,31/12/2019,Children and Families,Social Care,Third Party Payments,General External Residential Placements,507,03/12/2019,1912-00152,0.00,1680.00,R,A Wilderness Way Ltd,No
Http://opendatacommunities.org/id/metropolitan-district-council/leeds,Leeds City Council,31/12/2019,Children and Families,Social Care,Third Party Payments,General External Residential Placements,507,04/12/2019,1912-00153,0.00,27857.10,R,A Wilderness Way Ltd,No
Http://opendatacommunities.org/id/metropolitan-district-council/leeds,Leeds City Council,31/12/2019,Children and Families,Social Care,Third Party Payments,General External Residential Placements,507,04/12/2019,1912-00154,0.00,28037.10,R,A Wilderness Way Ltd,No
Http://opendatacommunities.org/id/metropolitan-district-council/leeds,Leeds City Council,31/12/2019,Children and Families,Social Care,Third Party Payments,General External Residential Placements,507,04/12/2019,1912-00155,0.00,414.30,R,A Wilderness Way Ltd,No
Http://opendatacommunities.org/id/metropolitan-district-council/leeds,Leeds City Council,31/12/2019,Children and Families,Social Care,Third Party Payments,General External Residential Placements,507,04/12/2019,1912-00156,0.00,70.20,R,A Wilderness Way Ltd,No
Http://opendatacommunities.org/id/metropolitan-district-council/leeds,Leeds City Council,31/12/2019,Children and Families,Social Care,Third Party Payments,General External Residential Placements,507,31/12/2019,1912-00157,0.00,393.30,R,A Wilderness Way Ltd,No
Http://opendatacommunities.org/id/metropolitan-district-council/leeds,Leeds City Council,31/12/2019,Resources and Housing,HRA Housing Leeds,Capital,Other Costs,7,02/12/2019,1912-00158,0.00,100.00,C,REDACTED PERSONAL DATA,No
Http://opendatacommunities.org/id/metropolitan-district-council/leeds,Leeds City Council,31/12/2019,Communities and Environment,Waste Management,Capital,Furniture And Equipment,5,02/12/2019,1912-00159,0.00,13960.00,C,A&C Weber Uk Ltd,No
Http://opendatacommunities.org/id/metropolitan-district-council/leeds,Leeds City Council,31/12/2019,Communities and Environment,Waste Management,Capital,Furniture And Equipment,5,06/12/2019,1912-00160,0.00,1390.00,C,A&C Weber Uk Ltd,No
Http://opendatacommunities.org/id/metropolitan-district-council/leeds,Leeds City Council,31/12/2019,City Development,Libraries  Arts & Heritage,Support Services,Internal Incometo City  Development,891,09/12/2019,1912-00161,0.00,-527.00,R,A1 Sporting Speakers & Guest Ltd,No
Http://opendatacommunities.org/id/metropolitan-district-council/leeds,Leeds City Council,31/12/2019,City Development,Libraries  Arts & Heritage,Income,Arts/Sports Facility Hire,920,09/12/2019,1912-00162,0.00,-2279.50,R,A1 Sporting Speakers & Guest Ltd,No
Http://opendatacommunities.org/id/metropolitan-district-council/leeds,Leeds City Council,31/12/2019,City Development,Libraries  Arts & Heritage,Income,Other cultural & rec fees & charges,924,09/12/2019,1912-00163,0.00,-408.00,R,A1 Sporting Speakers & Guest Ltd,No
Http://opendatacommunities.org/id/metropolitan-district-council/leeds,Leeds City Council,31/12/2019,City Development,Libraries  Arts & Heritage,Income,Admissions  Booking Fees & Ticket Sales,933,09/12/2019,1912-00164,0.00,19780.00,R,A1 Sporting Speakers & Guest Ltd,No
Http://opendatacommunities.org/id/metropolitan-district-council/leeds,Leeds City Council,31/12/2019,City Development,Libraries  Arts & Heritage,Income,Other Income,973,09/12/2019,1912-00165,0.00,-493.00,R,A1 Sporting Speakers & Guest Ltd,No
Http://opendatacommunities.org/id/metropolitan-district-council/leeds,Leeds City Council,31/12/2019,Resources and Housing,Leeds Building Services,Supplies and Services,Operational Materials,205,02/12/2019,1912-00166,0.00,725.00,R,A1 Stair Lift Services,No
Http://opendatacommunities.org/id/metropolitan-district-council/leeds,Leeds City Council,31/12/2019,Resources and Housing,Leeds Building Services,Supplies and Services,Operational Materials,205,10/12/2019,1912-00167,0.00,595.00,R,A1 Stair Lift Services,No
Http://opendatacommunities.org/id/metropolitan-district-council/leeds,Leeds City Council,31/12/2019,Resources and Housing,Leeds Building Services,Supplies and Services,Operational Materials,205,10/12/2019,1912-00168,0.00,297.95,R,A1 Stair Lift Services,No
Http://opendatacommunities.org/id/metropolitan-district-council/leeds,Leeds City Council,31/12/2019,Resources and Housing,Leeds Building Services,Supplies and Services,Other Hired And Contracted Services,265,30/12/2019,1912-00169,0.00,13790.00,R,A1 Stair Lift Services,No
Http://opendatacommunities.org/id/metropolitan-district-council/leeds,Leeds City Council,31/12/2019,Resources and Housing,Leeds Building Services,Supplies and Services,Operational Materials,205,31/12/2019,1912-00170,0.00,575.00,R,A1 Stair Lift Services,No
Http://opendatacommunities.org/id/metropolitan-district-council/leeds,Leeds City Council,31/12/2019,Resources and Housing,Leeds Building Services,Supplies and Services,Operational Materials,205,06/12/2019,1912-00171,0.00,90.00,R,Aalco Leeds,No
Http://opendatacommunities.org/id/metropolitan-district-council/leeds,Leeds City Council,31/12/2019,Children and Families,Social Care,Third Party Payments,Placement Support,550,05/12/2019,1912-00172,0.00,120.00,R,REDACTED PERSONAL DATA,No
Http://opendatacommunities.org/id/metropolitan-district-council/leeds,Leeds City Council,31/12/2019,Children and Families,Social Care,Third Party Payments,Placement Support,550,13/12/2019,1912-00173,0.00,40.00,R,REDACTED PERSONAL DATA,No
Http://opendatacommunities.org/id/metropolitan-district-council/leeds,Leeds City Council,31/12/2019,Children and Families,Social Care,Third Party Payments,Placement Support,550,18/12/2019,1912-00174,0.00,80.00,R,REDACTED PERSONAL DATA,No
Http://opendatacommunities.org/id/metropolitan-district-council/leeds,Leeds City Council,31/12/2019,Children and Families,Social Care,Third Party Payments,Placement Support,550,20/12/2019,1912-00175,0.00,80.00,R,REDACTED PERSONAL DATA,No
Http://opendatacommunities.org/id/metropolitan-district-council/leeds,Leeds City Council,31/12/2019,Children and Families,Social Care,Transfer Payments,16 Plus Top Up Allowance,625,06/12/2019,1912-00176,0.00,20.00,R,REDACTED PERSONAL DATA,No
Http://opendatacommunities.org/id/metropolitan-district-council/leeds,Leeds City Council,31/12/2019,Children and Families,Social Care,Transfer Payments,16 Plus Top Up Allowance,625,13/12/2019,1912-00177,0.00,20.00,R,REDACTED PERSONAL DATA,No
Http://opendatacommunities.org/id/metropolitan-district-council/leeds,Leeds City Council As Accountable Body,31/12/2019,Social Services Pooled Budgets,Leeds Community Equip Store Pooled Budgt,Supplies and Services,Other Equipment,203,04/12/2019,1912-00178,0.00,444.00,R,Aat (Gb) Ltd,No
Http://opendatacommunities.org/id/metropolitan-district-council/leeds,Leeds City Council,31/12/2019,Adults and Health,Social Services Support Services,Transport,Public Transport Expenses,310,24/12/2019,1912-00179,0.00,-19.00,R,Ab Cars,No
Http://opendatacommunities.org/id/metropolitan-district-council/leeds,Leeds City Council,31/12/2019,Adults and Health,Social Services Support Services,Transport,Public Transport Expenses,310,24/12/2019,1912-00180,0.00,361.00,R,Ab Cars,No
Http://opendatacommunities.org/id/metropolitan-district-council/leeds,Leeds City Council,31/12/2019,Communities And Environment,Parks And Countryside  ,Supplies and Services,Resaleable Materials,204,19/11/2019,1912-00181,0.00,77.82,R,Abacus Cards Ltd,Yes
Http://opendatacommunities.org/id/metropolitan-district-council/leeds,Leeds City Council,31/12/2019,Communities And Environment,Car Parking Services  ,Supplies and Services,Postages,212,25/11/2019,1912-00182,0.00,16.50,R,Abacus Express,Yes
Http://opendatacommunities.org/id/metropolitan-district-council/leeds,Leeds City Council,31/12/2019,Resources and Housing,Sustainable Energy & Climate Change,Capital,Other Costs,7,17/12/2019,1912-00183,0.00,1500.00,C,REDACTED COMMERCIAL CONFIDENTIALITY,No
Http://opendatacommunities.org/id/metropolitan-district-council/leeds,Leeds City Council,31/12/2019,Adults and Health,Services For Adults Under 65 Mental/Dis,Third Party Payments,Nursing Home,570,11/12/2019,1912-00184,0.00,1924.00,R,Abbey Grange Nursing Home,No
Http://opendatacommunities.org/id/metropolitan-district-council/leeds,Leeds City Council,31/12/2019,Children and Families,Learning,Supplies and Services,Other Hired And Contracted Services,265,06/12/2019,1912-00185,0.00,2328.32,R,Abbey Multi Academy Trust,No
Http://opendatacommunities.org/id/metropolitan-district-council/leeds,Leeds City Council,31/12/2019,Children and Families,Learning,Supplies and Services,Other Hired And Contracted Services,265,10/12/2019,1912-00186,0.00,100.00,R,Abbey Multi Academy Trust,No
Http://opendatacommunities.org/id/metropolitan-district-council/leeds,Leeds City Council,31/12/2019,Children and Families,Learning,Supplies and Services,Other Hired And Contracted Services,265,10/12/2019,1912-00187,0.00,1080.00,R,Abbey Multi Academy Trust,No
Http://opendatacommunities.org/id/metropolitan-district-council/leeds,Leeds City Council,31/12/2019,Children and Families,Learning,Supplies and Services,Other Hired And Contracted Services,265,27/12/2019,1912-00188,0.00,213.60,R,Abbey Multi Academy Trust,No
Http://opendatacommunities.org/id/metropolitan-district-council/leeds,Leeds City Council,31/12/2019,Children and Families,Learning,Supplies and Services,Other Hired And Contracted Services,265,27/12/2019,1912-00189,0.00,50.00,R,Abbey Multi Academy Trust,No
Http://opendatacommunities.org/id/metropolitan-district-council/leeds,Leeds City Council,31/12/2019,Children and Families,Learning,Supplies and Services,Other Hired And Contracted Services,265,27/12/2019,1912-00190,0.00,349.20,R,Abbey Multi Academy Trust,No
Http://opendatacommunities.org/id/metropolitan-district-council/leeds,Leeds City Council,31/12/2019,Children and Families,Learning,Supplies and Services,Other Hired And Contracted Services,265,27/12/2019,1912-00191,0.00,255.70,R,Abbey Multi Academy Trust,No
Http://opendatacommunities.org/id/metropolitan-district-council/leeds,Leeds City Council,31/12/2019,Children and Families,Social Care,Supplies and Services,Conference Meetings,253,27/12/2019,1912-00192,0.00,50.00,R,Abbey Multi Academy Trust,No
Http://opendatacommunities.org/id/metropolitan-district-council/leeds,Leeds City Council,31/12/2019,Children and Families,Social Care,Supplies and Services,Conference Meetings,253,27/12/2019,1912-00193,0.00,706.50,R,Abbey Multi Academy Trust,No
Http://opendatacommunities.org/id/metropolitan-district-council/leeds,Leeds City Council,31/12/2019,Children and Families,Learning,Supplies and Services,Other Hired And Contracted Services,265,27/12/2019,1912-00194,0.00,451.45,R,Abbey Multi Academy Trust,No
Http://opendatacommunities.org/id/metropolitan-district-council/leeds,Leeds City Council,31/12/2019,Children and Families,Learning,Supplies and Services,Other Hired And Contracted Services,265,27/12/2019,1912-00195,0.00,234.50,R,Abbey Multi Academy Trust,No
Http://opendatacommunities.org/id/metropolitan-district-council/leeds,Leeds City Council,31/12/2019,Children and Families,Learning,Supplies and Services,Other Hired And Contracted Services,265,27/12/2019,1912-00196,0.00,52.50,R,Abbey Multi Academy Trust,No
Http://opendatacommunities.org/id/metropolitan-district-council/leeds,Leeds City Council,31/12/2019,Children and Families,Learning,Supplies and Services,Other Hired And Contracted Services,265,27/12/2019,1912-00197,0.00,82.00,R,Abbey Multi Academy Trust,No
Http://opendatacommunities.org/id/metropolitan-district-council/leeds,Leeds City Council,31/12/2019,Children and Families,Learning,Supplies and Services,Other Hired And Contracted Services,265,27/12/2019,1912-00198,0.00,263.60,R,Abbey Multi Academy Trust,No
Http://opendatacommunities.org/id/metropolitan-district-council/leeds,Leeds City Council,31/12/2019,Children and Families,Social Care,Third Party Payments,Allowances,546,17/12/2019,1912-00199,0.00,885.16,R,ABBIE OMAHONY,No
Http://opendatacommunities.org/id/metropolitan-district-council/leeds,Leeds City Council,31/12/2019,Children and Families,Social Care,Third Party Payments,Services Rendered By Other Organisations,511,04/12/2019,1912-00200,0.00,2925.00,R,Abc Daycare And Ozone Out Of School,No
Http://opendatacommunities.org/id/metropolitan-district-council/leeds,Leeds City Council,31/12/2019,Children and Families,Social Care,Third Party Payments,Services Rendered By Other Organisations,511,06/12/2019,1912-00201,0.00,3483.00,R,Abc Daycare And Ozone Out Of School,No
Http://opendatacommunities.org/id/metropolitan-district-council/leeds,Leeds City Council,31/12/2019,Children and Families,Social Care,Third Party Payments,Services Rendered By Other Organisations,511,06/12/2019,1912-00202,0.00,111.30,R,Abc Daycare And Ozone Out Of School,No
Http://opendatacommunities.org/id/metropolitan-district-council/leeds,Leeds City Council,31/12/2019,Communities and Environment,Elections  Licensing and Registration,Premises,Rents,141,27/12/2019,1912-00203,0.00,160.00,R,Abc Daycare And Ozone Out Of School,No
Http://opendatacommunities.org/id/metropolitan-district-council/leeds,Leeds City Council,31/12/2019,Children and Families,Social Care,Third Party Payments,Services Rendered By Other Organisations,511,04/12/2019,1912-00204,0.00,4199.00,R,Abc Nursery At Lufc,No
Http://opendatacommunities.org/id/metropolitan-district-council/leeds,Leeds City Council,31/12/2019,Children and Families,Social Care,Third Party Payments,Services Rendered By Other Organisations,511,06/12/2019,1912-00205,0.00,1214.75,R,Abc Nursery At Lufc,No
Http://opendatacommunities.org/id/metropolitan-district-council/leeds,Leeds City Council,31/12/2019,Children and Families,Social Care,Third Party Payments,Services Rendered By Other Organisations,511,06/12/2019,1912-00206,0.00,397.50,R,Abc Nursery At Lufc,No
Http://opendatacommunities.org/id/metropolitan-district-council/leeds,Leeds City Council,31/12/2019,Children and Families,Social Care,Third Party Payments,Services Rendered By Other Organisations,511,04/12/2019,1912-00207,0.00,2457.00,R,Abc@D'S Childcare,No
Http://opendatacommunities.org/id/metropolitan-district-council/leeds,Leeds City Council,31/12/2019,Children and Families,Social Care,Third Party Payments,Services Rendered By Other Organisations,511,06/12/2019,1912-00208,0.00,7224.00,R,Abc@D'S Childcare,No
Http://opendatacommunities.org/id/metropolitan-district-council/leeds,Leeds City Council,31/12/2019,Children and Families,Social Care,Third Party Payments,Services Rendered By Other Organisations,511,06/12/2019,1912-00209,0.00,222.60,R,Abc@D'S Childcare,No
Http://opendatacommunities.org/id/metropolitan-district-council/leeds,Leeds City Council,31/12/2019,Resources and Housing,Sustainable Energy & Climate Change,Capital,Other Costs,7,30/12/2019,1912-00210,0.00,1500.00,C,REDACTED COMMERCIAL CONFIDENTIALITY,No
Http://opendatacommunities.org/id/metropolitan-district-council/leeds,Leeds City Council,31/12/2019,Communities and Environment,Customer Access,Supplies and Services,Bought In Professional Services,277,05/12/2019,1912-00211,0.00,22.50,R,Abdul Kalam,No
Http://opendatacommunities.org/id/metropolitan-district-council/leeds,Leeds City Council,31/12/2019,Communities and Environment,Customer Access,Supplies and Services,Bought In Professional Services,277,18/12/2019,1912-00212,0.00,24.00,R,Abdul Kalam,No
Http://opendatacommunities.org/id/metropolitan-district-council/leeds,Leeds City Council,31/12/2019,Communities and Environment,Customer Access,Supplies and Services,Bought In Professional Services,277,19/12/2019,1912-00213,0.00,18.00,R,Abdul Kalam,No
Http://opendatacommunities.org/id/metropolitan-district-council/leeds,Leeds City Council,31/12/2019,Communities and Environment,Customer Access,Supplies and Services,Bought In Professional Services,277,19/12/2019,1912-00214,0.00,18.00,R,Abdul Kalam,No
Http://opendatacommunities.org/id/metropolitan-district-council/leeds,Leeds City Council,31/12/2019,Resources and Housing,Sustainable Energy & Climate Change,Capital,Other Costs,7,12/12/2019,1912-00215,0.00,10000.00,C,REDACTED COMMERCIAL CONFIDENTIALITY,No
Http://opendatacommunities.org/id/metropolitan-district-council/leeds,Leeds City Council,31/12/2019,Resources and Housing,Sustainable Energy & Climate Change,Capital,Other Costs,7,30/12/2019,1912-00216,0.00,1500.00,C,REDACTED COMMERCIAL CONFIDENTIALITY,No
Http://opendatacommunities.org/id/metropolitan-district-council/leeds,Leeds City Council,31/12/2019,Communities and Environment,Customer Access,Supplies and Services,Bought In Professional Services,277,05/12/2019,1912-00217,0.00,18.00,R,Abdulahad Denha,No
Http://opendatacommunities.org/id/metropolitan-district-council/leeds,Leeds City Council,31/12/2019,Communities and Environment,Customer Access,Supplies and Services,Bought In Professional Services,277,05/12/2019,1912-00218,0.00,9.00,R,Abdulahad Denha,No
Http://opendatacommunities.org/id/metropolitan-district-council/leeds,Leeds City Council,31/12/2019,Communities and Environment,Customer Access,Supplies and Services,Bought In Professional Services,277,18/12/2019,1912-00219,0.00,36.00,R,Abdulahad Denha,No
Http://opendatacommunities.org/id/metropolitan-district-council/leeds,Leeds City Council,31/12/2019,Communities and Environment,Customer Access,Supplies and Services,Bought In Professional Services,277,18/12/2019,1912-00220,0.00,18.00,R,Abdulahad Denha,No
Http://opendatacommunities.org/id/metropolitan-district-council/leeds,Leeds City Council,31/12/2019,Communities and Environment,Customer Access,Supplies and Services,Bought In Professional Services,277,19/12/2019,1912-00221,0.00,27.00,R,Abdulahad Denha,No
Http://opendatacommunities.org/id/metropolitan-district-council/leeds,Leeds City Council,31/12/2019,Communities and Environment,Customer Access,Supplies and Services,Bought In Professional Services,277,19/12/2019,1912-00222,0.00,27.00,R,Abdulahad Denha,No
Http://opendatacommunities.org/id/metropolitan-district-council/leeds,Leeds City Council,31/12/2019,Communities and Environment,Customer Access,Supplies and Services,Bought In Professional Services,277,19/12/2019,1912-00223,0.00,18.00,R,Abdulahad Denha,No
Http://opendatacommunities.org/id/metropolitan-district-council/leeds,Leeds City Council,31/12/2019,Strategic Landlord,Housing Management,Supplies and Services,Compensation Claims,200,10/12/2019,1912-00224,0.00,500.00,R,REDACTED PERSONAL DATA,No
Http://opendatacommunities.org/id/metropolitan-district-council/leeds,Leeds City Council,31/12/2019,Adults and Health,Services For Older People - 65 And Over,Third Party Payments,Nursing Home,570,11/12/2019,1912-00225,0.00,34359.40,R,Aberford Hall,No
Http://opendatacommunities.org/id/metropolitan-district-council/leeds,Leeds City Council,31/12/2019,Adults and Health,Services For Older People - 65 And Over,Third Party Payments,Residential,580,11/12/2019,1912-00226,0.00,1667.40,R,Aberford Hall,No
Http://opendatacommunities.org/id/metropolitan-district-council/leeds,Leeds City Council,31/12/2019,Communities and Environment,Elections  Licensing and Registration,Premises,Rents,141,27/12/2019,1912-00227,0.00,400.00,R,Aberford Village Hall,No
Http://opendatacommunities.org/id/metropolitan-district-council/leeds,Leeds City Council,31/12/2019,Resources and Housing,Leeds Building Services,Supplies and Services,Operational Materials,205,30/12/2019,1912-00228,0.00,10.83,R,Abi Garage Doors Ltd,No
Http://opendatacommunities.org/id/metropolitan-district-council/leeds,Leeds City Council,31/12/2019,Resources and Housing,Leeds Building Services,Supplies and Services,Operational Materials,205,30/12/2019,1912-00229,0.00,10.83,R,Abi Garage Doors Ltd,No
Http://opendatacommunities.org/id/metropolitan-district-council/leeds,Leeds City Council,31/12/2019,Resources and Housing,Sustainable Energy & Climate Change,Capital,Other Costs,7,16/12/2019,1912-00230,0.00,10000.00,C,REDACTED COMMERCIAL CONFIDENTIALITY,No
Http://opendatacommunities.org/id/metropolitan-district-council/leeds,Leeds City Council,31/12/2019,Adults and Health,Services For Adults Under 65 Mental/Dis,Third Party Payments,Fees - Level 4,520,06/12/2019,1912-00231,0.00,175.00,R,Abubaker Denja Mohammed,No
Http://opendatacommunities.org/id/metropolitan-district-council/leeds,Leeds City Council,31/12/2019,Adults and Health,Services For Adults Under 65 Mental/Dis,Third Party Payments,Fees - Level 4,520,06/12/2019,1912-00232,0.00,227.46,R,Abubaker Denja Mohammed,No
Http://opendatacommunities.org/id/metropolitan-district-council/leeds,Leeds City Council,31/12/2019,Adults and Health,Services For Adults Under 65 Mental/Dis,Third Party Payments,Fees - Level 4,520,06/12/2019,1912-00233,0.00,175.00,R,Abubaker Denja Mohammed,No
Http://opendatacommunities.org/id/metropolitan-district-council/leeds,Leeds City Council,31/12/2019,Adults and Health,Services For Adults Under 65 Mental/Dis,Third Party Payments,Fees - Level 4,520,06/12/2019,1912-00234,0.00,175.00,R,Abubaker Denja Mohammed,No
Http://opendatacommunities.org/id/metropolitan-district-council/leeds,Leeds City Council,31/12/2019,Adults and Health,Services For Adults Under 65 Mental/Dis,Third Party Payments,Fees - Level 4,520,06/12/2019,1912-00235,0.00,175.00,R,Abubaker Denja Mohammed,No
Http://opendatacommunities.org/id/metropolitan-district-council/leeds,Leeds City Council,31/12/2019,Adults and Health,Services For Adults Under 65 Mental/Dis,Third Party Payments,Fees - Level 4,520,06/12/2019,1912-00236,0.00,175.00,R,Abubaker Denja Mohammed,No
Http://opendatacommunities.org/id/metropolitan-district-council/leeds,Leeds City Council,31/12/2019,Adults and Health,Services For Adults Under 65 Mental/Dis,Third Party Payments,Fees - Level 4,520,06/12/2019,1912-00237,0.00,175.00,R,Abubaker Denja Mohammed,No
Http://opendatacommunities.org/id/metropolitan-district-council/leeds,Leeds City Council,31/12/2019,Adults and Health,Services For Adults Under 65 Mental/Dis,Third Party Payments,Fees - Level 4,520,06/12/2019,1912-00238,0.00,175.00,R,Abubaker Denja Mohammed,No
Http://opendatacommunities.org/id/metropolitan-district-council/leeds,Leeds City Council,31/12/2019,Adults and Health,Services For Adults Under 65 Mental/Dis,Third Party Payments,Fees - Level 4,520,06/12/2019,1912-00239,0.00,175.00,R,Abubaker Denja Mohammed,No
Http://opendatacommunities.org/id/metropolitan-district-council/leeds,Leeds City Council,31/12/2019,Adults and Health,Services For Adults Under 65 Mental/Dis,Third Party Payments,Fees - Level 4,520,06/12/2019,1912-00240,0.00,175.00,R,Abubaker Denja Mohammed,No
Http://opendatacommunities.org/id/metropolitan-district-council/leeds,Leeds City Council,31/12/2019,Adults and Health,Services For Adults Under 65 Mental/Dis,Third Party Payments,Fees - Level 4,520,06/12/2019,1912-00241,0.00,175.00,R,Abubaker Denja Mohammed,No
Http://opendatacommunities.org/id/metropolitan-district-council/leeds,Leeds City Council,31/12/2019,Adults and Health,Services For Adults Under 65 Mental/Dis,Third Party Payments,Fees - Level 4,520,06/12/2019,1912-00242,0.00,175.00,R,Abubaker Denja Mohammed,No
Http://opendatacommunities.org/id/metropolitan-district-council/leeds,Leeds City Council,31/12/2019,Adults and Health,Services For Adults Under 65 Mental/Dis,Third Party Payments,Fees - Level 4,520,06/12/2019,1912-00243,0.00,175.00,R,Abubaker Denja Mohammed,No
Http://opendatacommunities.org/id/metropolitan-district-council/leeds,Leeds City Council,31/12/2019,Adults and Health,Services For Adults Under 65 Mental/Dis,Third Party Payments,Fees - Level 4,520,06/12/2019,1912-00244,0.00,175.00,R,Abubaker Denja Mohammed,No
Http://opendatacommunities.org/id/metropolitan-district-council/leeds,Leeds City Council,31/12/2019,Adults and Health,Services For Adults Under 65 Mental/Dis,Third Party Payments,Fees - Level 4,520,06/12/2019,1912-00245,0.00,175.00,R,Abubaker Denja Mohammed,No
Http://opendatacommunities.org/id/metropolitan-district-council/leeds,Leeds City Council,31/12/2019,Adults and Health,Services For Adults Under 65 Mental/Dis,Third Party Payments,Fees - Level 4,520,06/12/2019,1912-00246,0.00,175.00,R,Abubaker Denja Mohammed,No
Http://opendatacommunities.org/id/metropolitan-district-council/leeds,Leeds City Council,31/12/2019,Adults and Health,Services For Adults Under 65 Mental/Dis,Third Party Payments,Fees - Level 4,520,06/12/2019,1912-00247,0.00,175.00,R,Abubaker Denja Mohammed,No
Http://opendatacommunities.org/id/metropolitan-district-council/leeds,Leeds City Council,31/12/2019,Adults and Health,Services For Adults Under 65 Mental/Dis,Third Party Payments,Fees - Level 4,520,27/12/2019,1912-00248,0.00,235.60,R,Abubaker Denja Mohammed,No
Http://opendatacommunities.org/id/metropolitan-district-council/leeds,Leeds City Council,31/12/2019,Adults and Health,Services For Adults Under 65 Mental/Dis,Third Party Payments,Fees - Level 4,520,27/12/2019,1912-00249,0.00,175.00,R,Abubaker Denja Mohammed,No
Http://opendatacommunities.org/id/metropolitan-district-council/leeds,Leeds City Council,31/12/2019,Adults and Health,Services For Adults Under 65 Mental/Dis,Third Party Payments,Fees - Level 4,520,27/12/2019,1912-00250,0.00,233.48,R,Abubaker Denja Mohammed,No
Http://opendatacommunities.org/id/metropolitan-district-council/leeds,Leeds City Council,31/12/2019,Adults and Health,Services For Adults Under 65 Mental/Dis,Third Party Payments,Fees - Level 4,520,27/12/2019,1912-00251,0.00,175.00,R,Abubaker Denja Mohammed,No
Http://opendatacommunities.org/id/metropolitan-district-council/leeds,Leeds City Council,31/12/2019,Adults and Health,Services For Adults Under 65 Mental/Dis,Third Party Payments,Fees - Level 4,520,27/12/2019,1912-00252,0.00,236.06,R,Abubaker Denja Mohammed,No
Http://opendatacommunities.org/id/metropolitan-district-council/leeds,Leeds City Council,31/12/2019,Adults and Health,Services For Adults Under 65 Mental/Dis,Third Party Payments,Fees - Level 4,520,27/12/2019,1912-00253,0.00,175.00,R,Abubaker Denja Mohammed,No
Http://opendatacommunities.org/id/metropolitan-district-council/leeds,Leeds City Council,31/12/2019,City Development,Libraries  Arts & Heritage,Supplies and Services,Publication And Promotion,267,05/12/2019,1912-00254,0.00,120.00,R,Ac Winter,No
Http://opendatacommunities.org/id/metropolitan-district-council/leeds,Leeds City Council,31/12/2019,Children and Families,Social Care,Supplies and Services,Advertising,211,05/12/2019,1912-00255,0.00,190.00,R,Ac Winter,No
Http://opendatacommunities.org/id/metropolitan-district-council/leeds,Leeds City Council,31/12/2019,City Development,Libraries  Arts & Heritage,Supplies and Services,Advertising,211,05/12/2019,1912-00256,0.00,120.00,R,Ac Winter,No
Http://opendatacommunities.org/id/metropolitan-district-council/leeds,Leeds City Council,31/12/2019,Children and Families,Learning,Supplies and Services,Advertising,211,05/12/2019,1912-00257,0.00,25.00,R,Ac Winter,No
Http://opendatacommunities.org/id/metropolitan-district-council/leeds,Leeds City Council,31/12/2019,Communities and Environment,Parks and Countryside,Supplies and Services,Publication And Promotion,267,12/12/2019,1912-00258,0.00,67.50,R,Ac Winter,No
Http://opendatacommunities.org/id/metropolitan-district-council/leeds,Leeds City Council,31/12/2019,Adults and Health,Public Health,Supplies and Services,Publication And Promotion,267,20/12/2019,1912-00259,0.00,279.00,R,Ac Winter,No
Http://opendatacommunities.org/id/metropolitan-district-council/leeds,Leeds City Council,31/12/2019,City Development,Libraries  Arts & Heritage,Supplies and Services,Advertising,211,27/12/2019,1912-00260,0.00,120.00,R,Ac Winter,No
Http://opendatacommunities.org/id/metropolitan-district-council/leeds,Leeds City Council,31/12/2019,City Development,Libraries  Arts & Heritage,Supplies and Services,Advertising,211,27/12/2019,1912-00261,0.00,120.00,R,Ac Winter,No
Http://opendatacommunities.org/id/metropolitan-district-council/leeds,Leeds City Council,31/12/2019,Children and Families,Learning,Employees,Agency Staff,8,19/12/2019,1912-00262,0.00,416.25,R,Academic Appointments Ltd,No
Http://opendatacommunities.org/id/metropolitan-district-council/leeds,Leeds City Council,31/12/2019,Children and Families,Learning,Employees,Agency Staff,8,27/12/2019,1912-00263,0.00,526.25,R,Academic Appointments Ltd,No
Http://opendatacommunities.org/id/metropolitan-district-council/leeds,Leeds City Council,31/12/2019,Children and Families,Learning,Supplies and Services,Other Hired And Contracted Services,265,06/12/2019,1912-00264,0.00,3672.35,R,Academies Enterprise Trust (Aet),No
Http://opendatacommunities.org/id/metropolitan-district-council/leeds,Leeds City Council,31/12/2019,Communities and Environment,Community Safety,Supplies and Services,Telephones,213,02/12/2019,1912-00265,0.00,1434.86,R,Access Hire Nationwide Ltd,No
Http://opendatacommunities.org/id/metropolitan-district-council/leeds,Leeds City Council,31/12/2019,Communities and Environment,Community Safety,Supplies and Services,Telephones,213,31/12/2019,1912-00266,0.00,231.43,R,Access Hire Nationwide Ltd,No
Http://opendatacommunities.org/id/metropolitan-district-council/leeds,Leeds City Council,31/12/2019,Communities and Environment,Community Safety,Supplies and Services,Telephones,213,31/12/2019,1912-00267,0.00,1157.14,R,Access Hire Nationwide Ltd,No
Http://opendatacommunities.org/id/metropolitan-district-council/leeds,Leeds City Council,31/12/2019,Resources And Housing,Commercial Services  ,Supplies and Services,Operational Furniture And Equipment,203,14/11/2019,1912-00268,0.00,871.28,R,Access Locksmiths,Yes
Http://opendatacommunities.org/id/metropolitan-district-council/leeds,Leeds City Council,31/12/2019,Resources And Housing,Facilities Management  ,Supplies and Services,Operational Furniture And Equipment,203,14/11/2019,1912-00269,0.00,574.30,R,Access Locksmiths,Yes
Http://opendatacommunities.org/id/metropolitan-district-council/leeds,Leeds City Council,31/12/2019,Resources And Housing,Shared Services  ,Supplies and Services,Operational Furniture And Equipment,203,14/11/2019,1912-00270,0.00,13.00,R,Access Locksmiths,Yes
Http://opendatacommunities.org/id/metropolitan-district-council/leeds,Leeds City Council,31/12/2019,Strategic Landlord,Housing Management  ,Premises,General Maintenance,104,20/11/2019,1912-00271,0.00,30.00,R,Access Locksmiths,Yes
Http://opendatacommunities.org/id/metropolitan-district-council/leeds,Leeds City Council,31/12/2019,Communities And Environment,Waste Management  ,Transport,Repair & Maintenance of  Plant,342,21/11/2019,1912-00272,0.00,26.77,R,Access Locksmiths,Yes
Http://opendatacommunities.org/id/metropolitan-district-council/leeds,Leeds City Council,31/12/2019,Communities And Environment,Parks And Countryside  ,Supplies and Services,Operational Materials,205,21/11/2019,1912-00273,0.00,21.83,R,Access Locksmiths,Yes
Http://opendatacommunities.org/id/metropolitan-district-council/leeds,Leeds City Council,31/12/2019,Communities And Environment,Environmental Action (City Centre)  ,Supplies and Services,Operational Furniture And Equipment,203,22/11/2019,1912-00274,0.00,64.70,R,Access Locksmiths,Yes
Http://opendatacommunities.org/id/metropolitan-district-council/leeds,Leeds City Council,31/12/2019,Resources and Housing,Leeds Building Services,Supplies and Services,Operational Materials,205,04/12/2019,1912-00275,0.00,102.06,R,Access Locksmiths (Leeds) Limited,No
Http://opendatacommunities.org/id/metropolitan-district-council/leeds,Leeds City Council,31/12/2019,Resources and Housing,Leeds Building Services,Supplies and Services,Operational Materials,205,06/12/2019,1912-00276,0.00,170.63,R,Access Locksmiths (Leeds) Limited,No
Http://opendatacommunities.org/id/metropolitan-district-council/leeds,Leeds City Council,31/12/2019,Resources and Housing,Leeds Building Services,Supplies and Services,Operational Materials,205,06/12/2019,1912-00277,0.00,13.36,R,Access Locksmiths (Leeds) Limited,No
Http://opendatacommunities.org/id/metropolitan-district-council/leeds,Leeds City Council,31/12/2019,Strategic Landlord,Housing Management,Income,Other Income,973,10/12/2019,1912-00278,0.00,34.20,R,Access Locksmiths (Leeds) Limited,No
Http://opendatacommunities.org/id/metropolitan-district-council/leeds,Leeds City Council,31/12/2019,Strategic Landlord,Housing Management,Supplies and Services,Resaleable Materials,204,13/12/2019,1912-00279,0.00,26.68,R,Access Locksmiths (Leeds) Limited,No
Http://opendatacommunities.org/id/metropolitan-district-council/leeds,Leeds City Council,31/12/2019,Strategic Landlord,Housing Management,Income,Other Income,973,13/12/2019,1912-00280,0.00,25.00,R,Access Locksmiths (Leeds) Limited,No
Http://opendatacommunities.org/id/metropolitan-district-council/leeds,Leeds City Council,31/12/2019,Strategic Landlord,Property and Contracts,Premises,General Maintenance,104,13/12/2019,1912-00281,0.00,631.60,R,Access Locksmiths (Leeds) Limited,No
Http://opendatacommunities.org/id/metropolitan-district-council/leeds,Leeds City Council,31/12/2019,Resources and Housing,HRA Housing Leeds,Capital,Other Costs,7,13/12/2019,1912-00282,0.00,22.80,C,Access Locksmiths (Leeds) Limited,No
Http://opendatacommunities.org/id/metropolitan-district-council/leeds,Leeds City Council,31/12/2019,Strategic Landlord,Housing Management,Supplies and Services,Resaleable Materials,204,13/12/2019,1912-00283,0.00,21.60,R,Access Locksmiths (Leeds) Limited,No
Http://opendatacommunities.org/id/metropolitan-district-council/leeds,Leeds City Council,31/12/2019,Strategic Landlord,Housing Management,Supplies and Services,Resaleable Materials,204,13/12/2019,1912-00284,0.00,13.68,R,Access Locksmiths (Leeds) Limited,No
Http://opendatacommunities.org/id/metropolitan-district-council/leeds,Leeds City Council,31/12/2019,Resources and Housing,HRA Housing Leeds,Capital,Other Costs,7,13/12/2019,1912-00285,0.00,96.73,C,Access Locksmiths (Leeds) Limited,No
Http://opendatacommunities.org/id/metropolitan-district-council/leeds,Leeds City Council,31/12/2019,Resources and Housing,Leeds Building Services,Supplies and Services,Operational Materials,205,13/12/2019,1912-00286,0.00,16.83,R,Access Locksmiths (Leeds) Limited,No
Http://opendatacommunities.org/id/metropolitan-district-council/leeds,Leeds City Council,31/12/2019,Resources and Housing,Leeds Building Services,Supplies and Services,Operational Materials,205,13/12/2019,1912-00287,0.00,6.93,R,Access Locksmiths (Leeds) Limited,No
Http://opendatacommunities.org/id/metropolitan-district-council/leeds,Leeds City Council,31/12/2019,Resources and Housing,Leeds Building Services,Supplies and Services,Operational Materials,205,13/12/2019,1912-00288,0.00,109.78,R,Access Locksmiths (Leeds) Limited,No
Http://opendatacommunities.org/id/metropolitan-district-council/leeds,Leeds City Council,31/12/2019,Resources and Housing,Leeds Building Services,Supplies and Services,Operational Materials,205,13/12/2019,1912-00289,0.00,2.60,R,Access Locksmiths (Leeds) Limited,No
Http://opendatacommunities.org/id/metropolitan-district-council/leeds,Leeds City Council,31/12/2019,Resources and Housing,Leeds Building Services,Supplies and Services,Operational Materials,205,13/12/2019,1912-00290,0.00,34.02,R,Access Locksmiths (Leeds) Limited,No
Http://opendatacommunities.org/id/metropolitan-district-council/leeds,Leeds City Council,31/12/2019,Resources and Housing,Leeds Building Services,Supplies and Services,Operational Materials,205,13/12/2019,1912-00291,0.00,34.68,R,Access Locksmiths (Leeds) Limited,No
Http://opendatacommunities.org/id/metropolitan-district-council/leeds,Leeds City Council,31/12/2019,Resources and Housing,Leeds Building Services,Supplies and Services,Operational Materials,205,27/12/2019,1912-00292,0.00,39.05,R,Access Locksmiths (Leeds) Limited,No
Http://opendatacommunities.org/id/metropolitan-district-council/leeds,Leeds City Council,31/12/2019,Resources and Housing,Leeds Building Services,Supplies and Services,Operational Materials,205,27/12/2019,1912-00293,0.00,12.04,R,Access Locksmiths (Leeds) Limited,No
Http://opendatacommunities.org/id/metropolitan-district-council/leeds,Leeds City Council,31/12/2019,Resources and Housing,Leeds Building Services,Supplies and Services,Operational Materials,205,27/12/2019,1912-00294,0.00,18.36,R,Access Locksmiths (Leeds) Limited,No
Http://opendatacommunities.org/id/metropolitan-district-council/leeds,Leeds City Council,31/12/2019,Resources and Housing,Leeds Building Services,Supplies and Services,Operational Materials,205,27/12/2019,1912-00295,0.00,7.10,R,Access Locksmiths (Leeds) Limited,No
Http://opendatacommunities.org/id/metropolitan-district-council/leeds,Leeds City Council,31/12/2019,Resources and Housing,Leeds Building Services,Supplies and Services,Operational Materials,205,27/12/2019,1912-00296,0.00,54.63,R,Access Locksmiths (Leeds) Limited,No
Http://opendatacommunities.org/id/metropolitan-district-council/leeds,Leeds City Council,31/12/2019,Resources and Housing,Leeds Building Services,Supplies and Services,Operational Materials,205,27/12/2019,1912-00297,0.00,15.86,R,Access Locksmiths (Leeds) Limited,No
Http://opendatacommunities.org/id/metropolitan-district-council/leeds,Leeds City Council,31/12/2019,Resources and Housing,Leeds Building Services,Supplies and Services,Operational Materials,205,27/12/2019,1912-00298,0.00,117.00,R,Access Locksmiths (Leeds) Limited,No
Http://opendatacommunities.org/id/metropolitan-district-council/leeds,Leeds City Council,31/12/2019,Resources and Housing,Leeds Building Services,Supplies and Services,Operational Materials,205,27/12/2019,1912-00299,0.00,16.83,R,Access Locksmiths (Leeds) Limited,No
Http://opendatacommunities.org/id/metropolitan-district-council/leeds,Leeds City Council,31/12/2019,Resources and Housing,Leeds Building Services,Supplies and Services,Operational Materials,205,27/12/2019,1912-00300,0.00,155.84,R,Access Locksmiths (Leeds) Limited,No
Http://opendatacommunities.org/id/metropolitan-district-council/leeds,Leeds City Council,31/12/2019,Resources and Housing,Leeds Building Services,Supplies and Services,Operational Materials,205,27/12/2019,1912-00301,0.00,6.76,R,Access Locksmiths (Leeds) Limited,No
Http://opendatacommunities.org/id/metropolitan-district-council/leeds,Leeds City Council,31/12/2019,Resources and Housing,Leeds Building Services,Supplies and Services,Operational Materials,205,27/12/2019,1912-00302,0.00,6.75,R,Access Locksmiths (Leeds) Limited,No
Http://opendatacommunities.org/id/metropolitan-district-council/leeds,Leeds City Council,31/12/2019,Resources and Housing,HRA Housing Leeds,Capital,Other Costs,7,31/12/2019,1912-00303,0.00,1825.62,C,Access Locksmiths (Leeds) Limited,No
Http://opendatacommunities.org/id/metropolitan-district-council/leeds,Leeds City Council,31/12/2019,Resources and Housing,HRA Housing Leeds,Capital,Other Costs,7,31/12/2019,1912-00304,0.00,672.90,C,Access Locksmiths (Leeds) Limited,No
Http://opendatacommunities.org/id/metropolitan-district-council/leeds,Leeds City Council,31/12/2019,Strategic Landlord,Housing Management,Income,Other Income,973,31/12/2019,1912-00305,0.00,11.25,R,Access Locksmiths (Leeds) Limited,No
Http://opendatacommunities.org/id/metropolitan-district-council/leeds,Leeds City Council,31/12/2019,Strategic Landlord,Property and Contracts,Premises,General Maintenance,104,31/12/2019,1912-00306,0.00,200.26,R,Access Locksmiths (Leeds) Limited,No
Http://opendatacommunities.org/id/metropolitan-district-council/leeds,Leeds City Council,31/12/2019,Strategic Landlord,Property and Contracts,Premises,General Maintenance,104,31/12/2019,1912-00307,0.00,198.64,R,Access Locksmiths (Leeds) Limited,No
Http://opendatacommunities.org/id/metropolitan-district-council/leeds,Leeds City Council,31/12/2019,City Development,Recreation,Supplies and Services,Other Hired And Contracted Services,265,06/12/2019,1912-00308,0.00,90.00,R,Ace Container Services Limited,No
Http://opendatacommunities.org/id/metropolitan-district-council/leeds,Leeds City Council,31/12/2019,City Development,Recreation,Transport,External Hire -Occasional,304,30/12/2019,1912-00309,0.00,128.65,R,Ace Container Services Limited,No
Http://opendatacommunities.org/id/metropolitan-district-council/leeds,Leeds City Council,31/12/2019,City Development,Libraries  Arts & Heritage,Supplies and Services,Other Hired And Contracted Services,265,30/12/2019,1912-00310,0.00,46.50,R,Ace Container Services Limited,No
Http://opendatacommunities.org/id/metropolitan-district-council/leeds,Leeds City Council,31/12/2019,Children and Families,Learning,Supplies and Services,Advertising,211,23/12/2019,1912-00311,0.00,120.00,R,Ace Leaflet Distribution & Print Ltd,No
Http://opendatacommunities.org/id/metropolitan-district-council/leeds,Leeds City Council,31/12/2019,Children and Families,Partnerships & Health,Third Party Payments,SEN Placements,566,05/12/2019,1912-00312,0.00,18082.06,R,Ackworth School,No
Http://opendatacommunities.org/id/metropolitan-district-council/leeds,Leeds City Council,31/12/2019,Children and Families,Partnerships & Health,Third Party Payments,SEN Placements,566,05/12/2019,1912-00313,0.00,18033.84,R,Ackworth School,No
Http://opendatacommunities.org/id/metropolitan-district-council/leeds,Leeds City Council,31/12/2019,Children and Families,Partnerships & Health,Third Party Payments,SEN Placements,566,05/12/2019,1912-00314,0.00,18033.84,R,Ackworth School,No
Http://opendatacommunities.org/id/metropolitan-district-council/leeds,Leeds City Council,31/12/2019,Children and Families,Partnerships & Health,Third Party Payments,SEN Placements,566,05/12/2019,1912-00315,0.00,18033.84,R,Ackworth School,No
Http://opendatacommunities.org/id/metropolitan-district-council/leeds,Leeds City Council,31/12/2019,Children and Families,Partnerships & Health,Third Party Payments,SEN Placements,566,05/12/2019,1912-00316,0.00,18033.84,R,Ackworth School,No
Http://opendatacommunities.org/id/metropolitan-district-council/leeds,Leeds City Council,31/12/2019,Children and Families,Partnerships & Health,Third Party Payments,SEN Placements,566,05/12/2019,1912-00317,0.00,18033.84,R,Ackworth School,No
Http://opendatacommunities.org/id/metropolitan-district-council/leeds,Leeds City Council,31/12/2019,Children and Families,Partnerships & Health,Third Party Payments,SEN Placements,566,05/12/2019,1912-00318,0.00,18082.06,R,Ackworth School,No
Http://opendatacommunities.org/id/metropolitan-district-council/leeds,Leeds City Council,31/12/2019,Children and Families,Partnerships & Health,Third Party Payments,SEN Placements,566,05/12/2019,1912-00319,0.00,18033.84,R,Ackworth School,No
Http://opendatacommunities.org/id/metropolitan-district-council/leeds,Leeds City Council,31/12/2019,Children and Families,Partnerships & Health,Third Party Payments,SEN Placements,566,05/12/2019,1912-00320,0.00,18033.84,R,Ackworth School,No
Http://opendatacommunities.org/id/metropolitan-district-council/leeds,Leeds City Council,31/12/2019,Children and Families,Partnerships & Health,Third Party Payments,SEN Placements,566,17/12/2019,1912-00321,0.00,25326.84,R,Ackworth School,No
Http://opendatacommunities.org/id/metropolitan-district-council/leeds,Leeds City Council,31/12/2019,Children and Families,Partnerships & Health,Third Party Payments,SEN Placements,566,17/12/2019,1912-00322,0.00,18033.84,R,Ackworth School,No
Http://opendatacommunities.org/id/metropolitan-district-council/leeds,Leeds City Council,31/12/2019,Children and Families,Partnerships & Health,Third Party Payments,SEN Placements,566,13/12/2019,1912-00323,0.00,58000.00,R,Acorn Care & Education Ltd (Sales),No
Http://opendatacommunities.org/id/metropolitan-district-council/leeds,Leeds City Council,31/12/2019,Children and Families,Partnerships & Health,Third Party Payments,SEN Placements,566,30/12/2019,1912-00324,0.00,435.94,R,Acorn Care & Education Ltd (Sales),No
Http://opendatacommunities.org/id/metropolitan-district-council/leeds,Leeds City Council,31/12/2019,Children and Families,Partnerships & Health,Third Party Payments,SEN Placements,566,30/12/2019,1912-00325,0.00,200.60,R,Acorn Care & Education Ltd (Sales),No
Http://opendatacommunities.org/id/metropolitan-district-council/leeds,Leeds City Council,31/12/2019,Children and Families,Partnerships & Health,Third Party Payments,SEN Placements,566,30/12/2019,1912-00326,0.00,428.07,R,Acorn Care & Education Ltd (Sales),No
Http://opendatacommunities.org/id/metropolitan-district-council/leeds,Leeds City Council,31/12/2019,Children and Families,Partnerships & Health,Third Party Payments,SEN Placements,566,30/12/2019,1912-00327,0.00,428.07,R,Acorn Care & Education Ltd (Sales),No
Http://opendatacommunities.org/id/metropolitan-district-council/leeds,Leeds City Council,31/12/2019,Children and Families,Partnerships & Health,Third Party Payments,SEN Placements,566,30/12/2019,1912-00328,0.00,435.94,R,Acorn Care & Education Ltd (Sales),No
Http://opendatacommunities.org/id/metropolitan-district-council/leeds,Leeds City Council,31/12/2019,City Development,Libraries  Arts & Heritage,Supplies and Services,Other Hired And Contracted Services,265,05/12/2019,1912-00329,0.00,9080.00,R,Acorn Construction (Yorkshire) Ltd,No
Http://opendatacommunities.org/id/metropolitan-district-council/leeds,Leeds City Council,31/12/2019,City Development,Libraries  Arts & Heritage,Supplies and Services,Other Hired And Contracted Services,265,05/12/2019,1912-00330,0.00,1500.00,R,Acorn Construction (Yorkshire) Ltd,No
Http://opendatacommunities.org/id/metropolitan-district-council/leeds,Leeds City Council,31/12/2019,City Development,Libraries  Arts & Heritage,Supplies and Services,Operational Furniture And Equipment,203,06/12/2019,1912-00331,0.00,140.00,R,Acorn Construction (Yorkshire) Ltd,No
Http://opendatacommunities.org/id/metropolitan-district-council/leeds,Leeds City Council,31/12/2019,City Development,Libraries  Arts & Heritage,Supplies and Services,Other Hired And Contracted Services,265,03/12/2019,1912-00332,0.00,3507.00,R,Acorn Scaffolding (Yorkshire) Ltd,No
Http://opendatacommunities.org/id/metropolitan-district-council/leeds,Leeds City Council,31/12/2019,City Development,Libraries  Arts & Heritage,Supplies and Services,Other Hired And Contracted Services,265,04/12/2019,1912-00333,0.00,1118.77,R,Acorn Scaffolding (Yorkshire) Ltd,No
Http://opendatacommunities.org/id/metropolitan-district-council/leeds,Leeds City Council,31/12/2019,Children and Families,Social Care,Third Party Payments,Services Rendered By Other Organisations,511,06/12/2019,1912-00334,0.00,832.05,R,Acorns Nursery,No
Http://opendatacommunities.org/id/metropolitan-district-council/leeds,Leeds City Council,31/12/2019,Children And Families,Learning  ,Supplies and Services,Books & Audio-Visual Materials,206,25/11/2019,1912-00335,0.00,19.80,R,Acp* Musicroom.Com,Yes
Http://opendatacommunities.org/id/metropolitan-district-council/leeds,Leeds City Council,31/12/2019,Children And Families,Learning  ,Supplies and Services,Publication And Promotion,267,25/11/2019,1912-00336,0.00,7.32,R,Acp* Musicroom.Com,Yes
Http://opendatacommunities.org/id/metropolitan-district-council/leeds,Leeds City Council,31/12/2019,City Development,Libraries  Arts & Heritage  ,Supplies and Services,Subsistence,256,15/11/2019,1912-00337,0.00,25.72,R,Acp*minos Kitchen,Yes
Http://opendatacommunities.org/id/metropolitan-district-council/leeds,Leeds City Council,31/12/2019,Adults and Health,Services For Older People - 65 And Over,Third Party Payments,Nursing Home,570,11/12/2019,1912-00338,0.00,57592.70,R,Acre Green,No
Http://opendatacommunities.org/id/metropolitan-district-council/leeds,Leeds City Council,31/12/2019,Adults and Health,Services For Older People - 65 And Over,Third Party Payments,Residential,580,11/12/2019,1912-00339,0.00,3742.60,R,Acre Green,No
Http://opendatacommunities.org/id/metropolitan-district-council/leeds,Leeds City Council,31/12/2019,Adults and Health,Services For Older People Under 65 P/Dis,Third Party Payments,Nursing Home,570,11/12/2019,1912-00340,0.00,2268.00,R,Acre Green,No
Http://opendatacommunities.org/id/metropolitan-district-council/leeds,Leeds City Council,31/12/2019,Adults and Health,Services For Older People Under 65 P/Dis,Third Party Payments,Residential,580,11/12/2019,1912-00341,0.00,1574.20,R,Acre Green,No
Http://opendatacommunities.org/id/metropolitan-district-council/leeds,Leeds City Council,31/12/2019,Children and Families,Social Care,Third Party Payments,Services Rendered By Other Organisations,511,04/12/2019,1912-00342,0.00,8443.50,R,Acre Wood Day Nursery,No
Http://opendatacommunities.org/id/metropolitan-district-council/leeds,Leeds City Council,31/12/2019,Children and Families,Social Care,Third Party Payments,Services Rendered By Other Organisations,511,06/12/2019,1912-00343,0.00,7111.12,R,Acre Wood Day Nursery,No
Http://opendatacommunities.org/id/metropolitan-district-council/leeds,Leeds City Council,31/12/2019,Resources and Housing,Technology,Employees,Training & Development,70,06/12/2019,1912-00344,0.00,389.00,R,Act Now Training Ltd,No
Http://opendatacommunities.org/id/metropolitan-district-council/leeds,Leeds City Council,31/12/2019,Resources and Housing,Technology,Employees,Training & Development,70,06/12/2019,1912-00345,0.00,2150.00,R,Act Now Training Ltd,No
Http://opendatacommunities.org/id/metropolitan-district-council/leeds,Leeds City Council,31/12/2019,Resources and Housing,Leeds Building Services,Supplies and Services,Other Hired And Contracted Services,265,03/12/2019,1912-00346,0.00,147.26,R,Actavo Hire And Sales Uk Limited,No
Http://opendatacommunities.org/id/metropolitan-district-council/leeds,Leeds City Council,31/12/2019,City Development,Highways,Supplies and Services,Operational Materials,205,03/12/2019,1912-00347,0.00,1168.50,R,Actavo Hire And Sales Uk Limited,No
Http://opendatacommunities.org/id/metropolitan-district-council/leeds,Leeds City Council,31/12/2019,Resources and Housing,Leeds Building Services,Supplies and Services,Operational Materials,205,03/12/2019,1912-00348,0.00,192.60,R,Actavo Hire And Sales Uk Limited,No
Http://opendatacommunities.org/id/metropolitan-district-council/leeds,Leeds City Council,31/12/2019,Resources and Housing,Leeds Building Services,Supplies and Services,Other Hired And Contracted Services,265,05/12/2019,1912-00349,0.00,176.70,R,Actavo Hire And Sales Uk Limited,No
Http://opendatacommunities.org/id/metropolitan-district-council/leeds,Leeds City Council,31/12/2019,Resources and Housing,Leeds Building Services,Supplies and Services,Other Hired And Contracted Services,265,09/12/2019,1912-00350,0.00,97.69,R,Actavo Hire And Sales Uk Limited,No
Http://opendatacommunities.org/id/metropolitan-district-council/leeds,Leeds City Council,31/12/2019,City Development,Highways,Supplies and Services,Operational Materials,205,11/12/2019,1912-00351,0.00,858.10,R,Actavo Hire And Sales Uk Limited,No
Http://opendatacommunities.org/id/metropolitan-district-council/leeds,Leeds City Council,31/12/2019,Children and Families,Social Care,Third Party Payments,Independent Fostering Agencies,509,02/12/2019,1912-00352,0.00,-4776.48,R,Action For Children,No
Http://opendatacommunities.org/id/metropolitan-district-council/leeds,Leeds City Council,31/12/2019,Children and Families,Social Care,Third Party Payments,Independent Fostering Agencies,509,02/12/2019,1912-00353,0.00,-616.28,R,Action For Children,No
Http://opendatacommunities.org/id/metropolitan-district-council/leeds,Leeds City Council,31/12/2019,Children and Families,Social Care,Third Party Payments,Independent Fostering Agencies,509,02/12/2019,1912-00354,0.00,-462.24,R,Action For Children,No
Http://opendatacommunities.org/id/metropolitan-district-council/leeds,Leeds City Council,31/12/2019,Children and Families,Social Care,Third Party Payments,Independent Fostering Agencies,509,02/12/2019,1912-00355,0.00,-616.32,R,Action For Children,No
Http://opendatacommunities.org/id/metropolitan-district-council/leeds,Leeds City Council,31/12/2019,Children and Families,Social Care,Third Party Payments,Independent Fostering Agencies,509,02/12/2019,1912-00356,0.00,462.24,R,Action For Children,No
Http://opendatacommunities.org/id/metropolitan-district-council/leeds,Leeds City Council,31/12/2019,Children and Families,Social Care,Third Party Payments,Independent Fostering Agencies,509,02/12/2019,1912-00357,0.00,616.32,R,Action For Children,No
Http://opendatacommunities.org/id/metropolitan-district-council/leeds,Leeds City Council,31/12/2019,Children and Families,Social Care,Third Party Payments,Independent Fostering Agencies,509,02/12/2019,1912-00358,0.00,4776.48,R,Action For Children,No
Http://opendatacommunities.org/id/metropolitan-district-council/leeds,Leeds City Council,31/12/2019,Children and Families,Social Care,Third Party Payments,Independent Fostering Agencies,509,02/12/2019,1912-00359,0.00,4776.48,R,Action For Children,No
Http://opendatacommunities.org/id/metropolitan-district-council/leeds,Leeds City Council,31/12/2019,Adults and Health,Services For Older People - 65 And Over,Third Party Payments,Payments To Voluntary Organisations,561,24/12/2019,1912-00360,0.00,1851.85,R,Action For Gipton Elderly,No
Http://opendatacommunities.org/id/metropolitan-district-council/leeds,Leeds City Council,31/12/2019,Adults and Health,Services For Older People - 65 And Over,Third Party Payments,Payments To Voluntary Organisations,561,31/12/2019,1912-00361,0.00,49415.82,R,Action For Gipton Elderly,No
Http://opendatacommunities.org/id/metropolitan-district-council/leeds,Leeds City Council,31/12/2019,Children and Families,Social Care,Third Party Payments,Services Rendered By Other Organisations,511,04/12/2019,1912-00362,0.00,2379.00,R,Active Kids Yeadon Llp,No
Http://opendatacommunities.org/id/metropolitan-district-council/leeds,Leeds City Council,31/12/2019,Children and Families,Social Care,Third Party Payments,Services Rendered By Other Organisations,511,06/12/2019,1912-00363,0.00,6006.02,R,Active Kids Yeadon Llp,No
Http://opendatacommunities.org/id/metropolitan-district-council/leeds,Leeds City Council,31/12/2019,Communities and Environment,Cleaner Neighbourhood Teams,Premises,Removal Of Workplace Waste,126,05/12/2019,1912-00364,0.00,116.60,R,Acumen Waste Services Ltd,No
Http://opendatacommunities.org/id/metropolitan-district-council/leeds,Leeds City Council,31/12/2019,Communities and Environment,Cleaner Neighbourhood Teams,Premises,Removal Of Workplace Waste,126,05/12/2019,1912-00365,0.00,116.60,R,Acumen Waste Services Ltd,No
Http://opendatacommunities.org/id/metropolitan-district-council/leeds,Leeds City Council,31/12/2019,Communities and Environment,Cleaner Neighbourhood Teams,Premises,Removal Of Workplace Waste,126,05/12/2019,1912-00366,0.00,116.60,R,Acumen Waste Services Ltd,No
Http://opendatacommunities.org/id/metropolitan-district-council/leeds,Leeds City Council,31/12/2019,Communities and Environment,Cleaner Neighbourhood Teams,Premises,Removal Of Workplace Waste,126,05/12/2019,1912-00367,0.00,116.60,R,Acumen Waste Services Ltd,No
Http://opendatacommunities.org/id/metropolitan-district-council/leeds,Leeds City Council,31/12/2019,Communities and Environment,Cleaner Neighbourhood Teams,Premises,Removal Of Workplace Waste,126,05/12/2019,1912-00368,0.00,116.60,R,Acumen Waste Services Ltd,No
Http://opendatacommunities.org/id/metropolitan-district-council/leeds,Leeds City Council,31/12/2019,Communities and Environment,Waste Management,Supplies and Services,Recycling & Reuse Charges,234,06/12/2019,1912-00369,0.00,3011.25,R,Acumen Waste Services Ltd,No
Http://opendatacommunities.org/id/metropolitan-district-council/leeds,Leeds City Council,31/12/2019,Communities and Environment,Cleaner Neighbourhood Teams,Premises,Removal Of Workplace Waste,126,06/12/2019,1912-00370,0.00,116.60,R,Acumen Waste Services Ltd,No
Http://opendatacommunities.org/id/metropolitan-district-council/leeds,Leeds City Council,31/12/2019,Communities and Environment,Cleaner Neighbourhood Teams,Premises,Removal Of Workplace Waste,126,06/12/2019,1912-00371,0.00,116.60,R,Acumen Waste Services Ltd,No
Http://opendatacommunities.org/id/metropolitan-district-council/leeds,Leeds City Council,31/12/2019,Communities and Environment,Cleaner Neighbourhood Teams,Premises,Removal Of Workplace Waste,126,06/12/2019,1912-00372,0.00,116.60,R,Acumen Waste Services Ltd,No
Http://opendatacommunities.org/id/metropolitan-district-council/leeds,Leeds City Council,31/12/2019,Communities and Environment,Cleaner Neighbourhood Teams,Premises,Removal Of Workplace Waste,126,06/12/2019,1912-00373,0.00,116.60,R,Acumen Waste Services Ltd,No
Http://opendatacommunities.org/id/metropolitan-district-council/leeds,Leeds City Council,31/12/2019,Communities and Environment,Cleaner Neighbourhood Teams,Premises,Removal Of Workplace Waste,126,06/12/2019,1912-00374,0.00,116.60,R,Acumen Waste Services Ltd,No
Http://opendatacommunities.org/id/metropolitan-district-council/leeds,Leeds City Council,31/12/2019,Communities and Environment,Cleaner Neighbourhood Teams,Premises,Removal Of Workplace Waste,126,06/12/2019,1912-00375,0.00,116.60,R,Acumen Waste Services Ltd,No
Http://opendatacommunities.org/id/metropolitan-district-council/leeds,Leeds City Council,31/12/2019,Communities and Environment,Cleaner Neighbourhood Teams,Premises,Removal Of Workplace Waste,126,11/12/2019,1912-00376,0.00,116.60,R,Acumen Waste Services Ltd,No
Http://opendatacommunities.org/id/metropolitan-district-council/leeds,Leeds City Council,31/12/2019,Communities and Environment,Cleaner Neighbourhood Teams,Premises,Removal Of Workplace Waste,126,11/12/2019,1912-00377,0.00,116.60,R,Acumen Waste Services Ltd,No
Http://opendatacommunities.org/id/metropolitan-district-council/leeds,Leeds City Council,31/12/2019,Communities and Environment,Cleaner Neighbourhood Teams,Premises,Removal Of Workplace Waste,126,11/12/2019,1912-00378,0.00,116.60,R,Acumen Waste Services Ltd,No
Http://opendatacommunities.org/id/metropolitan-district-council/leeds,Leeds City Council,31/12/2019,Communities and Environment,Cleaner Neighbourhood Teams,Premises,Removal Of Workplace Waste,126,11/12/2019,1912-00379,0.00,116.60,R,Acumen Waste Services Ltd,No
Http://opendatacommunities.org/id/metropolitan-district-council/leeds,Leeds City Council,31/12/2019,Communities and Environment,Waste Management,Supplies and Services,Recycling & Reuse Charges,234,12/12/2019,1912-00380,0.00,5418.12,R,Acumen Waste Services Ltd,No
Http://opendatacommunities.org/id/metropolitan-district-council/leeds,Leeds City Council,31/12/2019,Communities and Environment,Cleaner Neighbourhood Teams,Premises,Removal Of Workplace Waste,126,12/12/2019,1912-00381,0.00,116.60,R,Acumen Waste Services Ltd,No
Http://opendatacommunities.org/id/metropolitan-district-council/leeds,Leeds City Council,31/12/2019,Communities and Environment,Cleaner Neighbourhood Teams,Premises,Removal Of Workplace Waste,126,12/12/2019,1912-00382,0.00,116.60,R,Acumen Waste Services Ltd,No
Http://opendatacommunities.org/id/metropolitan-district-council/leeds,Leeds City Council,31/12/2019,Communities and Environment,Cleaner Neighbourhood Teams,Premises,Removal Of Workplace Waste,126,12/12/2019,1912-00383,0.00,116.60,R,Acumen Waste Services Ltd,No
Http://opendatacommunities.org/id/metropolitan-district-council/leeds,Leeds City Council,31/12/2019,Communities and Environment,Cleaner Neighbourhood Teams,Premises,Removal Of Workplace Waste,126,13/12/2019,1912-00384,0.00,116.60,R,Acumen Waste Services Ltd,No
Http://opendatacommunities.org/id/metropolitan-district-council/leeds,Leeds City Council,31/12/2019,Communities and Environment,Cleaner Neighbourhood Teams,Premises,Removal Of Workplace Waste,126,13/12/2019,1912-00385,0.00,116.60,R,Acumen Waste Services Ltd,No
Http://opendatacommunities.org/id/metropolitan-district-council/leeds,Leeds City Council,31/12/2019,Communities and Environment,Cleaner Neighbourhood Teams,Premises,Removal Of Workplace Waste,126,13/12/2019,1912-00386,0.00,116.60,R,Acumen Waste Services Ltd,No
Http://opendatacommunities.org/id/metropolitan-district-council/leeds,Leeds City Council,31/12/2019,Communities and Environment,Cleaner Neighbourhood Teams,Premises,Removal Of Workplace Waste,126,13/12/2019,1912-00387,0.00,116.60,R,Acumen Waste Services Ltd,No
Http://opendatacommunities.org/id/metropolitan-district-council/leeds,Leeds City Council,31/12/2019,Communities and Environment,Cleaner Neighbourhood Teams,Premises,Removal Of Workplace Waste,126,18/12/2019,1912-00388,0.00,116.60,R,Acumen Waste Services Ltd,No
Http://opendatacommunities.org/id/metropolitan-district-council/leeds,Leeds City Council,31/12/2019,Communities and Environment,Cleaner Neighbourhood Teams,Premises,Removal Of Workplace Waste,126,18/12/2019,1912-00389,0.00,116.60,R,Acumen Waste Services Ltd,No
Http://opendatacommunities.org/id/metropolitan-district-council/leeds,Leeds City Council,31/12/2019,Communities and Environment,Cleaner Neighbourhood Teams,Premises,Removal Of Workplace Waste,126,18/12/2019,1912-00390,0.00,116.60,R,Acumen Waste Services Ltd,No
Http://opendatacommunities.org/id/metropolitan-district-council/leeds,Leeds City Council,31/12/2019,Communities and Environment,Cleaner Neighbourhood Teams,Premises,Removal Of Workplace Waste,126,18/12/2019,1912-00391,0.00,116.60,R,Acumen Waste Services Ltd,No
Http://opendatacommunities.org/id/metropolitan-district-council/leeds,Leeds City Council,31/12/2019,Communities and Environment,Cleaner Neighbourhood Teams,Premises,Removal Of Workplace Waste,126,18/12/2019,1912-00392,0.00,116.60,R,Acumen Waste Services Ltd,No
Http://opendatacommunities.org/id/metropolitan-district-council/leeds,Leeds City Council,31/12/2019,Communities and Environment,Cleaner Neighbourhood Teams,Premises,Removal Of Workplace Waste,126,18/12/2019,1912-00393,0.00,116.60,R,Acumen Waste Services Ltd,No
Http://opendatacommunities.org/id/metropolitan-district-council/leeds,Leeds City Council,31/12/2019,Communities and Environment,Waste Management,Supplies and Services,Recycling & Reuse Charges,234,18/12/2019,1912-00394,0.00,7620.48,R,Acumen Waste Services Ltd,No
Http://opendatacommunities.org/id/metropolitan-district-council/leeds,Leeds City Council,31/12/2019,Communities and Environment,Cleaner Neighbourhood Teams,Premises,Removal Of Workplace Waste,126,18/12/2019,1912-00395,0.00,116.60,R,Acumen Waste Services Ltd,No
Http://opendatacommunities.org/id/metropolitan-district-council/leeds,Leeds City Council,31/12/2019,Communities and Environment,Cleaner Neighbourhood Teams,Premises,Removal Of Workplace Waste,126,18/12/2019,1912-00396,0.00,116.60,R,Acumen Waste Services Ltd,No
Http://opendatacommunities.org/id/metropolitan-district-council/leeds,Leeds City Council,31/12/2019,Communities and Environment,Cleaner Neighbourhood Teams,Premises,Removal Of Workplace Waste,126,18/12/2019,1912-00397,0.00,116.60,R,Acumen Waste Services Ltd,No
Http://opendatacommunities.org/id/metropolitan-district-council/leeds,Leeds City Council,31/12/2019,Communities and Environment,Cleaner Neighbourhood Teams,Premises,Removal Of Workplace Waste,126,18/12/2019,1912-00398,0.00,116.60,R,Acumen Waste Services Ltd,No
Http://opendatacommunities.org/id/metropolitan-district-council/leeds,Leeds City Council,31/12/2019,Communities and Environment,Cleaner Neighbourhood Teams,Premises,Removal Of Workplace Waste,126,20/12/2019,1912-00399,0.00,116.60,R,Acumen Waste Services Ltd,No
Http://opendatacommunities.org/id/metropolitan-district-council/leeds,Leeds City Council,31/12/2019,Communities and Environment,Cleaner Neighbourhood Teams,Premises,Removal Of Workplace Waste,126,20/12/2019,1912-00400,0.00,116.60,R,Acumen Waste Services Ltd,No
Http://opendatacommunities.org/id/metropolitan-district-council/leeds,Leeds City Council,31/12/2019,Communities and Environment,Waste Management,Supplies and Services,Recycling & Reuse Charges,234,24/12/2019,1912-00401,0.00,8349.82,R,Acumen Waste Services Ltd,No
Http://opendatacommunities.org/id/metropolitan-district-council/leeds,Leeds City Council,31/12/2019,Communities and Environment,Cleaner Neighbourhood Teams,Premises,Removal Of Workplace Waste,126,24/12/2019,1912-00402,0.00,116.60,R,Acumen Waste Services Ltd,No
Http://opendatacommunities.org/id/metropolitan-district-council/leeds,Leeds City Council,31/12/2019,Communities and Environment,Cleaner Neighbourhood Teams,Premises,Removal Of Workplace Waste,126,24/12/2019,1912-00403,0.00,116.60,R,Acumen Waste Services Ltd,No
Http://opendatacommunities.org/id/metropolitan-district-council/leeds,Leeds City Council,31/12/2019,Communities and Environment,Cleaner Neighbourhood Teams,Premises,Removal Of Workplace Waste,126,24/12/2019,1912-00404,0.00,116.60,R,Acumen Waste Services Ltd,No
Http://opendatacommunities.org/id/metropolitan-district-council/leeds,Leeds City Council,31/12/2019,Communities and Environment,Cleaner Neighbourhood Teams,Premises,Removal Of Workplace Waste,126,24/12/2019,1912-00405,0.00,116.60,R,Acumen Waste Services Ltd,No
Http://opendatacommunities.org/id/metropolitan-district-council/leeds,Leeds City Council,31/12/2019,Communities and Environment,Cleaner Neighbourhood Teams,Premises,Removal Of Workplace Waste,126,24/12/2019,1912-00406,0.00,116.60,R,Acumen Waste Services Ltd,No
Http://opendatacommunities.org/id/metropolitan-district-council/leeds,Leeds City Council,31/12/2019,Communities and Environment,Cleaner Neighbourhood Teams,Premises,Removal Of Workplace Waste,126,24/12/2019,1912-00407,0.00,116.60,R,Acumen Waste Services Ltd,No
Http://opendatacommunities.org/id/metropolitan-district-council/leeds,Leeds City Council,31/12/2019,Communities and Environment,Cleaner Neighbourhood Teams,Premises,Removal Of Workplace Waste,126,24/12/2019,1912-00408,0.00,116.60,R,Acumen Waste Services Ltd,No
Http://opendatacommunities.org/id/metropolitan-district-council/leeds,Leeds City Council,31/12/2019,Communities and Environment,Cleaner Neighbourhood Teams,Premises,Removal Of Workplace Waste,126,31/12/2019,1912-00409,0.00,116.60,R,Acumen Waste Services Ltd,No
Http://opendatacommunities.org/id/metropolitan-district-council/leeds,Leeds City Council,31/12/2019,Communities and Environment,Cleaner Neighbourhood Teams,Premises,Removal Of Workplace Waste,126,31/12/2019,1912-00410,0.00,116.60,R,Acumen Waste Services Ltd,No
Http://opendatacommunities.org/id/metropolitan-district-council/leeds,Leeds City Council,31/12/2019,Communities and Environment,Cleaner Neighbourhood Teams,Premises,Removal Of Workplace Waste,126,31/12/2019,1912-00411,0.00,116.60,R,Acumen Waste Services Ltd,No
Http://opendatacommunities.org/id/metropolitan-district-council/leeds,Leeds City Council,31/12/2019,Communities and Environment,Cleaner Neighbourhood Teams,Premises,Removal Of Workplace Waste,126,31/12/2019,1912-00412,0.00,116.60,R,Acumen Waste Services Ltd,No
Http://opendatacommunities.org/id/metropolitan-district-council/leeds,Leeds City Council,31/12/2019,Communities and Environment,Waste Management,Supplies and Services,Recycling & Reuse Charges,234,31/12/2019,1912-00413,0.00,9333.45,R,Acumen Waste Services Ltd,No
Http://opendatacommunities.org/id/metropolitan-district-council/leeds,Leeds City Council,31/12/2019,Communities and Environment,Cleaner Neighbourhood Teams,Premises,Removal Of Workplace Waste,126,31/12/2019,1912-00414,0.00,116.60,R,Acumen Waste Services Ltd,No
Http://opendatacommunities.org/id/metropolitan-district-council/leeds,Leeds City Council,31/12/2019,Communities and Environment,Cleaner Neighbourhood Teams,Premises,Removal Of Workplace Waste,126,31/12/2019,1912-00415,0.00,116.60,R,Acumen Waste Services Ltd,No
Http://opendatacommunities.org/id/metropolitan-district-council/leeds,Leeds City Council,31/12/2019,Communities and Environment,Cleaner Neighbourhood Teams,Premises,Removal Of Workplace Waste,126,31/12/2019,1912-00416,0.00,116.60,R,Acumen Waste Services Ltd,No
Http://opendatacommunities.org/id/metropolitan-district-council/leeds,Leeds City Council,31/12/2019,Communities and Environment,Cleaner Neighbourhood Teams,Premises,Removal Of Workplace Waste,126,31/12/2019,1912-00417,0.00,116.60,R,Acumen Waste Services Ltd,No
Http://opendatacommunities.org/id/metropolitan-district-council/leeds,Leeds City Council,31/12/2019,Communities and Environment,Cleaner Neighbourhood Teams,Premises,Removal Of Workplace Waste,126,31/12/2019,1912-00418,0.00,116.60,R,Acumen Waste Services Ltd,No
Http://opendatacommunities.org/id/metropolitan-district-council/leeds,Leeds City Council,31/12/2019,Communities and Environment,Cleaner Neighbourhood Teams,Premises,Removal Of Workplace Waste,126,31/12/2019,1912-00419,0.00,60.00,R,Acumen Waste Services Ltd,No
Http://opendatacommunities.org/id/metropolitan-district-council/leeds,Leeds City Council,31/12/2019,Resources and Housing,Shared Services,Supplies and Services,Operational Materials,205,11/12/2019,1912-00420,0.00,1279.20,R,Ad3 Envelope Printers Limited,No
Http://opendatacommunities.org/id/metropolitan-district-council/leeds,Leeds City Council,31/12/2019,Resources and Housing,Shared Services,Supplies and Services,Other Hired And Contracted Services,265,20/12/2019,1912-00421,0.00,96.44,R,Ad3 Envelope Printers Limited,No
Http://opendatacommunities.org/id/metropolitan-district-council/leeds,Leeds City Council,31/12/2019,Resources and Housing,Shared Services,Supplies and Services,Other Hired And Contracted Services,265,30/12/2019,1912-00422,0.00,226.28,R,Ad3 Envelope Printers Limited,No
Http://opendatacommunities.org/id/metropolitan-district-council/leeds,Leeds City Council,31/12/2019,Resources and Housing,Shared Services,Supplies and Services,Other Hired And Contracted Services,265,30/12/2019,1912-00423,0.00,231.77,R,Ad3 Envelope Printers Limited,No
Http://opendatacommunities.org/id/metropolitan-district-council/leeds,Leeds City Council,31/12/2019,Adults and Health,Services For Older People - 65 And Over,Third Party Payments,Nursing Home,570,11/12/2019,1912-00424,0.00,2480.00,R,Adbolton Hall,No
Http://opendatacommunities.org/id/metropolitan-district-council/leeds,Leeds City Council,31/12/2019,Resources and Housing,Civic Enterprise Leeds,Capital,Transport,4,05/12/2019,1912-00425,0.00,21629.80,C,Addison Motors Limited,No
Http://opendatacommunities.org/id/metropolitan-district-council/leeds,Leeds City Council,31/12/2019,Resources and Housing,Civic Enterprise Leeds,Capital,Transport,4,05/12/2019,1912-00426,0.00,21629.80,C,Addison Motors Limited,No
Http://opendatacommunities.org/id/metropolitan-district-council/leeds,Leeds City Council,31/12/2019,Resources and Housing,Civic Enterprise Leeds,Capital,Transport,4,05/12/2019,1912-00427,0.00,21629.80,C,Addison Motors Limited,No
Http://opendatacommunities.org/id/metropolitan-district-council/leeds,Leeds City Council,31/12/2019,Resources and Housing,Civic Enterprise Leeds,Capital,Transport,4,05/12/2019,1912-00428,0.00,21249.80,C,Addison Motors Limited,No
Http://opendatacommunities.org/id/metropolitan-district-council/leeds,Leeds City Council,31/12/2019,Resources and Housing,Commercial Services,Transport,Road Fund Licences,323,05/12/2019,1912-00429,0.00,55.00,R,Addison Motors Limited,No
Http://opendatacommunities.org/id/metropolitan-district-council/leeds,Leeds City Council,31/12/2019,Resources and Housing,Commercial Services,Transport,Road Fund Licences,323,05/12/2019,1912-00430,0.00,55.00,R,Addison Motors Limited,No
Http://opendatacommunities.org/id/metropolitan-district-council/leeds,Leeds City Council,31/12/2019,Resources and Housing,Commercial Services,Transport,Road Fund Licences,323,05/12/2019,1912-00431,0.00,55.00,R,Addison Motors Limited,No
Http://opendatacommunities.org/id/metropolitan-district-council/leeds,Leeds City Council,31/12/2019,Resources and Housing,Civic Enterprise Leeds,Capital,Transport,4,06/12/2019,1912-00432,0.00,21249.80,C,Addison Motors Limited,No
Http://opendatacommunities.org/id/metropolitan-district-council/leeds,Leeds City Council,31/12/2019,Resources and Housing,Civic Enterprise Leeds,Capital,Transport,4,06/12/2019,1912-00433,0.00,21249.80,C,Addison Motors Limited,No
Http://opendatacommunities.org/id/metropolitan-district-council/leeds,Leeds City Council,31/12/2019,Resources and Housing,Civic Enterprise Leeds,Capital,Transport,4,06/12/2019,1912-00434,0.00,21629.80,C,Addison Motors Limited,No
Http://opendatacommunities.org/id/metropolitan-district-council/leeds,Leeds City Council,31/12/2019,Resources and Housing,Civic Enterprise Leeds,Capital,Transport,4,06/12/2019,1912-00435,0.00,21249.80,C,Addison Motors Limited,No
Http://opendatacommunities.org/id/metropolitan-district-council/leeds,Leeds City Council,31/12/2019,Resources and Housing,Civic Enterprise Leeds,Capital,Transport,4,06/12/2019,1912-00436,0.00,21249.80,C,Addison Motors Limited,No
Http://opendatacommunities.org/id/metropolitan-district-council/leeds,Leeds City Council,31/12/2019,Resources and Housing,Civic Enterprise Leeds,Capital,Transport,4,06/12/2019,1912-00437,0.00,18261.84,C,Addison Motors Limited,No
Http://opendatacommunities.org/id/metropolitan-district-council/leeds,Leeds City Council,31/12/2019,Resources and Housing,Civic Enterprise Leeds,Capital,Transport,4,06/12/2019,1912-00438,0.00,18261.84,C,Addison Motors Limited,No
Http://opendatacommunities.org/id/metropolitan-district-council/leeds,Leeds City Council,31/12/2019,Resources and Housing,Civic Enterprise Leeds,Capital,Transport,4,06/12/2019,1912-00439,0.00,18261.84,C,Addison Motors Limited,No
Http://opendatacommunities.org/id/metropolitan-district-council/leeds,Leeds City Council,31/12/2019,Resources and Housing,Civic Enterprise Leeds,Capital,Transport,4,06/12/2019,1912-00440,0.00,18261.84,C,Addison Motors Limited,No
Http://opendatacommunities.org/id/metropolitan-district-council/leeds,Leeds City Council,31/12/2019,Resources and Housing,Civic Enterprise Leeds,Capital,Transport,4,06/12/2019,1912-00441,0.00,18261.84,C,Addison Motors Limited,No
Http://opendatacommunities.org/id/metropolitan-district-council/leeds,Leeds City Council,31/12/2019,Resources and Housing,Civic Enterprise Leeds,Capital,Transport,4,06/12/2019,1912-00442,0.00,18261.84,C,Addison Motors Limited,No
Http://opendatacommunities.org/id/metropolitan-district-council/leeds,Leeds City Council,31/12/2019,Resources and Housing,Commercial Services,Transport,Road Fund Licences,323,06/12/2019,1912-00443,0.00,55.00,R,Addison Motors Limited,No
Http://opendatacommunities.org/id/metropolitan-district-council/leeds,Leeds City Council,31/12/2019,Resources and Housing,Commercial Services,Transport,Road Fund Licences,323,06/12/2019,1912-00444,0.00,55.00,R,Addison Motors Limited,No
Http://opendatacommunities.org/id/metropolitan-district-council/leeds,Leeds City Council,31/12/2019,Resources and Housing,Commercial Services,Transport,Road Fund Licences,323,06/12/2019,1912-00445,0.00,55.00,R,Addison Motors Limited,No
Http://opendatacommunities.org/id/metropolitan-district-council/leeds,Leeds City Council,31/12/2019,Resources and Housing,Commercial Services,Transport,Road Fund Licences,323,06/12/2019,1912-00446,0.00,55.00,R,Addison Motors Limited,No
Http://opendatacommunities.org/id/metropolitan-district-council/leeds,Leeds City Council,31/12/2019,Resources and Housing,Commercial Services,Transport,Road Fund Licences,323,06/12/2019,1912-00447,0.00,55.00,R,Addison Motors Limited,No
Http://opendatacommunities.org/id/metropolitan-district-council/leeds,Leeds City Council,31/12/2019,Resources and Housing,Commercial Services,Transport,Road Fund Licences,323,06/12/2019,1912-00448,0.00,55.00,R,Addison Motors Limited,No
Http://opendatacommunities.org/id/metropolitan-district-council/leeds,Leeds City Council,31/12/2019,Resources and Housing,Commercial Services,Transport,Road Fund Licences,323,06/12/2019,1912-00449,0.00,315.00,R,Addison Motors Limited,No
Http://opendatacommunities.org/id/metropolitan-district-council/leeds,Leeds City Council,31/12/2019,Resources and Housing,Commercial Services,Transport,Road Fund Licences,323,06/12/2019,1912-00450,0.00,315.00,R,Addison Motors Limited,No
Http://opendatacommunities.org/id/metropolitan-district-council/leeds,Leeds City Council,31/12/2019,Resources and Housing,Commercial Services,Transport,Road Fund Licences,323,06/12/2019,1912-00451,0.00,315.00,R,Addison Motors Limited,No
Http://opendatacommunities.org/id/metropolitan-district-council/leeds,Leeds City Council,31/12/2019,Resources and Housing,Commercial Services,Transport,Road Fund Licences,323,06/12/2019,1912-00452,0.00,315.00,R,Addison Motors Limited,No
Http://opendatacommunities.org/id/metropolitan-district-council/leeds,Leeds City Council,31/12/2019,Resources and Housing,Commercial Services,Transport,Road Fund Licences,323,06/12/2019,1912-00453,0.00,315.00,R,Addison Motors Limited,No
Http://opendatacommunities.org/id/metropolitan-district-council/leeds,Leeds City Council,31/12/2019,Resources and Housing,Commercial Services,Transport,Road Fund Licences,323,06/12/2019,1912-00454,0.00,315.00,R,Addison Motors Limited,No
Http://opendatacommunities.org/id/metropolitan-district-council/leeds,Leeds City Council,31/12/2019,Resources and Housing,Civic Enterprise Leeds,Capital,Transport,4,11/12/2019,1912-00455,0.00,18261.84,C,Addison Motors Limited,No
Http://opendatacommunities.org/id/metropolitan-district-council/leeds,Leeds City Council,31/12/2019,Resources and Housing,Civic Enterprise Leeds,Capital,Transport,4,11/12/2019,1912-00456,0.00,18261.84,C,Addison Motors Limited,No
Http://opendatacommunities.org/id/metropolitan-district-council/leeds,Leeds City Council,31/12/2019,Resources and Housing,Civic Enterprise Leeds,Capital,Transport,4,11/12/2019,1912-00457,0.00,18261.84,C,Addison Motors Limited,No
Http://opendatacommunities.org/id/metropolitan-district-council/leeds,Leeds City Council,31/12/2019,Resources and Housing,Civic Enterprise Leeds,Capital,Transport,4,11/12/2019,1912-00458,0.00,18261.84,C,Addison Motors Limited,No
Http://opendatacommunities.org/id/metropolitan-district-council/leeds,Leeds City Council,31/12/2019,Resources and Housing,Civic Enterprise Leeds,Capital,Transport,4,11/12/2019,1912-00459,0.00,18261.84,C,Addison Motors Limited,No
Http://opendatacommunities.org/id/metropolitan-district-council/leeds,Leeds City Council,31/12/2019,Resources and Housing,Commercial Services,Transport,Road Fund Licences,323,11/12/2019,1912-00460,0.00,315.00,R,Addison Motors Limited,No
Http://opendatacommunities.org/id/metropolitan-district-council/leeds,Leeds City Council,31/12/2019,Resources and Housing,Commercial Services,Transport,Road Fund Licences,323,11/12/2019,1912-00461,0.00,315.00,R,Addison Motors Limited,No
Http://opendatacommunities.org/id/metropolitan-district-council/leeds,Leeds City Council,31/12/2019,Resources and Housing,Commercial Services,Transport,Road Fund Licences,323,11/12/2019,1912-00462,0.00,315.00,R,Addison Motors Limited,No
Http://opendatacommunities.org/id/metropolitan-district-council/leeds,Leeds City Council,31/12/2019,Resources and Housing,Commercial Services,Transport,Road Fund Licences,323,11/12/2019,1912-00463,0.00,315.00,R,Addison Motors Limited,No
Http://opendatacommunities.org/id/metropolitan-district-council/leeds,Leeds City Council,31/12/2019,Resources and Housing,Commercial Services,Transport,Road Fund Licences,323,11/12/2019,1912-00464,0.00,315.00,R,Addison Motors Limited,No
Http://opendatacommunities.org/id/metropolitan-district-council/leeds,Leeds City Council,31/12/2019,Resources and Housing,Civic Enterprise Leeds,Capital,Transport,4,13/12/2019,1912-00465,0.00,21629.80,C,Addison Motors Limited,No
Http://opendatacommunities.org/id/metropolitan-district-council/leeds,Leeds City Council,31/12/2019,Resources and Housing,Civic Enterprise Leeds,Capital,Transport,4,13/12/2019,1912-00466,0.00,21629.80,C,Addison Motors Limited,No
Http://opendatacommunities.org/id/metropolitan-district-council/leeds,Leeds City Council,31/12/2019,Resources and Housing,Civic Enterprise Leeds,Capital,Transport,4,13/12/2019,1912-00467,0.00,21629.80,C,Addison Motors Limited,No
Http://opendatacommunities.org/id/metropolitan-district-council/leeds,Leeds City Council,31/12/2019,Resources and Housing,Civic Enterprise Leeds,Capital,Transport,4,13/12/2019,1912-00468,0.00,21629.80,C,Addison Motors Limited,No
Http://opendatacommunities.org/id/metropolitan-district-council/leeds,Leeds City Council,31/12/2019,Resources and Housing,Civic Enterprise Leeds,Capital,Transport,4,13/12/2019,1912-00469,0.00,18261.84,C,Addison Motors Limited,No
Http://opendatacommunities.org/id/metropolitan-district-council/leeds,Leeds City Council,31/12/2019,Resources and Housing,Civic Enterprise Leeds,Capital,Transport,4,13/12/2019,1912-00470,0.00,18261.84,C,Addison Motors Limited,No
Http://opendatacommunities.org/id/metropolitan-district-council/leeds,Leeds City Council,31/12/2019,Resources and Housing,Civic Enterprise Leeds,Capital,Transport,4,13/12/2019,1912-00471,0.00,18261.84,C,Addison Motors Limited,No
Http://opendatacommunities.org/id/metropolitan-district-council/leeds,Leeds City Council,31/12/2019,Resources and Housing,Civic Enterprise Leeds,Capital,Transport,4,13/12/2019,1912-00472,0.00,18261.84,C,Addison Motors Limited,No
Http://opendatacommunities.org/id/metropolitan-district-council/leeds,Leeds City Council,31/12/2019,Resources and Housing,Civic Enterprise Leeds,Capital,Transport,4,13/12/2019,1912-00473,0.00,18261.84,C,Addison Motors Limited,No
Http://opendatacommunities.org/id/metropolitan-district-council/leeds,Leeds City Council,31/12/2019,Resources and Housing,Civic Enterprise Leeds,Capital,Transport,4,13/12/2019,1912-00474,0.00,18261.84,C,Addison Motors Limited,No
Http://opendatacommunities.org/id/metropolitan-district-council/leeds,Leeds City Council,31/12/2019,Resources and Housing,Civic Enterprise Leeds,Capital,Transport,4,13/12/2019,1912-00475,0.00,18261.84,C,Addison Motors Limited,No
Http://opendatacommunities.org/id/metropolitan-district-council/leeds,Leeds City Council,31/12/2019,Resources and Housing,Civic Enterprise Leeds,Capital,Transport,4,13/12/2019,1912-00476,0.00,18261.84,C,Addison Motors Limited,No
Http://opendatacommunities.org/id/metropolitan-district-council/leeds,Leeds City Council,31/12/2019,Resources and Housing,Civic Enterprise Leeds,Capital,Transport,4,13/12/2019,1912-00477,0.00,18261.84,C,Addison Motors Limited,No
Http://opendatacommunities.org/id/metropolitan-district-council/leeds,Leeds City Council,31/12/2019,Resources and Housing,Civic Enterprise Leeds,Capital,Transport,4,13/12/2019,1912-00478,0.00,18261.84,C,Addison Motors Limited,No
Http://opendatacommunities.org/id/metropolitan-district-council/leeds,Leeds City Council,31/12/2019,Resources and Housing,Civic Enterprise Leeds,Capital,Transport,4,13/12/2019,1912-00479,0.00,18261.84,C,Addison Motors Limited,No
Http://opendatacommunities.org/id/metropolitan-district-council/leeds,Leeds City Council,31/12/2019,Resources and Housing,Commercial Services,Transport,Road Fund Licences,323,13/12/2019,1912-00480,0.00,55.00,R,Addison Motors Limited,No
Http://opendatacommunities.org/id/metropolitan-district-council/leeds,Leeds City Council,31/12/2019,Resources and Housing,Commercial Services,Transport,Road Fund Licences,323,13/12/2019,1912-00481,0.00,55.00,R,Addison Motors Limited,No
Http://opendatacommunities.org/id/metropolitan-district-council/leeds,Leeds City Council,31/12/2019,Resources and Housing,Commercial Services,Transport,Road Fund Licences,323,13/12/2019,1912-00482,0.00,55.00,R,Addison Motors Limited,No
Http://opendatacommunities.org/id/metropolitan-district-council/leeds,Leeds City Council,31/12/2019,Resources and Housing,Commercial Services,Transport,Road Fund Licences,323,13/12/2019,1912-00483,0.00,55.00,R,Addison Motors Limited,No
Http://opendatacommunities.org/id/metropolitan-district-council/leeds,Leeds City Council,31/12/2019,Resources and Housing,Commercial Services,Transport,Road Fund Licences,323,13/12/2019,1912-00484,0.00,315.00,R,Addison Motors Limited,No
Http://opendatacommunities.org/id/metropolitan-district-council/leeds,Leeds City Council,31/12/2019,Resources and Housing,Commercial Services,Transport,Road Fund Licences,323,13/12/2019,1912-00485,0.00,315.00,R,Addison Motors Limited,No
Http://opendatacommunities.org/id/metropolitan-district-council/leeds,Leeds City Council,31/12/2019,Resources and Housing,Commercial Services,Transport,Road Fund Licences,323,13/12/2019,1912-00486,0.00,315.00,R,Addison Motors Limited,No
Http://opendatacommunities.org/id/metropolitan-district-council/leeds,Leeds City Council,31/12/2019,Resources and Housing,Commercial Services,Transport,Road Fund Licences,323,13/12/2019,1912-00487,0.00,315.00,R,Addison Motors Limited,No
Http://opendatacommunities.org/id/metropolitan-district-council/leeds,Leeds City Council,31/12/2019,Resources and Housing,Commercial Services,Transport,Road Fund Licences,323,13/12/2019,1912-00488,0.00,315.00,R,Addison Motors Limited,No
Http://opendatacommunities.org/id/metropolitan-district-council/leeds,Leeds City Council,31/12/2019,Resources and Housing,Commercial Services,Transport,Road Fund Licences,323,13/12/2019,1912-00489,0.00,315.00,R,Addison Motors Limited,No
Http://opendatacommunities.org/id/metropolitan-district-council/leeds,Leeds City Council,31/12/2019,Resources and Housing,Commercial Services,Transport,Road Fund Licences,323,17/12/2019,1912-00490,0.00,315.00,R,Addison Motors Limited,No
Http://opendatacommunities.org/id/metropolitan-district-council/leeds,Leeds City Council,31/12/2019,Resources and Housing,Commercial Services,Transport,Road Fund Licences,323,17/12/2019,1912-00491,0.00,315.00,R,Addison Motors Limited,No
Http://opendatacommunities.org/id/metropolitan-district-council/leeds,Leeds City Council,31/12/2019,Resources and Housing,Commercial Services,Transport,Road Fund Licences,323,17/12/2019,1912-00492,0.00,315.00,R,Addison Motors Limited,No
Http://opendatacommunities.org/id/metropolitan-district-council/leeds,Leeds City Council,31/12/2019,Resources and Housing,Commercial Services,Transport,Road Fund Licences,323,17/12/2019,1912-00493,0.00,315.00,R,Addison Motors Limited,No
Http://opendatacommunities.org/id/metropolitan-district-council/leeds,Leeds City Council,31/12/2019,Resources and Housing,Commercial Services,Transport,Road Fund Licences,323,17/12/2019,1912-00494,0.00,315.00,R,Addison Motors Limited,No
Http://opendatacommunities.org/id/metropolitan-district-council/leeds,Leeds City Council,31/12/2019,Resources and Housing,Civic Enterprise Leeds,Capital,Transport,4,18/12/2019,1912-00495,0.00,21629.80,C,Addison Motors Limited,No
Http://opendatacommunities.org/id/metropolitan-district-council/leeds,Leeds City Council,31/12/2019,Resources and Housing,Civic Enterprise Leeds,Capital,Transport,4,18/12/2019,1912-00496,0.00,21629.80,C,Addison Motors Limited,No
Http://opendatacommunities.org/id/metropolitan-district-council/leeds,Leeds City Council,31/12/2019,Resources and Housing,Civic Enterprise Leeds,Capital,Transport,4,18/12/2019,1912-00497,0.00,21629.80,C,Addison Motors Limited,No
Http://opendatacommunities.org/id/metropolitan-district-council/leeds,Leeds City Council,31/12/2019,Resources and Housing,Civic Enterprise Leeds,Capital,Transport,4,18/12/2019,1912-00498,0.00,21629.80,C,Addison Motors Limited,No
Http://opendatacommunities.org/id/metropolitan-district-council/leeds,Leeds City Council,31/12/2019,Resources and Housing,Commercial Services,Transport,Road Fund Licences,323,18/12/2019,1912-00499,0.00,55.00,R,Addison Motors Limited,No
Http://opendatacommunities.org/id/metropolitan-district-council/leeds,Leeds City Council,31/12/2019,Resources and Housing,Commercial Services,Transport,Road Fund Licences,323,18/12/2019,1912-00500,0.00,55.00,R,Addison Motors Limited,No
Http://opendatacommunities.org/id/metropolitan-district-council/leeds,Leeds City Council,31/12/2019,Resources and Housing,Commercial Services,Transport,Road Fund Licences,323,18/12/2019,1912-00501,0.00,55.00,R,Addison Motors Limited,No
Http://opendatacommunities.org/id/metropolitan-district-council/leeds,Leeds City Council,31/12/2019,Resources and Housing,Civic Enterprise Leeds,Capital,Transport,4,20/12/2019,1912-00502,0.00,21629.80,C,Addison Motors Limited,No
Http://opendatacommunities.org/id/metropolitan-district-council/leeds,Leeds City Council,31/12/2019,Resources and Housing,Civic Enterprise Leeds,Capital,Transport,4,20/12/2019,1912-00503,0.00,21629.80,C,Addison Motors Limited,No
Http://opendatacommunities.org/id/metropolitan-district-council/leeds,Leeds City Council,31/12/2019,Resources and Housing,Civic Enterprise Leeds,Capital,Transport,4,20/12/2019,1912-00504,0.00,21629.80,C,Addison Motors Limited,No
Http://opendatacommunities.org/id/metropolitan-district-council/leeds,Leeds City Council,31/12/2019,Resources and Housing,Civic Enterprise Leeds,Capital,Transport,4,20/12/2019,1912-00505,0.00,21629.80,C,Addison Motors Limited,No
Http://opendatacommunities.org/id/metropolitan-district-council/leeds,Leeds City Council,31/12/2019,Resources and Housing,Civic Enterprise Leeds,Capital,Transport,4,20/12/2019,1912-00506,0.00,21629.80,C,Addison Motors Limited,No
Http://opendatacommunities.org/id/metropolitan-district-council/leeds,Leeds City Council,31/12/2019,Resources and Housing,Civic Enterprise Leeds,Capital,Transport,4,20/12/2019,1912-00507,0.00,21629.80,C,Addison Motors Limited,No
Http://opendatacommunities.org/id/metropolitan-district-council/leeds,Leeds City Council,31/12/2019,Resources and Housing,Civic Enterprise Leeds,Capital,Transport,4,20/12/2019,1912-00508,0.00,21629.80,C,Addison Motors Limited,No
Http://opendatacommunities.org/id/metropolitan-district-council/leeds,Leeds City Council,31/12/2019,Resources and Housing,Civic Enterprise Leeds,Capital,Transport,4,20/12/2019,1912-00509,0.00,21629.80,C,Addison Motors Limited,No
Http://opendatacommunities.org/id/metropolitan-district-council/leeds,Leeds City Council,31/12/2019,Resources and Housing,Civic Enterprise Leeds,Capital,Transport,4,20/12/2019,1912-00510,0.00,18261.84,C,Addison Motors Limited,No
Http://opendatacommunities.org/id/metropolitan-district-council/leeds,Leeds City Council,31/12/2019,Resources and Housing,Civic Enterprise Leeds,Capital,Transport,4,20/12/2019,1912-00511,0.00,18261.84,C,Addison Motors Limited,No
Http://opendatacommunities.org/id/metropolitan-district-council/leeds,Leeds City Council,31/12/2019,Resources and Housing,Civic Enterprise Leeds,Capital,Transport,4,20/12/2019,1912-00512,0.00,18261.84,C,Addison Motors Limited,No
Http://opendatacommunities.org/id/metropolitan-district-council/leeds,Leeds City Council,31/12/2019,Resources and Housing,Civic Enterprise Leeds,Capital,Transport,4,20/12/2019,1912-00513,0.00,18261.84,C,Addison Motors Limited,No
Http://opendatacommunities.org/id/metropolitan-district-council/leeds,Leeds City Council,31/12/2019,Resources and Housing,Civic Enterprise Leeds,Capital,Transport,4,20/12/2019,1912-00514,0.00,18261.84,C,Addison Motors Limited,No
Http://opendatacommunities.org/id/metropolitan-district-council/leeds,Leeds City Council,31/12/2019,Resources and Housing,Civic Enterprise Leeds,Capital,Transport,4,20/12/2019,1912-00515,0.00,18261.84,C,Addison Motors Limited,No
Http://opendatacommunities.org/id/metropolitan-district-council/leeds,Leeds City Council,31/12/2019,Resources and Housing,Civic Enterprise Leeds,Capital,Transport,4,20/12/2019,1912-00516,0.00,18261.84,C,Addison Motors Limited,No
Http://opendatacommunities.org/id/metropolitan-district-council/leeds,Leeds City Council,31/12/2019,Resources and Housing,Commercial Services,Transport,Road Fund Licences,323,20/12/2019,1912-00517,0.00,55.00,R,Addison Motors Limited,No
Http://opendatacommunities.org/id/metropolitan-district-council/leeds,Leeds City Council,31/12/2019,Resources and Housing,Commercial Services,Transport,Road Fund Licences,323,20/12/2019,1912-00518,0.00,55.00,R,Addison Motors Limited,No
Http://opendatacommunities.org/id/metropolitan-district-council/leeds,Leeds City Council,31/12/2019,Resources and Housing,Commercial Services,Transport,Road Fund Licences,323,20/12/2019,1912-00519,0.00,55.00,R,Addison Motors Limited,No
Http://opendatacommunities.org/id/metropolitan-district-council/leeds,Leeds City Council,31/12/2019,Resources and Housing,Commercial Services,Transport,Road Fund Licences,323,20/12/2019,1912-00520,0.00,55.00,R,Addison Motors Limited,No
Http://opendatacommunities.org/id/metropolitan-district-council/leeds,Leeds City Council,31/12/2019,Resources and Housing,Commercial Services,Transport,Road Fund Licences,323,20/12/2019,1912-00521,0.00,55.00,R,Addison Motors Limited,No
Http://opendatacommunities.org/id/metropolitan-district-council/leeds,Leeds City Council,31/12/2019,Resources and Housing,Commercial Services,Transport,Road Fund Licences,323,20/12/2019,1912-00522,0.00,55.00,R,Addison Motors Limited,No
Http://opendatacommunities.org/id/metropolitan-district-council/leeds,Leeds City Council,31/12/2019,Resources and Housing,Commercial Services,Transport,Road Fund Licences,323,20/12/2019,1912-00523,0.00,55.00,R,Addison Motors Limited,No
Http://opendatacommunities.org/id/metropolitan-district-council/leeds,Leeds City Council,31/12/2019,Resources and Housing,Commercial Services,Transport,Road Fund Licences,323,20/12/2019,1912-00524,0.00,55.00,R,Addison Motors Limited,No
Http://opendatacommunities.org/id/metropolitan-district-council/leeds,Leeds City Council,31/12/2019,Resources and Housing,Commercial Services,Transport,Road Fund Licences,323,20/12/2019,1912-00525,0.00,315.00,R,Addison Motors Limited,No
Http://opendatacommunities.org/id/metropolitan-district-council/leeds,Leeds City Council,31/12/2019,Resources and Housing,Commercial Services,Transport,Road Fund Licences,323,27/12/2019,1912-00526,0.00,315.00,R,Addison Motors Limited,No
Http://opendatacommunities.org/id/metropolitan-district-council/leeds,Leeds City Council,31/12/2019,Resources and Housing,Commercial Services,Transport,Road Fund Licences,323,27/12/2019,1912-00527,0.00,315.00,R,Addison Motors Limited,No
Http://opendatacommunities.org/id/metropolitan-district-council/leeds,Leeds City Council,31/12/2019,Resources and Housing,Commercial Services,Transport,Road Fund Licences,323,27/12/2019,1912-00528,0.00,315.00,R,Addison Motors Limited,No
Http://opendatacommunities.org/id/metropolitan-district-council/leeds,Leeds City Council,31/12/2019,Resources and Housing,Commercial Services,Transport,Road Fund Licences,323,27/12/2019,1912-00529,0.00,315.00,R,Addison Motors Limited,No
Http://opendatacommunities.org/id/metropolitan-district-council/leeds,Leeds City Council,31/12/2019,Resources and Housing,Commercial Services,Transport,Road Fund Licences,323,27/12/2019,1912-00530,0.00,315.00,R,Addison Motors Limited,No
Http://opendatacommunities.org/id/metropolitan-district-council/leeds,Leeds City Council,31/12/2019,Resources and Housing,Commercial Services,Transport,Road Fund Licences,323,27/12/2019,1912-00531,0.00,315.00,R,Addison Motors Limited,No
Http://opendatacommunities.org/id/metropolitan-district-council/leeds,Leeds City Council,31/12/2019,Resources and Housing,Sustainable Energy & Climate Change,Capital,Other Costs,7,02/12/2019,1912-00532,0.00,15435.66,C,Addleshaw Goddard Llp,No
Http://opendatacommunities.org/id/metropolitan-district-council/leeds,Leeds City Council,31/12/2019,Communities and Environment,Parks and Countryside,Premises,Rents,141,02/12/2019,1912-00533,0.00,5924.27,R,Addplant Limited,No
Http://opendatacommunities.org/id/metropolitan-district-council/leeds,Leeds City Council,31/12/2019,Resources And Housing,Technology  ,Employees,Agency Staff,8,05/11/2019,1912-00534,0.00,27491.81,R,Adecco Alfred Marks,Yes
Http://opendatacommunities.org/id/metropolitan-district-council/leeds,Leeds City Council,31/12/2019,Resources And Housing,Technology  ,Employees,Agency Staff,8,08/11/2019,1912-00535,0.00,20380.85,R,Adecco Alfred Marks,Yes
Http://opendatacommunities.org/id/metropolitan-district-council/leeds,Leeds City Council,31/12/2019,Resources And Housing,Technology  ,Employees,Agency Staff,8,19/11/2019,1912-00536,0.00,30627.03,R,Adecco Alfred Marks,Yes
Http://opendatacommunities.org/id/metropolitan-district-council/leeds,Leeds City Council,31/12/2019,Strategic Landlord,Housing Management,Supplies and Services,Grants To Voluntary Organisations,293,24/12/2019,1912-00537,0.00,100.00,R,Adel Crag Community Association,No
Http://opendatacommunities.org/id/metropolitan-district-council/leeds,Leeds City Council,31/12/2019,Communities and Environment,Elections  Licensing and Registration,Premises,Rents,141,27/12/2019,1912-00538,0.00,320.00,R,Adel Methodist Church Trustees,No
Http://opendatacommunities.org/id/metropolitan-district-council/leeds,Leeds City Council,31/12/2019,Children and Families,Social Care,Third Party Payments,Services Rendered By Voluntary Sector,505,06/12/2019,1912-00539,0.00,8038.85,R,Adel Pre School,No
Http://opendatacommunities.org/id/metropolitan-district-council/leeds,Leeds City Council,31/12/2019,Children and Families,Social Care,Third Party Payments,Services Rendered By Voluntary Sector,505,06/12/2019,1912-00540,0.00,333.90,R,Adel Pre School,No
Http://opendatacommunities.org/id/metropolitan-district-council/leeds,Leeds City Council,31/12/2019,Communities And Environment,Parks And Countryside  ,Transport,Fuel (Non LCC Supplies),321,20/11/2019,1912-00541,0.00,20.42,R,Adel Sf Connect,Yes
Http://opendatacommunities.org/id/metropolitan-district-council/leeds,Leeds City Council,31/12/2019,Communities And Environment,Parks And Countryside  ,Transport,Fuel (Non LCC Supplies),321,21/11/2019,1912-00542,0.00,20.89,R,Adel Sf Connect,Yes
Http://opendatacommunities.org/id/metropolitan-district-council/leeds,Leeds City Council,31/12/2019,Communities And Environment,Parks And Countryside  ,Transport,Fuel (Non LCC Supplies),321,26/11/2019,1912-00543,0.00,21.23,R,Adel Sf Connect,Yes
Http://opendatacommunities.org/id/metropolitan-district-council/leeds,Leeds City Council,31/12/2019,Children and Families,Social Care,Third Party Payments,Services Rendered By Other Organisations,511,04/12/2019,1912-00544,0.00,273.00,R,REDACTED PERSONAL DATA,No
Http://opendatacommunities.org/id/metropolitan-district-council/leeds,Leeds City Council,31/12/2019,Children and Families,Social Care,Third Party Payments,Services Rendered By Other Organisations,511,06/12/2019,1912-00545,0.00,225.75,R,REDACTED PERSONAL DATA,No
Http://opendatacommunities.org/id/metropolitan-district-council/leeds,Leeds City Council,31/12/2019,Children and Families,Social Care,Third Party Payments,Services Rendered By Other Organisations,511,06/12/2019,1912-00546,0.00,785.82,R,REDACTED PERSONAL DATA,No
Http://opendatacommunities.org/id/metropolitan-district-council/leeds,Leeds City Council,31/12/2019,Resources and Housing,Commercial Services,Supplies and Services,Food & Drink,231,09/12/2019,1912-00547,0.00,246.86,R,Adelie Foods Ltd,No
Http://opendatacommunities.org/id/metropolitan-district-council/leeds,Leeds City Council,31/12/2019,Resources and Housing,Commercial Services,Supplies and Services,Food & Drink,231,11/12/2019,1912-00548,0.00,187.34,R,Adelie Foods Ltd,No
Http://opendatacommunities.org/id/metropolitan-district-council/leeds,Leeds City Council,31/12/2019,Resources and Housing,Commercial Services,Supplies and Services,Food & Drink,231,20/12/2019,1912-00549,0.00,181.40,R,Adelie Foods Ltd,No
Http://opendatacommunities.org/id/metropolitan-district-council/leeds,Leeds City Council,31/12/2019,Resources and Housing,Commercial Services,Supplies and Services,Food & Drink,231,24/12/2019,1912-00550,0.00,320.52,R,Adelie Foods Ltd,No
Http://opendatacommunities.org/id/metropolitan-district-council/leeds,Leeds City Council,31/12/2019,Resources and Housing,Commercial Services,Supplies and Services,Food & Drink,231,24/12/2019,1912-00551,0.00,265.37,R,Adelie Foods Ltd,No
Http://opendatacommunities.org/id/metropolitan-district-council/leeds,Leeds City Council,31/12/2019,Resources and Housing,Commercial Services,Supplies and Services,Food & Drink,231,31/12/2019,1912-00552,0.00,189.72,R,Adelie Foods Ltd,No
Http://opendatacommunities.org/id/metropolitan-district-council/leeds,Leeds City Council,31/12/2019,Resources and Housing,Commercial Services,Supplies and Services,Operational Furniture And Equipment,203,31/12/2019,1912-00553,0.00,274.28,R,Adelie Foods Ltd,No
Http://opendatacommunities.org/id/metropolitan-district-council/leeds,Leeds City Council,31/12/2019,Resources and Housing,Commercial Services,Supplies and Services,Operational Furniture And Equipment,203,31/12/2019,1912-00554,0.00,-26.90,R,Adelie Foods Ltd,No
Http://opendatacommunities.org/id/metropolitan-district-council/leeds,Leeds City Council,31/12/2019,Resources and Housing,Leeds Building Services,Supplies and Services,Operational Materials,205,06/12/2019,1912-00555,0.00,660.31,R,Adi Global,No
Http://opendatacommunities.org/id/metropolitan-district-council/leeds,Leeds City Council,31/12/2019,Resources and Housing,Leeds Building Services,Supplies and Services,Operational Materials,205,06/12/2019,1912-00556,0.00,870.36,R,Adi Global,No
Http://opendatacommunities.org/id/metropolitan-district-council/leeds,Leeds City Council,31/12/2019,Resources and Housing,Leeds Building Services,Supplies and Services,Operational Materials,205,11/12/2019,1912-00557,0.00,-117.00,R,Adi Global,No
Http://opendatacommunities.org/id/metropolitan-district-council/leeds,Leeds City Council,31/12/2019,Resources and Housing,Leeds Building Services,Supplies and Service,Stores - Central And Other Depots,5,11/12/2019,1912-00558,0.00,1000.00,R,Adi Global,No
Http://opendatacommunities.org/id/metropolitan-district-council/leeds,Leeds City Council,31/12/2019,Resources and Housing,Leeds Building Services,Supplies and Services,Operational Materials,205,11/12/2019,1912-00559,0.00,537.52,R,Adi Global,No
Http://opendatacommunities.org/id/metropolitan-district-council/leeds,Leeds City Council,31/12/2019,Resources and Housing,Leeds Building Services,Supplies and Services,Operational Materials,205,11/12/2019,1912-00560,0.00,444.80,R,Adi Global,No
Http://opendatacommunities.org/id/metropolitan-district-council/leeds,Leeds City Council,31/12/2019,Resources and Housing,Leeds Building Services,Supplies and Services,Operational Materials,205,12/12/2019,1912-00561,0.00,1258.93,R,Adi Global,No
Http://opendatacommunities.org/id/metropolitan-district-council/leeds,Leeds City Council,31/12/2019,Resources and Housing,Leeds Building Services,Supplies and Services,Operational Materials,205,12/12/2019,1912-00562,0.00,49.53,R,Adi Global,No
Http://opendatacommunities.org/id/metropolitan-district-council/leeds,Leeds City Council,31/12/2019,Resources and Housing,Leeds Building Services,Supplies and Services,Operational Materials,205,12/12/2019,1912-00563,0.00,1179.30,R,Adi Global,No
Http://opendatacommunities.org/id/metropolitan-district-council/leeds,Leeds City Council,31/12/2019,City Development,Libraries  Arts & Heritage,Supplies and Services,Other Hired And Contracted Services,265,13/12/2019,1912-00564,0.00,4490.00,R,Adi Uk Ltd,No
Http://opendatacommunities.org/id/metropolitan-district-council/leeds,Leeds City Council,31/12/2019,Communities And Environment,Community Safety  ,Supplies and Services,Other Hired And Contracted Services,265,12/11/2019,1912-00565,0.00,38.95,R,Adi-Gardiner Ltd,Yes
Http://opendatacommunities.org/id/metropolitan-district-council/leeds,Leeds City Council,31/12/2019,Communities And Environment,Community Safety  ,Supplies and Services,Other Hired And Contracted Services,265,20/11/2019,1912-00566,0.00,72.54,R,Adi-Gardiner Ltd,Yes
Http://opendatacommunities.org/id/metropolitan-district-council/leeds,Leeds City Council,31/12/2019,Adults and Health,Services For Adults Under 65 Mental/Dis,Third Party Payments,Home Care,568,10/12/2019,1912-00567,0.00,1176.00,R,Adjuvo Care & Support Ltd,No
Http://opendatacommunities.org/id/metropolitan-district-council/leeds,Leeds City Council,31/12/2019,Adults and Health,Services For Adults Under 65 Mental/Dis,Third Party Payments,Home Care,568,10/12/2019,1912-00568,0.00,864.00,R,Adjuvo Care & Support Ltd,No
Http://opendatacommunities.org/id/metropolitan-district-council/leeds,Leeds City Council,31/12/2019,Adults and Health,Services For Adults Under 65 Mental/Dis,Third Party Payments,Home Care,568,10/12/2019,1912-00569,0.00,896.00,R,Adjuvo Care & Support Ltd,No
Http://opendatacommunities.org/id/metropolitan-district-council/leeds,Leeds City Council,31/12/2019,Adults and Health,Services For Adults Under 65 Mental/Dis,Third Party Payments,Home Care,568,10/12/2019,1912-00570,0.00,256.00,R,Adjuvo Care & Support Ltd,No
Http://opendatacommunities.org/id/metropolitan-district-council/leeds,Leeds City Council,31/12/2019,City Development,Libraries  Arts & Heritage  ,Supplies and Services,Computer Software & Equipment,214,02/11/2019,1912-00571,0.00,9.98,R,Adobe Photogphy Plan,Yes
Http://opendatacommunities.org/id/metropolitan-district-council/leeds,Leeds City Council,31/12/2019,City Development,Libraries  Arts & Heritage  ,Supplies and Services,Computer Software & Equipment,214,08/11/2019,1912-00572,0.00,947.88,R,Adobe Products,Yes
Http://opendatacommunities.org/id/metropolitan-district-council/leeds,Leeds City Council,31/12/2019,Children and Families,Social Care,Third Party Payments,Independent Fostering Agencies,509,05/12/2019,1912-00573,0.00,2945.00,R,Adolescent And Childrens Trust,No
Http://opendatacommunities.org/id/metropolitan-district-council/leeds,Leeds City Council,31/12/2019,Children and Families,Social Care,Third Party Payments,Independent Fostering Agencies,509,05/12/2019,1912-00574,0.00,3377.14,R,Adolescent And Childrens Trust,No
Http://opendatacommunities.org/id/metropolitan-district-council/leeds,Leeds City Council,31/12/2019,Children and Families,Social Care,Third Party Payments,Independent Fostering Agencies,509,05/12/2019,1912-00575,0.00,3309.60,R,Adolescent And Childrens Trust,No
Http://opendatacommunities.org/id/metropolitan-district-council/leeds,Leeds City Council,31/12/2019,Children and Families,Social Care,Third Party Payments,Independent Fostering Agencies,509,05/12/2019,1912-00576,0.00,3309.60,R,Adolescent And Childrens Trust,No
Http://opendatacommunities.org/id/metropolitan-district-council/leeds,Leeds City Council,31/12/2019,Children and Families,Social Care,Third Party Payments,Independent Fostering Agencies,509,05/12/2019,1912-00577,0.00,3309.60,R,Adolescent And Childrens Trust,No
Http://opendatacommunities.org/id/metropolitan-district-council/leeds,Leeds City Council,31/12/2019,Children and Families,Social Care,Third Party Payments,Independent Fostering Agencies,509,05/12/2019,1912-00578,0.00,3309.60,R,Adolescent And Childrens Trust,No
Http://opendatacommunities.org/id/metropolitan-district-council/leeds,Leeds City Council,31/12/2019,Children and Families,Social Care,Third Party Payments,Independent Fostering Agencies,509,05/12/2019,1912-00579,0.00,3309.60,R,Adolescent And Childrens Trust,No
Http://opendatacommunities.org/id/metropolitan-district-council/leeds,Leeds City Council,31/12/2019,Children and Families,Social Care,Third Party Payments,Independent Fostering Agencies,509,13/12/2019,1912-00580,0.00,565.40,R,Adolescent And Childrens Trust,No
Http://opendatacommunities.org/id/metropolitan-district-council/leeds,Leeds City Council,31/12/2019,Resources and Housing,HRA Housing Leeds,Capital,Other Costs,7,19/12/2019,1912-00581,0.00,60.00,C,REDACTED PERSONAL DATA,No
Http://opendatacommunities.org/id/metropolitan-district-council/leeds,Leeds City Council,31/12/2019,Strategic Landlord,Housing Management,Premises,Premises Security Services,162,02/12/2019,1912-00582,0.00,154.95,R,Adt Fire And Security Plc,No
Http://opendatacommunities.org/id/metropolitan-district-council/leeds,Leeds City Council,31/12/2019,Resources and Housing,Corporate Property Management,Premises,Maintenance Of Buildings,101,23/12/2019,1912-00583,0.00,814.09,R,Adt Fire And Security Plc,No
Http://opendatacommunities.org/id/metropolitan-district-council/leeds,Leeds City Council,31/12/2019,Resources and Housing,Corporate Property Management,Premises,Maintenance Of Buildings,101,23/12/2019,1912-00584,0.00,-387.03,R,Adt Fire And Security Plc,No
Http://opendatacommunities.org/id/metropolitan-district-council/leeds,Leeds City Council As Accountable Body,31/12/2019,Social Services Pooled Budgets,Jcs For People With Learning Disabilitie,Third Party Payments,Residential,580,27/12/2019,1912-00585,0.00,1332.24,R,Adult Placement Services,No
Http://opendatacommunities.org/id/metropolitan-district-council/leeds,Leeds City Council,31/12/2019,City Development,Recreation,Supplies and Services,External Audit Fees,261,11/12/2019,1912-00586,0.00,135.00,R,Advance Stocks Ltd,No
Http://opendatacommunities.org/id/metropolitan-district-council/leeds,Leeds City Council,31/12/2019,City Development,Recreation,Supplies and Services,External Audit Fees,261,11/12/2019,1912-00587,0.00,85.00,R,Advance Stocks Ltd,No
Http://opendatacommunities.org/id/metropolitan-district-council/leeds,Leeds City Council,31/12/2019,City Development,Libraries  Arts & Heritage,Supplies and Services,Other Hired And Contracted Services,265,13/12/2019,1912-00588,0.00,85.00,R,Advance Stocks Ltd,No
Http://opendatacommunities.org/id/metropolitan-district-council/leeds,Leeds City Council,31/12/2019,City Development,Libraries  Arts & Heritage,Supplies and Services,External Audit Fees,261,24/12/2019,1912-00589,0.00,90.00,R,Advance Stocks Ltd,No
Http://opendatacommunities.org/id/metropolitan-district-council/leeds,Leeds City Council,31/12/2019,City Development,Recreation,Supplies and Services,External Audit Fees,261,27/12/2019,1912-00590,0.00,135.00,R,Advance Stocks Ltd,No
Http://opendatacommunities.org/id/metropolitan-district-council/leeds,Leeds City Council,31/12/2019,City Development,Recreation,Supplies and Services,External Audit Fees,261,27/12/2019,1912-00591,0.00,85.00,R,Advance Stocks Ltd,No
Http://opendatacommunities.org/id/metropolitan-district-council/leeds,Leeds City Council,31/12/2019,Children and Families,Social Care,Support Services,Legal Disbursements,411,20/12/2019,1912-00592,0.00,500.88,R,Advanced Child Care Assessments Ltd,No
Http://opendatacommunities.org/id/metropolitan-district-council/leeds,Leeds City Council,31/12/2019,Resources and Housing,Sustainable Energy & Air Quality,Premises,Water Services,125,17/12/2019,1912-00593,0.00,3501.43,R,Advanced Demand Side Management,No
Http://opendatacommunities.org/id/metropolitan-district-council/leeds,Leeds City Council,31/12/2019,Adults and Health,Home Care Services,Supplies and Services,Computer Software & Equipment,214,30/12/2019,1912-00594,0.00,16925.45,R,Advanced Health And Care Ltd,No
Http://opendatacommunities.org/id/metropolitan-district-council/leeds,Leeds City Council,31/12/2019,City Development,Libraries  Arts & Heritage,Supplies and Services,Operational Furniture And Equipment,203,13/12/2019,1912-00595,0.00,1739.90,R,Advanced Moulds Ltd,No
Http://opendatacommunities.org/id/metropolitan-district-council/leeds,Leeds City Council As Accountable Body,31/12/2019,Social Services Pooled Budgets,Jcs For People With Learning Disabilitie,Third Party Payments,Residential,580,11/12/2019,1912-00596,0.00,17213.56,R,Advitam Ltd,No
Http://opendatacommunities.org/id/metropolitan-district-council/leeds,Leeds City Council As Accountable Body,31/12/2019,Social Services Pooled Budgets,Jcs For People With Learning Disabilitie,Third Party Payments,Other Agency Services,561,13/12/2019,1912-00597,0.00,9.90,R,Advonet,No
Http://opendatacommunities.org/id/metropolitan-district-council/leeds,Leeds City Council As Accountable Body,31/12/2019,Social Services Pooled Budgets,Jcs For People With Learning Disabilitie,Third Party Payments,Other Agency Services,561,13/12/2019,1912-00598,0.00,15.00,R,Advonet,No
Http://opendatacommunities.org/id/metropolitan-district-council/leeds,Leeds City Council As Accountable Body,31/12/2019,Social Services Pooled Budgets,Jcs For People With Learning Disabilitie,Third Party Payments,Other Agency Services,561,13/12/2019,1912-00599,0.00,99.90,R,Advonet,No
Http://opendatacommunities.org/id/metropolitan-district-council/leeds,Leeds City Council,31/12/2019,Adults and Health,Services For Older People - 65 And Over,Third Party Payments,Payments To Voluntary Organisations,561,13/12/2019,1912-00600,0.00,103916.67,R,Advonet,No
Http://opendatacommunities.org/id/metropolitan-district-council/leeds,Leeds City Council,31/12/2019,City Development,Highways,Capital,Other Costs,7,05/12/2019,1912-00601,0.00,27258.34,C,Aecom Limited,No
Http://opendatacommunities.org/id/metropolitan-district-council/leeds,Leeds City Council,31/12/2019,City Development,Highways,Capital,Other Costs,7,12/12/2019,1912-00602,0.00,20002.93,C,Aecom Limited,No
Http://opendatacommunities.org/id/metropolitan-district-council/leeds,Leeds City Council,31/12/2019,Adults and Health,Services For Adults Under 65 Mental/Dis,Third Party Payments,Home Care,568,13/12/2019,1912-00603,0.00,403.20,R,Aegis Care Solutions Ltd,No
Http://opendatacommunities.org/id/metropolitan-district-council/leeds,Leeds City Council,31/12/2019,Adults and Health,Services For Adults Under 65 Mental/Dis,Third Party Payments,Home Care,568,13/12/2019,1912-00604,0.00,356.00,R,Aegis Care Solutions Ltd,No
Http://opendatacommunities.org/id/metropolitan-district-council/leeds,Leeds City Council,31/12/2019,Adults and Health,Services For Adults Under 65 Mental/Dis,Third Party Payments,Home Care,568,13/12/2019,1912-00605,0.00,53.40,R,Aegis Care Solutions Ltd,No
Http://opendatacommunities.org/id/metropolitan-district-council/leeds,Leeds City Council,31/12/2019,City Development,Libraries  Arts & Heritage,Supplies and Services,Operational Furniture And Equipment,203,02/12/2019,1912-00606,0.00,3275.00,R,Aesg Ltd,No
Http://opendatacommunities.org/id/metropolitan-district-council/leeds,Leeds City Council,31/12/2019,City Development,Libraries  Arts & Heritage,Supplies and Services,Operational Furniture And Equipment,203,11/12/2019,1912-00607,0.00,3132.80,R,Aesg Ltd,No
Http://opendatacommunities.org/id/metropolitan-district-council/leeds,Leeds City Council,31/12/2019,Communities and Environment,Parks and Countryside,Supplies and Services,Other Hired And Contracted Services,265,11/12/2019,1912-00608,0.00,17897.00,R,Aesg Ltd,No
Http://opendatacommunities.org/id/metropolitan-district-council/leeds,Leeds City Council,31/12/2019,Communities and Environment,Parks and Countryside,Supplies and Services,Other Hired And Contracted Services,265,11/12/2019,1912-00609,0.00,3391.00,R,Aesg Ltd,No
Http://opendatacommunities.org/id/metropolitan-district-council/leeds,Leeds City Council,31/12/2019,Resources and Housing,Democratic Services,Supplies and Services,Operational Materials,205,20/12/2019,1912-00610,0.00,100.00,R,Aesg Ltd,No
Http://opendatacommunities.org/id/metropolitan-district-council/leeds,Leeds City Council,31/12/2019,City Development,Libraries  Arts & Heritage,Supplies and Services,Other Hired And Contracted Services,265,20/12/2019,1912-00611,0.00,175.00,R,Aesg Ltd,No
Http://opendatacommunities.org/id/metropolitan-district-council/leeds,Leeds City Council,31/12/2019,Adults and Health,Services For Older People Under 65 P/Dis,Third Party Payments,Home Care,568,02/12/2019,1912-00612,0.00,526.68,R,Affinity Trust,No
Http://opendatacommunities.org/id/metropolitan-district-council/leeds,Leeds City Council As Accountable Body,31/12/2019,Social Services Pooled Budgets,Jcs For People With Learning Disabilitie,Third Party Payments,Home Care,568,05/12/2019,1912-00613,0.00,1080.00,R,Affinity Trust,No
Http://opendatacommunities.org/id/metropolitan-district-council/leeds,Leeds City Council As Accountable Body,31/12/2019,Social Services Pooled Budgets,Jcs For People With Learning Disabilitie,Third Party Payments,Home Care,568,05/12/2019,1912-00614,0.00,240.00,R,Affinity Trust,No
Http://opendatacommunities.org/id/metropolitan-district-council/leeds,Leeds City Council,31/12/2019,Adults and Health,Services For Older People - 65 And Over,Third Party Payments,Home Care,568,05/12/2019,1912-00615,0.00,511.36,R,Affinity Trust,No
Http://opendatacommunities.org/id/metropolitan-district-council/leeds,Leeds City Council As Accountable Body,31/12/2019,Social Services Pooled Budgets,Jcs For People With Learning Disabilitie,Third Party Payments,Day Centre,564,05/12/2019,1912-00616,0.00,15207.00,R,Affinity Trust,No
Http://opendatacommunities.org/id/metropolitan-district-council/leeds,Leeds City Council As Accountable Body,31/12/2019,Social Services Pooled Budgets,Jcs For People With Learning Disabilitie,Third Party Payments,Day Centre,564,05/12/2019,1912-00617,0.00,9142.77,R,Affinity Trust,No
Http://opendatacommunities.org/id/metropolitan-district-council/leeds,Leeds City Council,31/12/2019,Adults and Health,Services For Adults Under 65 Mental/Dis,Third Party Payments,Home Care,568,06/12/2019,1912-00618,0.00,543.32,R,Affinity Trust,No
Http://opendatacommunities.org/id/metropolitan-district-council/leeds,Leeds City Council,31/12/2019,Adults and Health,Services For Older People Under 65 P/Dis,Third Party Payments,Home Care,568,06/12/2019,1912-00619,0.00,941.92,R,Affinity Trust,No
Http://opendatacommunities.org/id/metropolitan-district-council/leeds,Leeds City Council As Accountable Body,31/12/2019,Social Services Pooled Budgets,Jcs For People With Learning Disabilitie,Third Party Payments,Home Care,568,06/12/2019,1912-00620,0.00,639.20,R,Affinity Trust,No
Http://opendatacommunities.org/id/metropolitan-district-council/leeds,Leeds City Council As Accountable Body,31/12/2019,Social Services Pooled Budgets,Jcs For People With Learning Disabilitie,Third Party Payments,Home Care,568,12/12/2019,1912-00621,0.00,-60.00,R,Affinity Trust,No
Http://opendatacommunities.org/id/metropolitan-district-council/leeds,Leeds City Council As Accountable Body,31/12/2019,Social Services Pooled Budgets,Jcs For People With Learning Disabilitie,Third Party Payments,Day Centre,564,12/12/2019,1912-00622,0.00,1440.00,R,Affinity Trust,No
Http://opendatacommunities.org/id/metropolitan-district-council/leeds,Leeds City Council As Accountable Body,31/12/2019,Social Services Pooled Budgets,Jcs For People With Learning Disabilitie,Third Party Payments,Day Centre,564,12/12/2019,1912-00623,0.00,1050.66,R,Affinity Trust,No
Http://opendatacommunities.org/id/metropolitan-district-council/leeds,Leeds City Council As Accountable Body,31/12/2019,Social Services Pooled Budgets,Jcs For People With Learning Disabilitie,Third Party Payments,Home Care,568,12/12/2019,1912-00624,0.00,2010.00,R,Affinity Trust,No
Http://opendatacommunities.org/id/metropolitan-district-council/leeds,Leeds City Council As Accountable Body,31/12/2019,Social Services Pooled Budgets,Jcs For People With Learning Disabilitie,Third Party Payments,Home Care,568,12/12/2019,1912-00625,0.00,602.64,R,Affinity Trust,No
Http://opendatacommunities.org/id/metropolitan-district-council/leeds,Leeds City Council As Accountable Body,31/12/2019,Social Services Pooled Budgets,Jcs For People With Learning Disabilitie,Third Party Payments,Home Care,568,12/12/2019,1912-00626,0.00,1560.00,R,Affinity Trust,No
Http://opendatacommunities.org/id/metropolitan-district-council/leeds,Leeds City Council As Accountable Body,31/12/2019,Social Services Pooled Budgets,Jcs For People With Learning Disabilitie,Third Party Payments,Home Care,568,12/12/2019,1912-00627,0.00,2752.80,R,Affinity Trust,No
Http://opendatacommunities.org/id/metropolitan-district-council/leeds,Leeds City Council As Accountable Body,31/12/2019,Social Services Pooled Budgets,Jcs For People With Learning Disabilitie,Third Party Payments,Home Care,568,12/12/2019,1912-00628,0.00,1672.05,R,Affinity Trust,No
Http://opendatacommunities.org/id/metropolitan-district-council/leeds,Leeds City Council As Accountable Body,31/12/2019,Social Services Pooled Budgets,Jcs For People With Learning Disabilitie,Third Party Payments,Home Care,568,12/12/2019,1912-00629,0.00,889.29,R,Affinity Trust,No
Http://opendatacommunities.org/id/metropolitan-district-council/leeds,Leeds City Council As Accountable Body,31/12/2019,Social Services Pooled Budgets,Jcs For People With Learning Disabilitie,Third Party Payments,Home Care,568,12/12/2019,1912-00630,0.00,2566.48,R,Affinity Trust,No
Http://opendatacommunities.org/id/metropolitan-district-council/leeds,Leeds City Council As Accountable Body,31/12/2019,Social Services Pooled Budgets,Jcs For People With Learning Disabilitie,Third Party Payments,Day Centre,564,12/12/2019,1912-00631,0.00,402.24,R,Affinity Trust,No
Http://opendatacommunities.org/id/metropolitan-district-council/leeds,Leeds City Council As Accountable Body,31/12/2019,Social Services Pooled Budgets,Jcs For People With Learning Disabilitie,Third Party Payments,Home Care,568,12/12/2019,1912-00632,0.00,525.72,R,Affinity Trust,No
Http://opendatacommunities.org/id/metropolitan-district-council/leeds,Leeds City Council As Accountable Body,31/12/2019,Social Services Pooled Budgets,Jcs For People With Learning Disabilitie,Third Party Payments,Day Centre,564,12/12/2019,1912-00633,0.00,1725.48,R,Affinity Trust,No
Http://opendatacommunities.org/id/metropolitan-district-council/leeds,Leeds City Council As Accountable Body,31/12/2019,Social Services Pooled Budgets,Jcs For People With Learning Disabilitie,Third Party Payments,Home Care,568,12/12/2019,1912-00634,0.00,1224.48,R,Affinity Trust,No
Http://opendatacommunities.org/id/metropolitan-district-council/leeds,Leeds City Council As Accountable Body,31/12/2019,Social Services Pooled Budgets,Jcs For People With Learning Disabilitie,Third Party Payments,Home Care,568,12/12/2019,1912-00635,0.00,1711.98,R,Affinity Trust,No
Http://opendatacommunities.org/id/metropolitan-district-council/leeds,Leeds City Council As Accountable Body,31/12/2019,Social Services Pooled Budgets,Jcs For People With Learning Disabilitie,Third Party Payments,Home Care,568,12/12/2019,1912-00636,0.00,921.80,R,Affinity Trust,No
Http://opendatacommunities.org/id/metropolitan-district-council/leeds,Leeds City Council As Accountable Body,31/12/2019,Social Services Pooled Budgets,Jcs For People With Learning Disabilitie,Third Party Payments,Home Care,568,12/12/2019,1912-00637,0.00,360.00,R,Affinity Trust,No
Http://opendatacommunities.org/id/metropolitan-district-council/leeds,Leeds City Council As Accountable Body,31/12/2019,Social Services Pooled Budgets,Jcs For People With Learning Disabilitie,Third Party Payments,Day Centre,564,12/12/2019,1912-00638,0.00,714.78,R,Affinity Trust,No
Http://opendatacommunities.org/id/metropolitan-district-council/leeds,Leeds City Council As Accountable Body,31/12/2019,Social Services Pooled Budgets,Jcs For People With Learning Disabilitie,Third Party Payments,Day Centre,564,12/12/2019,1912-00639,0.00,2346.40,R,Affinity Trust,No
Http://opendatacommunities.org/id/metropolitan-district-council/leeds,Leeds City Council As Accountable Body,31/12/2019,Social Services Pooled Budgets,Jcs For People With Learning Disabilitie,Third Party Payments,Day Centre,564,12/12/2019,1912-00640,0.00,1217.97,R,Affinity Trust,No
Http://opendatacommunities.org/id/metropolitan-district-council/leeds,Leeds City Council As Accountable Body,31/12/2019,Social Services Pooled Budgets,Jcs For People With Learning Disabilitie,Third Party Payments,Day Centre,564,12/12/2019,1912-00641,0.00,1965.65,R,Affinity Trust,No
Http://opendatacommunities.org/id/metropolitan-district-council/leeds,Leeds City Council As Accountable Body,31/12/2019,Social Services Pooled Budgets,Jcs For People With Learning Disabilitie,Third Party Payments,Home Care,568,12/12/2019,1912-00642,0.00,1493.85,R,Affinity Trust,No
Http://opendatacommunities.org/id/metropolitan-district-council/leeds,Leeds City Council As Accountable Body,31/12/2019,Social Services Pooled Budgets,Jcs For People With Learning Disabilitie,Transfer Payments,Personal Budgets,627,12/12/2019,1912-00643,0.00,677.86,R,Affinity Trust,No
Http://opendatacommunities.org/id/metropolitan-district-council/leeds,Leeds City Council As Accountable Body,31/12/2019,Social Services Pooled Budgets,Jcs For People With Learning Disabilitie,Third Party Payments,Home Care,568,17/12/2019,1912-00644,0.00,854.76,R,Affinity Trust,No
Http://opendatacommunities.org/id/metropolitan-district-council/leeds,Leeds City Council As Accountable Body,31/12/2019,Social Services Pooled Budgets,Jcs For People With Learning Disabilitie,Third Party Payments,Home Care,568,17/12/2019,1912-00645,0.00,319.60,R,Affinity Trust,No
Http://opendatacommunities.org/id/metropolitan-district-council/leeds,Leeds City Council,31/12/2019,Adults and Health,Services For Older People - 65 And Over,Third Party Payments,HCAIT Community Support,575,17/12/2019,1912-00646,0.00,559.30,R,Affinity Trust,No
Http://opendatacommunities.org/id/metropolitan-district-council/leeds,Leeds City Council,31/12/2019,Adults and Health,Services For Older People Under 65 P/Dis,Third Party Payments,Home Care,568,17/12/2019,1912-00647,0.00,79.90,R,Affinity Trust,No
Http://opendatacommunities.org/id/metropolitan-district-council/leeds,Leeds City Council,31/12/2019,Adults and Health,Services For Adults Under 65 Mental/Dis,Third Party Payments,HCAIT Community Support,575,18/12/2019,1912-00648,0.00,336.40,R,Affinity Trust,No
Http://opendatacommunities.org/id/metropolitan-district-council/leeds,Leeds City Council As Accountable Body,31/12/2019,Social Services Pooled Budgets,Jcs For People With Learning Disabilitie,Third Party Payments,Home Care,568,20/12/2019,1912-00649,0.00,591.26,R,Affinity Trust,No
Http://opendatacommunities.org/id/metropolitan-district-council/leeds,Leeds City Council As Accountable Body,31/12/2019,Social Services Pooled Budgets,Jcs For People With Learning Disabilitie,Third Party Payments,Day Centre,564,20/12/2019,1912-00650,0.00,1080.00,R,Affinity Trust,No
Http://opendatacommunities.org/id/metropolitan-district-council/leeds,Leeds City Council As Accountable Body,31/12/2019,Social Services Pooled Budgets,Jcs For People With Learning Disabilitie,Third Party Payments,Home Care,568,20/12/2019,1912-00651,0.00,2640.00,R,Affinity Trust,No
Http://opendatacommunities.org/id/metropolitan-district-council/leeds,Leeds City Council As Accountable Body,31/12/2019,Social Services Pooled Budgets,Jcs For People With Learning Disabilitie,Third Party Payments,Day Centre,564,20/12/2019,1912-00652,0.00,1220.94,R,Affinity Trust,No
Http://opendatacommunities.org/id/metropolitan-district-council/leeds,Leeds City Council As Accountable Body,31/12/2019,Social Services Pooled Budgets,Jcs For People With Learning Disabilitie,Third Party Payments,Day Centre,564,20/12/2019,1912-00653,0.00,2031.48,R,Affinity Trust,No
Http://opendatacommunities.org/id/metropolitan-district-council/leeds,Leeds City Council As Accountable Body,31/12/2019,Social Services Pooled Budgets,Jcs For People With Learning Disabilitie,Third Party Payments,Home Care,568,24/12/2019,1912-00654,0.00,319.60,R,Affinity Trust,No
Http://opendatacommunities.org/id/metropolitan-district-council/leeds,Leeds City Council As Accountable Body,31/12/2019,Social Services Pooled Budgets,Jcs For People With Learning Disabilitie,Third Party Payments,Home Care,568,24/12/2019,1912-00655,0.00,1518.00,R,Affinity Trust,No
Http://opendatacommunities.org/id/metropolitan-district-council/leeds,Leeds City Council As Accountable Body,31/12/2019,Social Services Pooled Budgets,Jcs For People With Learning Disabilitie,Third Party Payments,Home Care,568,24/12/2019,1912-00656,0.00,1211.04,R,Affinity Trust,No
Http://opendatacommunities.org/id/metropolitan-district-council/leeds,Leeds City Council As Accountable Body,31/12/2019,Social Services Pooled Budgets,Jcs For People With Learning Disabilitie,Third Party Payments,Home Care,568,24/12/2019,1912-00657,0.00,639.20,R,Affinity Trust,No
Http://opendatacommunities.org/id/metropolitan-district-council/leeds,Leeds City Council As Accountable Body,31/12/2019,Social Services Pooled Budgets,Jcs For People With Learning Disabilitie,Third Party Payments,Home Care,568,24/12/2019,1912-00658,0.00,408.00,R,Affinity Trust,No
Http://opendatacommunities.org/id/metropolitan-district-council/leeds,Leeds City Council As Accountable Body,31/12/2019,Social Services Pooled Budgets,Jcs For People With Learning Disabilitie,Third Party Payments,Home Care,568,24/12/2019,1912-00659,0.00,1066.67,R,Affinity Trust,No
Http://opendatacommunities.org/id/metropolitan-district-council/leeds,Leeds City Council As Accountable Body,31/12/2019,Social Services Pooled Budgets,Jcs For People With Learning Disabilitie,Third Party Payments,Home Care,568,24/12/2019,1912-00660,0.00,2692.63,R,Affinity Trust,No
Http://opendatacommunities.org/id/metropolitan-district-council/leeds,Leeds City Council As Accountable Body,31/12/2019,Social Services Pooled Budgets,Jcs For People With Learning Disabilitie,Third Party Payments,Home Care,568,24/12/2019,1912-00661,0.00,1093.30,R,Affinity Trust,No
Http://opendatacommunities.org/id/metropolitan-district-council/leeds,Leeds City Council As Accountable Body,31/12/2019,Social Services Pooled Budgets,Jcs For People With Learning Disabilitie,Third Party Payments,Home Care,568,24/12/2019,1912-00662,0.00,120.00,R,Affinity Trust,No
Http://opendatacommunities.org/id/metropolitan-district-council/leeds,Leeds City Council As Accountable Body,31/12/2019,Social Services Pooled Budgets,Jcs For People With Learning Disabilitie,Third Party Payments,Home Care,568,24/12/2019,1912-00663,0.00,639.20,R,Affinity Trust,No
Http://opendatacommunities.org/id/metropolitan-district-council/leeds,Leeds City Council,31/12/2019,Adults and Health,Services For Adults Under 65 Mental/Dis,Third Party Payments,Home Care,568,27/12/2019,1912-00664,0.00,527.34,R,Affinity Trust,No
Http://opendatacommunities.org/id/metropolitan-district-council/leeds,Leeds City Council,31/12/2019,Adults and Health,Services For Older People Under 65 P/Dis,Third Party Payments,Home Care,568,27/12/2019,1912-00665,0.00,958.74,R,Affinity Trust,No
Http://opendatacommunities.org/id/metropolitan-district-council/leeds,Leeds City Council,31/12/2019,Adults and Health,Services For Older People - 65 And Over,Third Party Payments,Home Care,568,27/12/2019,1912-00666,0.00,487.39,R,Affinity Trust,No
Http://opendatacommunities.org/id/metropolitan-district-council/leeds,Leeds City Council,31/12/2019,Adults and Health,Services For Adults Under 65 Mental/Dis,Third Party Payments,Home Care,568,30/12/2019,1912-00667,0.00,511.36,R,Affinity Trust,No
Http://opendatacommunities.org/id/metropolitan-district-council/leeds,Leeds City Council,31/12/2019,Adults and Health,Services For Older People - 65 And Over,Third Party Payments,Home Care,568,30/12/2019,1912-00668,0.00,-0.02,R,Affinity Trust,No
Http://opendatacommunities.org/id/metropolitan-district-council/leeds,Leeds City Council,31/12/2019,Adults and Health,Services For Older People - 65 And Over,Third Party Payments,HCAIT Community Support,575,30/12/2019,1912-00669,0.00,527.36,R,Affinity Trust,No
Http://opendatacommunities.org/id/metropolitan-district-council/leeds,Leeds City Council,31/12/2019,Adults and Health,Services For Older People Under 65 P/Dis,Third Party Payments,Home Care,568,30/12/2019,1912-00670,0.00,575.28,R,Affinity Trust,No
Http://opendatacommunities.org/id/metropolitan-district-council/leeds,Leeds City Council,31/12/2019,Adults and Health,Services For Adults Under 65 Mental/Dis,Third Party Payments,HCAIT Community Support,575,30/12/2019,1912-00671,0.00,1327.20,R,Affinity Trust,No
Http://opendatacommunities.org/id/metropolitan-district-council/leeds,Leeds City Council,31/12/2019,Adults and Health,Services For Older People Under 65 P/Dis,Third Party Payments,Sheltered Accommodation,569,11/12/2019,1912-00672,0.00,76104.00,R,Affinity Trust North Divisional Office,No
Http://opendatacommunities.org/id/metropolitan-district-council/leeds,Leeds City Council As Accountable Body,31/12/2019,Social Services Pooled Budgets,Jcs For People With Learning Disabilitie,Third Party Payments,Sheltered Accommodation,569,11/12/2019,1912-00673,0.00,119573.36,R,Affinity Trust North Divisional Office,No
Http://opendatacommunities.org/id/metropolitan-district-council/leeds,Leeds City Council,31/12/2019,Communities And Environment,Parks And Countryside  ,Transport,External Hire -Occasional,304,11/11/2019,1912-00674,0.00,950.00,R,Afi Uplift,Yes
Http://opendatacommunities.org/id/metropolitan-district-council/leeds,Leeds City Council,31/12/2019,Communities And Environment,Parks And Countryside  ,Transport,External Hire -Occasional,304,11/11/2019,1912-00675,0.00,950.00,R,Afi Uplift,Yes
Http://opendatacommunities.org/id/metropolitan-district-council/leeds,Leeds City Council,31/12/2019,Communities And Environment,Parks And Countryside  ,Transport,External Hire -Occasional,304,11/11/2019,1912-00676,0.00,950.00,R,Afi Uplift,Yes
Http://opendatacommunities.org/id/metropolitan-district-council/leeds,Leeds City Council,31/12/2019,Communities And Environment,Parks And Countryside  ,Transport,External Hire -Occasional,304,11/11/2019,1912-00677,0.00,950.00,R,Afi Uplift,Yes
Http://opendatacommunities.org/id/metropolitan-district-council/leeds,Leeds City Council,31/12/2019,Communities and Environment,Parks and Countryside,Supplies and Services,Other Hired And Contracted Services,265,10/12/2019,1912-00678,0.00,525.00,R,Afi-Uplift Limited,No
Http://opendatacommunities.org/id/metropolitan-district-council/leeds,Leeds City Council,31/12/2019,Communities and Environment,Parks and Countryside,Supplies and Services,Other Hired And Contracted Services,265,10/12/2019,1912-00679,0.00,525.00,R,Afi-Uplift Limited,No
Http://opendatacommunities.org/id/metropolitan-district-council/leeds,Leeds City Council,31/12/2019,Communities and Environment,Parks and Countryside,Supplies and Services,Other Hired And Contracted Services,265,10/12/2019,1912-00680,0.00,525.00,R,Afi-Uplift Limited,No
Http://opendatacommunities.org/id/metropolitan-district-council/leeds,Leeds City Council,31/12/2019,Adults and Health,Services For Older People - 65 And Over,Third Party Payments,Payments To Voluntary Organisations,561,31/12/2019,1912-00681,0.00,10599.75,R,Age Uk Leeds,No
Http://opendatacommunities.org/id/metropolitan-district-council/leeds,Leeds City Council,31/12/2019,City Development,Highways,Supplies and Services,Operational Materials,205,05/12/2019,1912-00682,0.00,3101.80,R,Aggregate Industries Uk Ltd,No
Http://opendatacommunities.org/id/metropolitan-district-council/leeds,Leeds City Council,31/12/2019,City Development,Highways,Supplies and Services,Operational Materials,205,18/12/2019,1912-00683,0.00,0.00,R,Aggregate Industries Uk Ltd,No
Http://opendatacommunities.org/id/metropolitan-district-council/leeds,Leeds City Council,31/12/2019,City Development,Regeneration,Capital,Construction,3,18/12/2019,1912-00684,0.00,7158.00,C,Aggregate Industries Uk Ltd,No
Http://opendatacommunities.org/id/metropolitan-district-council/leeds,Leeds City Council,31/12/2019,City Development,Highways  ,Employees,Training Costs,71,18/11/2019,1912-00685,0.00,99.00,R,Agilysis Ltd,Yes
Http://opendatacommunities.org/id/metropolitan-district-council/leeds,Leeds City Council,31/12/2019,City Development,Libraries  Arts & Heritage,Supplies and Services,Other Hired And Contracted Services,265,12/12/2019,1912-00686,0.00,148.32,R,Agnis Smallwood,No
Http://opendatacommunities.org/id/metropolitan-district-council/leeds,Leeds City Council,31/12/2019,Resources and Housing,HRA Housing Leeds,Capital,Other Costs,7,02/12/2019,1912-00687,0.00,80.00,C,REDACTED PERSONAL DATA,No
Http://opendatacommunities.org/id/metropolitan-district-council/leeds,Leeds City Council,31/12/2019,Communities and Environment,Customer Access,Supplies and Services,Bought In Professional Services,277,05/12/2019,1912-00688,0.00,19.80,R,Ahmed Moustafa Moustafa Mousa,No
Http://opendatacommunities.org/id/metropolitan-district-council/leeds,Leeds City Council,31/12/2019,Communities and Environment,Customer Access,Supplies and Services,Bought In Professional Services,277,05/12/2019,1912-00689,0.00,18.00,R,Ahmed Moustafa Moustafa Mousa,No
Http://opendatacommunities.org/id/metropolitan-district-council/leeds,Leeds City Council,31/12/2019,Communities and Environment,Customer Access,Supplies and Services,Bought In Professional Services,277,05/12/2019,1912-00690,0.00,18.00,R,Ahmed Moustafa Moustafa Mousa,No
Http://opendatacommunities.org/id/metropolitan-district-council/leeds,Leeds City Council,31/12/2019,Communities and Environment,Customer Access,Supplies and Services,Bought In Professional Services,277,18/12/2019,1912-00691,0.00,18.00,R,Ahmed Moustafa Moustafa Mousa,No
Http://opendatacommunities.org/id/metropolitan-district-council/leeds,Leeds City Council,31/12/2019,Communities and Environment,Customer Access,Supplies and Services,Bought In Professional Services,277,18/12/2019,1912-00692,0.00,21.40,R,Ahmed Moustafa Moustafa Mousa,No
Http://opendatacommunities.org/id/metropolitan-district-council/leeds,Leeds City Council,31/12/2019,Communities and Environment,Customer Access,Supplies and Services,Bought In Professional Services,277,19/12/2019,1912-00693,0.00,30.20,R,Ahmed Moustafa Moustafa Mousa,No
Http://opendatacommunities.org/id/metropolitan-district-council/leeds,Leeds City Council,31/12/2019,Communities and Environment,Customer Access,Supplies and Services,Bought In Professional Services,277,19/12/2019,1912-00694,0.00,18.00,R,Ahmed Moustafa Moustafa Mousa,No
Http://opendatacommunities.org/id/metropolitan-district-council/leeds,Leeds City Council,31/12/2019,Communities and Environment,Customer Access,Supplies and Services,Bought In Professional Services,277,19/12/2019,1912-00695,0.00,22.70,R,Ahmed Moustafa Moustafa Mousa,No
Http://opendatacommunities.org/id/metropolitan-district-council/leeds,Leeds City Council,31/12/2019,Communities and Environment,Customer Access,Supplies and Services,Bought In Professional Services,277,19/12/2019,1912-00696,0.00,34.40,R,Ahmed Moustafa Moustafa Mousa,No
Http://opendatacommunities.org/id/metropolitan-district-council/leeds,Leeds City Council,31/12/2019,Communities and Environment,Customer Access,Supplies and Services,Bought In Professional Services,277,19/12/2019,1912-00697,0.00,22.70,R,Ahmed Moustafa Moustafa Mousa,No
Http://opendatacommunities.org/id/metropolitan-district-council/leeds,Leeds City Council,31/12/2019,City Development,Economic Development,Supplies and Services,Consultancy Services,259,20/12/2019,1912-00698,0.00,1500.00,R,Ai Tech Events,No
Http://opendatacommunities.org/id/metropolitan-district-council/leeds,Leeds City Council,31/12/2019,Children and Families,Learning,Supplies and Services,Teaching Materials,202,27/12/2019,1912-00699,0.00,33.53,R,Aid Training & Operations Ltd,No
Http://opendatacommunities.org/id/metropolitan-district-council/leeds,Leeds City Council,31/12/2019,Children and Families,Learning,Supplies and Services,Teaching Materials,202,27/12/2019,1912-00700,0.00,31.03,R,Aid Training & Operations Ltd,No
Http://opendatacommunities.org/id/metropolitan-district-council/leeds,Leeds City Council,31/12/2019,Children and Families,Learning,Supplies and Services,Teaching Materials,202,27/12/2019,1912-00701,0.00,63.53,R,Aid Training & Operations Ltd,No
Http://opendatacommunities.org/id/metropolitan-district-council/leeds,Leeds City Council As Accountable Body,31/12/2019,Social Services Pooled Budgets,Leeds Community Equip Store Pooled Budgt,Supplies and Services,Other Equipment,203,12/12/2019,1912-00702,0.00,773.70,R,Aidapt Bathrooms Ltd,No
Http://opendatacommunities.org/id/metropolitan-district-council/leeds,Leeds City Council As Accountable Body,31/12/2019,Social Services Pooled Budgets,Leeds Community Equip Store Pooled Budgt,Supplies and Services,Other Equipment,203,12/12/2019,1912-00703,0.00,515.00,R,Aidapt Bathrooms Ltd,No
Http://opendatacommunities.org/id/metropolitan-district-council/leeds,Leeds City Council As Accountable Body,31/12/2019,Social Services Pooled Budgets,Leeds Community Equip Store Pooled Budgt,Supplies and Services,Other Equipment,203,12/12/2019,1912-00704,0.00,119.70,R,Aidapt Bathrooms Ltd,No
Http://opendatacommunities.org/id/metropolitan-district-council/leeds,Leeds City Council As Accountable Body,31/12/2019,Social Services Pooled Budgets,Leeds Community Equip Store Pooled Budgt,Supplies and Services,Other Equipment,203,13/12/2019,1912-00705,0.00,1836.60,R,Aidapt Bathrooms Ltd,No
Http://opendatacommunities.org/id/metropolitan-district-council/leeds,Leeds City Council As Accountable Body,31/12/2019,Social Services Pooled Budgets,Leeds Community Equip Store Pooled Budgt,Supplies and Services,Other Equipment,203,18/12/2019,1912-00706,0.00,205.20,R,Aidapt Bathrooms Ltd,No
Http://opendatacommunities.org/id/metropolitan-district-council/leeds,Leeds City Council As Accountable Body,31/12/2019,Social Services Pooled Budgets,Leeds Community Equip Store Pooled Budgt,Supplies and Services,Other Equipment,203,20/12/2019,1912-00707,0.00,1327.80,R,Aidapt Bathrooms Ltd,No
Http://opendatacommunities.org/id/metropolitan-district-council/leeds,Leeds City Council As Accountable Body,31/12/2019,Social Services Pooled Budgets,Leeds Community Equip Store Pooled Budgt,Supplies and Services,Other Equipment,203,24/12/2019,1912-00708,0.00,205.20,R,Aidapt Bathrooms Ltd,No
Http://opendatacommunities.org/id/metropolitan-district-council/leeds,Leeds City Council As Accountable Body,31/12/2019,Social Services Pooled Budgets,Leeds Community Equip Store Pooled Budgt,Supplies and Services,Other Equipment,203,24/12/2019,1912-00709,0.00,515.80,R,Aidapt Bathrooms Ltd,No
Http://opendatacommunities.org/id/metropolitan-district-council/leeds,Leeds City Council As Accountable Body,31/12/2019,Social Services Pooled Budgets,Leeds Community Equip Store Pooled Budgt,Supplies and Services,Other Equipment,203,27/12/2019,1912-00710,0.00,2562.25,R,Aidapt Bathrooms Ltd,No
Http://opendatacommunities.org/id/metropolitan-district-council/leeds,Leeds City Council As Accountable Body,31/12/2019,Social Services Pooled Budgets,Leeds Community Equip Store Pooled Budgt,Supplies and Services,Other Equipment,203,27/12/2019,1912-00711,0.00,715.00,R,Aidapt Bathrooms Ltd,No
Http://opendatacommunities.org/id/metropolitan-district-council/leeds,Leeds City Council As Accountable Body,31/12/2019,Social Services Pooled Budgets,Leeds Community Equip Store Pooled Budgt,Supplies and Services,Other Equipment,203,30/12/2019,1912-00712,0.00,1793.40,R,Aidapt Bathrooms Ltd,No
Http://opendatacommunities.org/id/metropolitan-district-council/leeds,Leeds City Council As Accountable Body,31/12/2019,Social Services Pooled Budgets,Leeds Community Equip Store Pooled Budgt,Supplies and Services,Other Equipment,203,30/12/2019,1912-00713,0.00,136.80,R,Aidapt Bathrooms Ltd,No
Http://opendatacommunities.org/id/metropolitan-district-council/leeds,Leeds City Council,31/12/2019,City Development,Libraries  Arts & Heritage  ,Transport,Public Transport Expenses,310,15/11/2019,1912-00714,0.00,14.58,R,Air Expressbus Bv,Yes
Http://opendatacommunities.org/id/metropolitan-district-council/leeds,Leeds City Council,31/12/2019,Resources And Housing,Commercial Services  ,Supplies and Services,Operational Materials,205,19/11/2019,1912-00715,0.00,188.19,R,Air Force Pneumatics And,Yes
Http://opendatacommunities.org/id/metropolitan-district-council/leeds,Leeds City Council,31/12/2019,Resources and Housing,Leeds Building Services,Supplies and Services,Operational Materials,205,31/12/2019,1912-00716,0.00,196.32,R,Air Liquide Uk,No
Http://opendatacommunities.org/id/metropolitan-district-council/leeds,Leeds City Council,31/12/2019,Communities and Environment,Environmental Health,Supplies and Services,Other Hired And Contracted Services,265,31/12/2019,1912-00717,0.00,10.45,R,Air Liquide Uk,No
Http://opendatacommunities.org/id/metropolitan-district-council/leeds,Leeds City Council,31/12/2019,Communities and Environment,Environmental Health,Supplies and Services,Other Hired And Contracted Services,265,31/12/2019,1912-00718,0.00,10.45,R,Air Liquide Uk,No
Http://opendatacommunities.org/id/metropolitan-district-council/leeds,Leeds City Council,31/12/2019,Communities and Environment,Environmental Health,Supplies and Services,Other Hired And Contracted Services,265,31/12/2019,1912-00719,0.00,15.93,R,Air Liquide Uk,No
Http://opendatacommunities.org/id/metropolitan-district-council/leeds,Leeds City Council,31/12/2019,Communities and Environment,Environmental Health,Supplies and Services,Other Hired And Contracted Services,265,31/12/2019,1912-00720,0.00,73.15,R,Air Liquide Uk,No
Http://opendatacommunities.org/id/metropolitan-district-council/leeds,Leeds City Council,31/12/2019,Resources and Housing,Technology,Supplies and Services,Computer Software & Equipment,214,19/12/2019,1912-00721,0.00,12040.00,R,Aire Logic Ltd,No
Http://opendatacommunities.org/id/metropolitan-district-council/leeds,Leeds City Council,31/12/2019,Resources and Housing,Technology,Supplies and Services,Computer Software & Equipment,214,19/12/2019,1912-00722,0.00,4760.00,R,Aire Logic Ltd,No
Http://opendatacommunities.org/id/metropolitan-district-council/leeds,Leeds City Council,31/12/2019,Resources and Housing,Technology,Supplies and Services,Computer Software & Equipment,214,19/12/2019,1912-00723,0.00,3640.00,R,Aire Logic Ltd,No
Http://opendatacommunities.org/id/metropolitan-district-council/leeds,Leeds City Council,31/12/2019,City Development,Markets & City Centre Management,Supplies and Services,City Centre Enhancement,295,20/12/2019,1912-00724,0.00,350.00,R,Aire Valley Landscaping Services Ltd,No
Http://opendatacommunities.org/id/metropolitan-district-council/leeds,Leeds City Council,31/12/2019,Adults and Health,Services For Older People - 65 And Over,Third Party Payments,Residential Care Dementia,571,11/12/2019,1912-00725,0.00,50579.10,R,Aire View Residential Home,No
Http://opendatacommunities.org/id/metropolitan-district-council/leeds,Leeds City Council,31/12/2019,Adults and Health,Services For Older People - 65 And Over,Third Party Payments,Residential,580,11/12/2019,1912-00726,0.00,4235.84,R,Aire View Residential Home,No
Http://opendatacommunities.org/id/metropolitan-district-council/leeds,Leeds City Council,31/12/2019,City Development,Recreation  ,Supplies and Services,Other Hired And Contracted Services,265,04/11/2019,1912-00727,0.00,9.33,R,Aireborough Leisure Centr,Yes
Http://opendatacommunities.org/id/metropolitan-district-council/leeds,Leeds City Council,31/12/2019,City Development,Recreation  ,Supplies and Services,Hospitality,255,18/11/2019,1912-00728,0.00,20.75,R,Aireborough Leisure Centr,Yes
Http://opendatacommunities.org/id/metropolitan-district-council/leeds,Leeds City Council,31/12/2019,City Development,Recreation  ,Supplies and Services,Hospitality,255,18/11/2019,1912-00729,0.00,34.33,R,Aireborough Leisure Centr,Yes
Http://opendatacommunities.org/id/metropolitan-district-council/leeds,Leeds City Council,31/12/2019,City Development,Recreation  ,Supplies and Services,Hospitality,255,18/11/2019,1912-00730,0.00,3.67,R,Aireborough Leisure Centr,Yes
Http://opendatacommunities.org/id/metropolitan-district-council/leeds,Leeds City Council,31/12/2019,City Development,Recreation  ,Supplies and Services,Hospitality,255,18/11/2019,1912-00731,0.00,4.67,R,Aireborough Leisure Centr,Yes
Http://opendatacommunities.org/id/metropolitan-district-council/leeds,Leeds City Council,31/12/2019,City Development,Recreation  ,Supplies and Services,Other Hired And Contracted Services,265,22/11/2019,1912-00732,0.00,7.35,R,Aireborough Leisure Centr,Yes
Http://opendatacommunities.org/id/metropolitan-district-council/leeds,Leeds City Council,31/12/2019,Adults and Health,Services For Older People - 65 And Over,Third Party Payments,Residential Care Dementia,571,11/12/2019,1912-00733,0.00,3085.40,R,Airedale Care Home,No
Http://opendatacommunities.org/id/metropolitan-district-council/leeds,Leeds City Council,31/12/2019,Adults and Health,Services For Older People - 65 And Over,Third Party Payments,Residential,580,11/12/2019,1912-00734,0.00,29332.36,R,Airedale Care Home,No
Http://opendatacommunities.org/id/metropolitan-district-council/leeds,Leeds City Council,31/12/2019,Children and Families,Social Care,Supplies and Services,Operational Furniture And Equipment,203,12/12/2019,1912-00735,0.00,6998.00,R,Airedale Catering Equipment Ltd,No
Http://opendatacommunities.org/id/metropolitan-district-council/leeds,Leeds City Council,31/12/2019,Resources and Housing,Leeds Building Services,Supplies and Services,Operational Furniture And Equipment,203,13/12/2019,1912-00736,0.00,398.00,R,Airedale Catering Equipment Ltd,No
Http://opendatacommunities.org/id/metropolitan-district-council/leeds,Leeds City Council,31/12/2019,Adults and Health,Assessment And Care Management,Employees,Training Costs,71,13/12/2019,1912-00737,0.00,150.00,R,Airedale Community Trading (Act) Ltd,No
Http://opendatacommunities.org/id/metropolitan-district-council/leeds,Leeds City Council,31/12/2019,Adults and Health,Services For Adults Under 65 Mental/Dis,Third Party Payments,Fees - Level 4,520,06/12/2019,1912-00738,0.00,-175.00,R,Ait Mitra Limited,No
Http://opendatacommunities.org/id/metropolitan-district-council/leeds,Leeds City Council,31/12/2019,Adults and Health,Services For Adults Under 65 Mental/Dis,Third Party Payments,Services Provided By Other NHS Bodies,522,06/12/2019,1912-00739,0.00,175.00,R,Ait Mitra Limited,No
Http://opendatacommunities.org/id/metropolitan-district-council/leeds,Leeds City Council,31/12/2019,Adults and Health,Services For Adults Under 65 Mental/Dis,Third Party Payments,Services Provided By Other NHS Bodies,522,06/12/2019,1912-00740,0.00,175.00,R,Ait Mitra Limited,No
Http://opendatacommunities.org/id/metropolitan-district-council/leeds,Leeds City Council,31/12/2019,Adults and Health,Services For Adults Under 65 Mental/Dis,Third Party Payments,Services Provided By Other NHS Bodies,522,06/12/2019,1912-00741,0.00,175.00,R,Ait Mitra Limited,No
Http://opendatacommunities.org/id/metropolitan-district-council/leeds,Leeds City Council,31/12/2019,Adults and Health,Services For Adults Under 65 Mental/Dis,Third Party Payments,Services Provided By Other NHS Bodies,522,06/12/2019,1912-00742,0.00,175.00,R,Ait Mitra Limited,No
Http://opendatacommunities.org/id/metropolitan-district-council/leeds,Leeds City Council,31/12/2019,Adults and Health,Services For Adults Under 65 Mental/Dis,Third Party Payments,Services Provided By Other NHS Bodies,522,06/12/2019,1912-00743,0.00,175.00,R,Ait Mitra Limited,No
Http://opendatacommunities.org/id/metropolitan-district-council/leeds,Leeds City Council,31/12/2019,Adults and Health,Services For Adults Under 65 Mental/Dis,Third Party Payments,Services Provided By Other NHS Bodies,522,06/12/2019,1912-00744,0.00,175.00,R,Ait Mitra Limited,No
Http://opendatacommunities.org/id/metropolitan-district-council/leeds,Leeds City Council,31/12/2019,Adults and Health,Services For Adults Under 65 Mental/Dis,Third Party Payments,Services Provided By Other NHS Bodies,522,06/12/2019,1912-00745,0.00,175.00,R,Ait Mitra Limited,No
Http://opendatacommunities.org/id/metropolitan-district-council/leeds,Leeds City Council,31/12/2019,Adults and Health,Services For Adults Under 65 Mental/Dis,Third Party Payments,Services Provided By Other NHS Bodies,522,06/12/2019,1912-00746,0.00,175.00,R,Ait Mitra Limited,No
Http://opendatacommunities.org/id/metropolitan-district-council/leeds,Leeds City Council,31/12/2019,Adults and Health,Services For Adults Under 65 Mental/Dis,Third Party Payments,Services Provided By Other NHS Bodies,522,06/12/2019,1912-00747,0.00,239.50,R,Ait Mitra Limited,No
Http://opendatacommunities.org/id/metropolitan-district-council/leeds,Leeds City Council,31/12/2019,Adults and Health,Services For Adults Under 65 Mental/Dis,Third Party Payments,Services Provided By Other NHS Bodies,522,09/12/2019,1912-00748,0.00,175.00,R,Ait Mitra Limited,No
Http://opendatacommunities.org/id/metropolitan-district-council/leeds,Leeds City Council,31/12/2019,Adults and Health,Services For Adults Under 65 Mental/Dis,Third Party Payments,Services Provided By Other NHS Bodies,522,13/12/2019,1912-00749,0.00,230.90,R,Ait Mitra Limited,No
Http://opendatacommunities.org/id/metropolitan-district-council/leeds,Leeds City Council,31/12/2019,Adults and Health,Services For Adults Under 65 Mental/Dis,Third Party Payments,Services Provided By Other NHS Bodies,522,20/12/2019,1912-00750,0.00,175.00,R,Ait Mitra Limited,No
Http://opendatacommunities.org/id/metropolitan-district-council/leeds,Leeds City Council,31/12/2019,Adults and Health,Services For Adults Under 65 Mental/Dis,Third Party Payments,Services Provided By Other NHS Bodies,522,20/12/2019,1912-00751,0.00,175.00,R,Ait Mitra Limited,No
Http://opendatacommunities.org/id/metropolitan-district-council/leeds,Leeds City Council,31/12/2019,Adults and Health,Services For Adults Under 65 Mental/Dis,Third Party Payments,Services Provided By Other NHS Bodies,522,20/12/2019,1912-00752,0.00,175.00,R,Ait Mitra Limited,No
Http://opendatacommunities.org/id/metropolitan-district-council/leeds,Leeds City Council,31/12/2019,Adults and Health,Services For Adults Under 65 Mental/Dis,Third Party Payments,Services Provided By Other NHS Bodies,522,20/12/2019,1912-00753,0.00,175.00,R,Ait Mitra Limited,No
Http://opendatacommunities.org/id/metropolitan-district-council/leeds,Leeds City Council,31/12/2019,Adults and Health,Services For Adults Under 65 Mental/Dis,Third Party Payments,Services Provided By Other NHS Bodies,522,20/12/2019,1912-00754,0.00,175.00,R,Ait Mitra Limited,No
Http://opendatacommunities.org/id/metropolitan-district-council/leeds,Leeds City Council,31/12/2019,Adults and Health,Services For Adults Under 65 Mental/Dis,Third Party Payments,Services Provided By Other NHS Bodies,522,20/12/2019,1912-00755,0.00,175.00,R,Ait Mitra Limited,No
Http://opendatacommunities.org/id/metropolitan-district-council/leeds,Leeds City Council,31/12/2019,Adults and Health,Services For Adults Under 65 Mental/Dis,Third Party Payments,Services Provided By Other NHS Bodies,522,20/12/2019,1912-00756,0.00,175.00,R,Ait Mitra Limited,No
Http://opendatacommunities.org/id/metropolitan-district-council/leeds,Leeds City Council,31/12/2019,Adults and Health,Services For Adults Under 65 Mental/Dis,Third Party Payments,Services Provided By Other NHS Bodies,522,20/12/2019,1912-00757,0.00,175.00,R,Ait Mitra Limited,No
Http://opendatacommunities.org/id/metropolitan-district-council/leeds,Leeds City Council,31/12/2019,Adults and Health,Services For Adults Under 65 Mental/Dis,Third Party Payments,Services Provided By Other NHS Bodies,522,20/12/2019,1912-00758,0.00,175.00,R,Ait Mitra Limited,No
Http://opendatacommunities.org/id/metropolitan-district-council/leeds,Leeds City Council,31/12/2019,Adults and Health,Services For Adults Under 65 Mental/Dis,Third Party Payments,Services Provided By Other NHS Bodies,522,24/12/2019,1912-00759,0.00,239.50,R,Ait Mitra Limited,No
Http://opendatacommunities.org/id/metropolitan-district-council/leeds,Leeds City Council,31/12/2019,Adults and Health,Services For Adults Under 65 Mental/Dis,Third Party Payments,Services Provided By Other NHS Bodies,522,24/12/2019,1912-00760,0.00,175.00,R,Ait Mitra Limited,No
Http://opendatacommunities.org/id/metropolitan-district-council/leeds,Leeds City Council As Accountable Body,31/12/2019,Social Services Pooled Budgets,Jcs For People With Learning Disabilitie,Third Party Payments,Residential,580,11/12/2019,1912-00761,0.00,6464.04,R,Aitch Care Homes,No
Http://opendatacommunities.org/id/metropolitan-district-council/leeds,Leeds City Council,31/12/2019,Resources and Housing,Commercial Services,Supplies and Services,Other Hired And Contracted Services,265,23/12/2019,1912-00762,0.00,675.00,R,REDACTED PERSONAL DATA,No
Http://opendatacommunities.org/id/metropolitan-district-council/leeds,Leeds City Council,31/12/2019,Resources and Housing,Commercial Services,Supplies and Services,Other Hired And Contracted Services,265,23/12/2019,1912-00763,0.00,450.00,R,REDACTED PERSONAL DATA,No
Http://opendatacommunities.org/id/metropolitan-district-council/leeds,Leeds City Council,31/12/2019,Resources and Housing,Leeds Building Services,Supplies and Service,Stores - Central And Other Depots,5,02/12/2019,1912-00764,0.00,979.57,R,Ajm Fixings & Power Tools Ltd,No
Http://opendatacommunities.org/id/metropolitan-district-council/leeds,Leeds City Council,31/12/2019,Resources and Housing,Leeds Building Services,Supplies and Services,Operational Furniture And Equipment,203,06/12/2019,1912-00765,0.00,100.00,R,Ajm Fixings & Power Tools Ltd,No
Http://opendatacommunities.org/id/metropolitan-district-council/leeds,Leeds City Council,31/12/2019,Resources and Housing,Leeds Building Services,Supplies and Services,Operational Furniture And Equipment,203,06/12/2019,1912-00766,0.00,67.60,R,Ajm Fixings & Power Tools Ltd,No
Http://opendatacommunities.org/id/metropolitan-district-council/leeds,Leeds City Council,31/12/2019,Resources and Housing,Leeds Building Services,Supplies and Services,Operational Materials,205,06/12/2019,1912-00767,0.00,344.28,R,Ajm Fixings & Power Tools Ltd,No
Http://opendatacommunities.org/id/metropolitan-district-council/leeds,Leeds City Council,31/12/2019,Resources and Housing,Leeds Building Services,Supplies and Services,Operational Furniture And Equipment,203,06/12/2019,1912-00768,0.00,837.50,R,Ajm Fixings & Power Tools Ltd,No
Http://opendatacommunities.org/id/metropolitan-district-council/leeds,Leeds City Council,31/12/2019,Resources and Housing,Leeds Building Services,Supplies and Services,Operational Furniture And Equipment,203,06/12/2019,1912-00769,0.00,418.00,R,Ajm Fixings & Power Tools Ltd,No
Http://opendatacommunities.org/id/metropolitan-district-council/leeds,Leeds City Council,31/12/2019,Resources and Housing,Leeds Building Services,Supplies and Services,Operational Furniture And Equipment,203,12/12/2019,1912-00770,0.00,234.00,R,Ajm Fixings & Power Tools Ltd,No
Http://opendatacommunities.org/id/metropolitan-district-council/leeds,Leeds City Council,31/12/2019,Resources and Housing,Leeds Building Services,Supplies and Services,Operational Materials,205,12/12/2019,1912-00771,0.00,10.99,R,Ajm Fixings & Power Tools Ltd,No
Http://opendatacommunities.org/id/metropolitan-district-council/leeds,Leeds City Council,31/12/2019,Resources and Housing,Leeds Building Services,Supplies and Services,Operational Furniture And Equipment,203,12/12/2019,1912-00772,0.00,352.49,R,Ajm Fixings & Power Tools Ltd,No
Http://opendatacommunities.org/id/metropolitan-district-council/leeds,Leeds City Council,31/12/2019,Resources and Housing,Leeds Building Services,Supplies and Services,Operational Materials,205,18/12/2019,1912-00773,0.00,479.40,R,Ajm Fixings & Power Tools Ltd,No
Http://opendatacommunities.org/id/metropolitan-district-council/leeds,Leeds City Council,31/12/2019,Resources and Housing,Leeds Building Services,Supplies and Service,Stores - Central And Other Depots,5,18/12/2019,1912-00774,0.00,841.05,R,Ajm Fixings & Power Tools Ltd,No
Http://opendatacommunities.org/id/metropolitan-district-council/leeds,Leeds City Council,31/12/2019,Resources and Housing,Leeds Building Services,Supplies and Services,Operational Furniture And Equipment,203,18/12/2019,1912-00775,0.00,94.99,R,Ajm Fixings & Power Tools Ltd,No
Http://opendatacommunities.org/id/metropolitan-district-council/leeds,Leeds City Council,31/12/2019,Resources and Housing,Leeds Building Services,Supplies and Services,Operational Furniture And Equipment,203,20/12/2019,1912-00776,0.00,52.10,R,Ajm Fixings & Power Tools Ltd,No
Http://opendatacommunities.org/id/metropolitan-district-council/leeds,Leeds City Council,31/12/2019,Resources and Housing,Leeds Building Services,Supplies and Services,Operational Furniture And Equipment,203,20/12/2019,1912-00777,0.00,680.00,R,Ajm Fixings & Power Tools Ltd,No
Http://opendatacommunities.org/id/metropolitan-district-council/leeds,Leeds City Council,31/12/2019,Resources and Housing,Leeds Building Services,Supplies and Services,Operational Furniture And Equipment,203,20/12/2019,1912-00778,0.00,442.38,R,Ajm Fixings & Power Tools Ltd,No
